{"text_format":"1","workbook":"xlsx","n_sheets":8,"sheets":["Menu","Cad_Clientes","Cad_Vendedores","Cad_Produtos","Cad_Neg","Dash","Instruções","Config"],"not_rendered":{"charts":6,"images":10,"macros":1,"external_links":0,"defined_names":17,"comments":0,"pivot_tables":0},"unopened":[],"bounds":{"document_bytes":16777216,"sheet_cells":100000,"rows_first":2000,"rows_last":500,"rows_between":2000,"halvings":0,"cell_chars":16384,"cell_head_chars":4096},"cells_cut":0,"cells_raw":0,"read":"whole","date_system":"1900"}

{"sheet":"Menu","index":0,"n_rows":26,"n_cols":7,"rows_kept":26,"cut":false,"hidden":false,"merged":[[25,4,25,5],[25,6,25,14]]}
[]
[]
[]
[]
[]
[]
[]
[]
[]
[]
[]
[]
[]
[]
[]
[]
[]
[]
[]
[]
[]
[]
[]
[]
[]
[null,null,null,null,"Empresa:",null,"Empresa ABCDE"]

{"sheet":"Cad_Clientes","index":1,"n_rows":113,"n_cols":6,"rows_kept":113,"cut":false,"hidden":false,"merged":[[9,2,9,5],[11,1,11,5]]}
[]
[]
[]
[]
[]
[]
[]
[]
[]
[null,"Empresa:",{"$f":"Menu!G26","v":"Empresa ABCDE"}]
[]
[null,"Cadastro de Clientes\nInsira as informações dos seus clientes ou potenciais clientes."]
[null,"ITEM","CLIENTE","TELEFONE","E-MAIL","ENDEREÇO"]
[null,1,"Cliente 1","1111-1111"]
[null,2,"Cliente 2","2222-2222"]
[null,3,"Cliente 3","3333-3333"]
[null,4,"Cliente 4","4444-4444"]
[null,5,"Cliente 5","5555-5555"]
[null,6,"Cliente 6","6666-6666"]
[null,7,"Cliente 7","7777-7777"]
[null,8,"Cliente 8","8888-8888"]
[null,9,"Cliente 9","9999-9999"]
[null,10,"Cliente 10","0000-0000"]
[null,11]
[null,12]
[null,13]
[null,14]
[null,15]
[null,16]
[null,17]
[null,18]
[null,19]
[null,20]
[null,21]
[null,22]
[null,23]
[null,24]
[null,25]
[null,26]
[null,27]
[null,28]
[null,29]
[null,30]
[null,31]
[null,32]
[null,33]
[null,34]
[null,35]
[null,36]
[null,37]
[null,38]
[null,39]
[null,40]
[null,41]
[null,42]
[null,43]
[null,44]
[null,45]
[null,46]
[null,47]
[null,48]
[null,49]
[null,50]
[null,51]
[null,52]
[null,53]
[null,54]
[null,55]
[null,56]
[null,57]
[null,58]
[null,59]
[null,60]
[null,61]
[null,62]
[null,63]
[null,64]
[null,65]
[null,66]
[null,67]
[null,68]
[null,69]
[null,70]
[null,71]
[null,72]
[null,73]
[null,74]
[null,75]
[null,76]
[null,77]
[null,78]
[null,79]
[null,80]
[null,81]
[null,82]
[null,83]
[null,84]
[null,85]
[null,86]
[null,87]
[null,88]
[null,89]
[null,90]
[null,91]
[null,92]
[null,93]
[null,94]
[null,95]
[null,96]
[null,97]
[null,98]
[null,99]
[null,100]

{"sheet":"Cad_Vendedores","index":2,"n_rows":33,"n_cols":7,"rows_kept":33,"cut":false,"hidden":false,"merged":[[9,2,9,5],[11,1,11,6]]}
[]
[]
[]
[]
[]
[]
[]
[]
[]
[null,"Empresa:",{"$f":"Menu!G26","v":"Empresa ABCDE"}]
[]
[null,"Cadastro de Vendedores\nInsira seus vendedores."]
[null,"ITEM","VENDEDOR","TELEFONE","E-MAIL","ENDEREÇO","Meta de Venda Mensal"]
[null,1,"Vendedor 1","1111-1111",null,null,2000]
[null,2,"Vendedor 2","2222-2222",null,null,2000]
[null,3,"Vendedor 3","3333-3333",null,null,2000]
[null,4,"Vendedor 4","4444-4444",null,null,2000]
[null,5,"Vendedor 5","5555-5555",null,null,2000]
[null,6,"Vendedor 6","6666-6666",null,null,2000]
[null,7,"Vendedor 7","7777-7777",null,null,2000]
[null,8,"Vendedor 8","8888-8888",null,null,2000]
[null,9,"Vendedor 9","9999-9999",null,null,2000]
[null,10,"Vendedor 10","0000-0000",null,null,2000]
[null,11]
[null,12]
[null,13]
[null,14]
[null,15]
[null,16]
[null,17]
[null,18]
[null,19]
[null,20]

{"sheet":"Cad_Produtos","index":3,"n_rows":63,"n_cols":3,"rows_kept":63,"cut":false,"hidden":false,"merged":[[9,2,9,5],[11,1,11,2]]}
[]
[]
[]
[]
[]
[]
[]
[]
[]
[null,"Empresa:",{"$f":"Menu!G26","v":"Empresa ABCDE"}]
[]
[null,"Cadastro de Produtos ou Serviços\nInsira os produtos ou serviços oferecidos pela empresa."]
[null,"ITEM","PRODUTO / SERVIÇO"]
[null,1,"Produto 1"]
[null,2,"Produto 2"]
[null,3,"Produto 3"]
[null,4,"Produto 4"]
[null,5,"Produto 5"]
[null,6,"Produto 6"]
[null,7,"Produto 7"]
[null,8,"Produto 8"]
[null,9,"Produto 9"]
[null,10,"Produto 10"]
[null,11]
[null,12]
[null,13]
[null,14]
[null,15]
[null,16]
[null,17]
[null,18]
[null,19]
[null,20]
[null,21]
[null,22]
[null,23]
[null,24]
[null,25]
[null,26]
[null,27]
[null,28]
[null,29]
[null,30]
[null,31]
[null,32]
[null,33]
[null,34]
[null,35]
[null,36]
[null,37]
[null,38]
[null,39]
[null,40]
[null,41]
[null,42]
[null,43]
[null,44]
[null,45]
[null,46]
[null,47]
[null,48]
[null,49]
[null,50]

{"sheet":"Cad_Neg","index":4,"n_rows":1000,"n_cols":14,"rows_kept":1000,"cut":false,"hidden":false,"merged":[[9,2,9,6],[11,1,11,9]]}
[]
[]
[]
[]
[]
[]
[]
[]
[]
[null,"Empresa:",{"$f":"Menu!G26","v":"Empresa ABCDE"}]
[]
[null,"Cadastro de Negociações\nInsira as negociações em andamento e concretizadas."]
[null,"MÊS","VENDEDOR","CLIENTE","PRODUTO / SERVIÇO","ABORDAGEM INICIAL","ENVIO DA PROPOSTA COMERCIAL","VALOR VENDA","Ofertas e Descontos","STATUS DE VENDA","MOTIVO DE CONVERSÃO","MOTIVO DA NÃO CONVERSÃO","PROSPECÇÃO E ABORDAGEM"]
[null,"Janeiro","Vendedor 1","Cliente 1","Produto 1",null,"Sim",500,150,"Concretizada","Qualidade Superior",null,"Redes Sociais",{"$f":"H14-I14","v":350}]
[null,"Janeiro","Vendedor 2","Cliente 2","Produto 2",null,"Não, Sem necessidade de Proposta",600,250,"Declinada",null,"Sem interesse","Market Place",{"$f":"H15-I15","v":350}]
[null,"Fevereiro","Vendedor 3","Cliente 3","Produto 3",null,"Sim",1000,130,"Concretizada","Forma de Pagamento",null,"Indicação",870]
[null,"Fevereiro","Vendedor 2","Cliente 2","Produto 4",null,"Sim",2000,75,"Declinada",null,"Preço Alto","Redes Sociais",1925]
[null,"Janeiro","Vendedor 9",null,null,null,null,3500,350,"Em Negociação",null,null,null,3150]
[null,null,null,null,null,null,null,null,null,null,null,null,null,0]
[null,null,null,null,null,null,null,null,null,null,null,null,null,0]
[null,null,null,null,null,null,null,null,null,null,null,null,null,0]
[null,null,null,null,null,null,null,null,null,null,null,null,null,0]
[null,null,null,null,null,null,null,null,null,null,null,null,null,0]
[null,null,null,null,null,null,null,null,null,null,null,null,null,0]
[null,null,null,null,null,null,null,null,null,null,null,null,null,0]
[null,null,null,null,null,null,null,null,null,null,null,null,null,0]
[null,null,null,null,null,null,null,null,null,null,null,null,null,0]
[null,null,null,null,null,null,null,null,null,null,null,null,null,0]
[null,null,null,null,null,null,null,null,null,null,null,null,null,0]
[null,null,null,null,null,null,null,null,null,null,null,null,null,0]
[null,null,null,null,null,null,null,null,null,null,null,null,null,0]
[null,null,null,null,null,null,null,null,null,null,null,null,null,0]
[null,null,null,null,null,null,null,null,null,null,null,null,null,0]
[null,null,null,null,null,null,null,null,null,null,null,null,null,0]
[null,null,null,null,null,null,null,null,null,null,null,null,null,0]
[null,null,null,null,null,null,null,null,null,null,null,null,null,0]
[null,null,null,null,null,null,null,null,null,null,null,null,null,0]
[null,null,null,null,null,null,null,null,null,null,null,null,null,0]
[null,null,null,null,null,null,null,null,null,null,null,null,null,0]
[null,null,null,null,null,null,null,null,null,null,null,null,null,0]
[null,null,null,null,null,null,null,null,null,null,null,null,null,0]
[null,null,null,null,null,null,null,null,null,null,null,null,null,0]
[null,null,null,null,null,null,null,null,null,null,null,null,null,0]
[null,null,null,null,null,null,null,null,null,null,null,null,null,0]
[null,null,null,null,null,null,null,null,null,null,null,null,null,0]
[null,null,null,null,null,null,null,null,null,null,null,null,null,0]
[null,null,null,null,null,null,null,null,null,null,null,null,null,0]
[null,null,null,null,null,null,null,null,null,null,null,null,null,0]
[null,null,null,null,null,null,null,null,null,null,null,null,null,0]
[null,null,null,null,null,null,null,null,null,null,null,null,null,0]
[null,null,null,null,null,null,null,null,null,null,null,null,null,0]
[null,null,null,null,null,null,null,null,null,null,null,null,null,0]
[null,null,null,null,null,null,null,null,null,null,null,null,null,0]
[null,null,null,null,null,null,null,null,null,null,null,null,null,0]
[null,null,null,null,null,null,null,null,null,null,null,null,null,0]
[null,null,null,null,null,null,null,null,null,null,null,null,null,0]
[null,null,null,null,null,null,null,null,null,null,null,null,null,0]
[null,null,null,null,null,null,null,null,null,null,null,null,null,0]
[null,null,null,null,null,null,null,null,null,null,null,null,null,0]
[null,null,null,null,null,null,null,null,null,null,null,null,null,0]
[null,null,null,null,null,null,null,null,null,null,null,null,null,0]
[null,null,null,null,null,null,null,null,null,null,null,null,null,0]
[null,null,null,null,null,null,null,null,null,null,null,null,null,0]
[null,null,null,null,null,null,null,null,null,null,null,null,null,0]
[null,null,null,null,null,null,null,null,null,null,null,null,null,0]
[null,null,null,null,null,null,null,null,null,null,null,null,null,0]
[null,null,null,null,null,null,null,null,null,null,null,null,null,0]
[null,null,null,null,null,null,null,null,null,null,null,null,null,0]
[null,null,null,null,null,null,null,null,null,null,null,null,null,0]
[null,null,null,null,null,null,null,null,null,null,null,null,null,0]
[null,null,null,null,null,null,null,null,null,null,null,null,null,0]
[null,null,null,null,null,null,null,null,null,null,null,null,null,0]
[null,null,null,null,null,null,null,null,null,null,null,null,null,0]
[null,null,null,null,null,null,null,null,null,null,null,null,null,0]
[null,null,null,null,null,null,null,null,null,null,null,null,null,0]
[null,null,null,null,null,null,null,null,null,null,null,null,null,0]
[null,null,null,null,null,null,null,null,null,null,null,null,null,0]
[null,null,null,null,null,null,null,null,null,null,null,null,null,0]
[null,null,null,null,null,null,null,null,null,null,null,null,null,{"$f":"H79-I79","v":0}]
[null,null,null,null,null,null,null,null,null,null,null,null,null,0]
[null,null,null,null,null,null,null,null,null,null,null,null,null,0]
[null,null,null,null,null,null,null,null,null,null,null,null,null,0]
[null,null,null,null,null,null,null,null,null,null,null,null,null,0]
[null,null,null,null,null,null,null,null,null,null,null,null,null,0]
[null,null,null,null,null,null,null,null,null,null,null,null,null,0]
[null,null,null,null,null,null,null,null,null,null,null,null,null,0]
[null,null,null,null,null,null,null,null,null,null,null,null,null,0]
[null,null,null,null,null,null,null,null,null,null,null,null,null,0]
[null,null,null,null,null,null,null,null,null,null,null,null,null,0]
[null,null,null,null,null,null,null,null,null,null,null,null,null,0]
[null,null,null,null,null,null,null,null,null,null,null,null,null,0]
[null,null,null,null,null,null,null,null,null,null,null,null,null,0]
[null,null,null,null,null,null,null,null,null,null,null,null,null,0]
[null,null,null,null,null,null,null,null,null,null,null,null,null,0]
[null,null,null,null,null,null,null,null,null,null,null,null,null,0]
[null,null,null,null,null,null,null,null,null,null,null,null,null,0]
[null,null,null,null,null,null,null,null,null,null,null,null,null,0]
[null,null,null,null,null,null,null,null,null,null,null,null,null,0]
[null,null,null,null,null,null,null,null,null,null,null,null,null,0]
[null,null,null,null,null,null,null,null,null,null,null,null,null,0]
[null,null,null,null,null,null,null,null,null,null,null,null,null,0]
[null,null,null,null,null,null,null,null,null,null,null,null,null,0]
[null,null,null,null,null,null,null,null,null,null,null,null,null,0]
[null,null,null,null,null,null,null,null,null,null,null,null,null,0]
[null,null,null,null,null,null,null,null,null,null,null,null,null,0]
[null,null,null,null,null,null,null,null,null,null,null,null,null,0]
[null,null,null,null,null,null,null,null,null,null,null,null,null,0]
[null,null,null,null,null,null,null,null,null,null,null,null,null,0]
[null,null,null,null,null,null,null,null,null,null,null,null,null,0]
[null,null,null,null,null,null,null,null,null,null,null,null,null,0]
[null,null,null,null,null,null,null,null,null,null,null,null,null,0]
[null,null,null,null,null,null,null,null,null,null,null,null,null,0]
[null,null,null,null,null,null,null,null,null,null,null,null,null,0]
[null,null,null,null,null,null,null,null,null,null,null,null,null,0]
[null,null,null,null,null,null,null,null,null,null,null,null,null,0]
[null,null,null,null,null,null,null,null,null,null,null,null,null,0]
[null,null,null,null,null,null,null,null,null,null,null,null,null,0]
[null,null,null,null,null,null,null,null,null,null,null,null,null,0]
[null,null,null,null,null,null,null,null,null,null,null,null,null,0]
[null,null,null,null,null,null,null,null,null,null,null,null,null,0]
[null,null,null,null,null,null,null,null,null,null,null,null,null,0]
[null,null,null,null,null,null,null,null,null,null,null,null,null,0]
[null,null,null,null,null,null,null,null,null,null,null,null,null,0]
[null,null,null,null,null,null,null,null,null,null,null,null,null,0]
[null,null,null,null,null,null,null,null,null,null,null,null,null,0]
[null,null,null,null,null,null,null,null,null,null,null,null,null,0]
[null,null,null,null,null,null,null,null,null,null,null,null,null,0]
[null,null,null,null,null,null,null,null,null,null,null,null,null,0]
[null,null,null,null,null,null,null,null,null,null,null,null,null,0]
[null,null,null,null,null,null,null,null,null,null,null,null,null,0]
[null,null,null,null,null,null,null,null,null,null,null,null,null,0]
[null,null,null,null,null,null,null,null,null,null,null,null,null,0]
[null,null,null,null,null,null,null,null,null,null,null,null,null,0]
[null,null,null,null,null,null,null,null,null,null,null,null,null,0]
[null,null,null,null,null,null,null,null,null,null,null,null,null,0]
[null,null,null,null,null,null,null,null,null,null,null,null,null,0]
[null,null,null,null,null,null,null,null,null,null,null,null,null,0]
[null,null,null,null,null,null,null,null,null,null,null,null,null,0]
[null,null,null,null,null,null,null,null,null,null,null,null,null,0]
[null,null,null,null,null,null,null,null,null,null,null,null,null,0]
[null,null,null,null,null,null,null,null,null,null,null,null,null,0]
[null,null,null,null,null,null,null,null,null,null,null,null,null,0]
[null,null,null,null,null,null,null,null,null,null,null,null,null,{"$f":"H143-I143","v":0}]
[null,null,null,null,null,null,null,null,null,null,null,null,null,0]
[null,null,null,null,null,null,null,null,null,null,null,null,null,0]
[null,null,null,null,null,null,null,null,null,null,null,null,null,0]
[null,null,null,null,null,null,null,null,null,null,null,null,null,0]
[null,null,null,null,null,null,null,null,null,null,null,null,null,0]
[null,null,null,null,null,null,null,null,null,null,null,null,null,0]
[null,null,null,null,null,null,null,null,null,null,null,null,null,0]
[null,null,null,null,null,null,null,null,null,null,null,null,null,0]
[null,null,null,null,null,null,null,null,null,null,null,null,null,0]
[null,null,null,null,null,null,null,null,null,null,null,null,null,0]
[null,null,null,null,null,null,null,null,null,null,null,null,null,0]
[null,null,null,null,null,null,null,null,null,null,null,null,null,0]
[null,null,null,null,null,null,null,null,null,null,null,null,null,0]
[null,null,null,null,null,null,null,null,null,null,null,null,null,0]
[null,null,null,null,null,null,null,null,null,null,null,null,null,0]
[null,null,null,null,null,null,null,null,null,null,null,null,null,0]
[null,null,null,null,null,null,null,null,null,null,null,null,null,0]
[null,null,null,null,null,null,null,null,null,null,null,null,null,0]
[null,null,null,null,null,null,null,null,null,null,null,null,null,0]
[null,null,null,null,null,null,null,null,null,null,null,null,null,0]
[null,null,null,null,null,null,null,null,null,null,null,null,null,0]
[null,null,null,null,null,null,null,null,null,null,null,null,null,0]
[null,null,null,null,null,null,null,null,null,null,null,null,null,0]
[null,null,null,null,null,null,null,null,null,null,null,null,null,0]
[null,null,null,null,null,null,null,null,null,null,null,null,null,0]
[null,null,null,null,null,null,null,null,null,null,null,null,null,0]
[null,null,null,null,null,null,null,null,null,null,null,null,null,0]
[null,null,null,null,null,null,null,null,null,null,null,null,null,0]
[null,null,null,null,null,null,null,null,null,null,null,null,null,0]
[null,null,null,null,null,null,null,null,null,null,null,null,null,0]
[null,null,null,null,null,null,null,null,null,null,null,null,null,0]
[null,null,null,null,null,null,null,null,null,null,null,null,null,0]
[null,null,null,null,null,null,null,null,null,null,null,null,null,0]
[null,null,null,null,null,null,null,null,null,null,null,null,null,0]
[null,null,null,null,null,null,null,null,null,null,null,null,null,0]
[null,null,null,null,null,null,null,null,null,null,null,null,null,0]
[null,null,null,null,null,null,null,null,null,null,null,null,null,0]
[null,null,null,null,null,null,null,null,null,null,null,null,null,0]
[null,null,null,null,null,null,null,null,null,null,null,null,null,0]
[null,null,null,null,null,null,null,null,null,null,null,null,null,0]
[null,null,null,null,null,null,null,null,null,null,null,null,null,0]
[null,null,null,null,null,null,null,null,null,null,null,null,null,0]
[null,null,null,null,null,null,null,null,null,null,null,null,null,0]
[null,null,null,null,null,null,null,null,null,null,null,null,null,0]
[null,null,null,null,null,null,null,null,null,null,null,null,null,0]
[null,null,null,null,null,null,null,null,null,null,null,null,null,0]
[null,null,null,null,null,null,null,null,null,null,null,null,null,0]
[null,null,null,null,null,null,null,null,null,null,null,null,null,0]
[null,null,null,null,null,null,null,null,null,null,null,null,null,0]
[null,null,null,null,null,null,null,null,null,null,null,null,null,0]
[null,null,null,null,null,null,null,null,null,null,null,null,null,0]
[null,null,null,null,null,null,null,null,null,null,null,null,null,0]
[null,null,null,null,null,null,null,null,null,null,null,null,null,0]
[null,null,null,null,null,null,null,null,null,null,null,null,null,0]
[null,null,null,null,null,null,null,null,null,null,null,null,null,0]
[null,null,null,null,null,null,null,null,null,null,null,null,null,0]
[null,null,null,null,null,null,null,null,null,null,null,null,null,0]
[null,null,null,null,null,null,null,null,null,null,null,null,null,0]
[null,null,null,null,null,null,null,null,null,null,null,null,null,0]
[null,null,null,null,null,null,null,null,null,null,null,null,null,0]
[null,null,null,null,null,null,null,null,null,null,null,null,null,0]
[null,null,null,null,null,null,null,null,null,null,null,null,null,0]
[null,null,null,null,null,null,null,null,null,null,null,null,null,0]
[null,null,null,null,null,null,null,null,null,null,null,null,null,{"$f":"H207-I207","v":0}]
[null,null,null,null,null,null,null,null,null,null,null,null,null,0]
[null,null,null,null,null,null,null,null,null,null,null,null,null,0]
[null,null,null,null,null,null,null,null,null,null,null,null,null,0]
[null,null,null,null,null,null,null,null,null,null,null,null,null,0]
[null,null,null,null,null,null,null,null,null,null,null,null,null,0]
[null,null,null,null,null,null,null,null,null,null,null,null,null,0]
[null,null,null,null,null,null,null,null,null,null,null,null,null,0]
[null,null,null,null,null,null,null,null,null,null,null,null,null,0]
[null,null,null,null,null,null,null,null,null,null,null,null,null,0]
[null,null,null,null,null,null,null,null,null,null,null,null,null,0]
[null,null,null,null,null,null,null,null,null,null,null,null,null,0]
[null,null,null,null,null,null,null,null,null,null,null,null,null,0]
[null,null,null,null,null,null,null,null,null,null,null,null,null,0]
[null,null,null,null,null,null,null,null,null,null,null,null,null,0]
[null,null,null,null,null,null,null,null,null,null,null,null,null,0]
[null,null,null,null,null,null,null,null,null,null,null,null,null,0]
[null,null,null,null,null,null,null,null,null,null,null,null,null,0]
[null,null,null,null,null,null,null,null,null,null,null,null,null,0]
[null,null,null,null,null,null,null,null,null,null,null,null,null,0]
[null,null,null,null,null,null,null,null,null,null,null,null,null,0]
[null,null,null,null,null,null,null,null,null,null,null,null,null,0]
[null,null,null,null,null,null,null,null,null,null,null,null,null,0]
[null,null,null,null,null,null,null,null,null,null,null,null,null,0]
[null,null,null,null,null,null,null,null,null,null,null,null,null,0]
[null,null,null,null,null,null,null,null,null,null,null,null,null,0]
[null,null,null,null,null,null,null,null,null,null,null,null,null,0]
[null,null,null,null,null,null,null,null,null,null,null,null,null,0]
[null,null,null,null,null,null,null,null,null,null,null,null,null,0]
[null,null,null,null,null,null,null,null,null,null,null,null,null,0]
[null,null,null,null,null,null,null,null,null,null,null,null,null,0]
[null,null,null,null,null,null,null,null,null,null,null,null,null,0]
[null,null,null,null,null,null,null,null,null,null,null,null,null,0]
[null,null,null,null,null,null,null,null,null,null,null,null,null,0]
[null,null,null,null,null,null,null,null,null,null,null,null,null,0]
[null,null,null,null,null,null,null,null,null,null,null,null,null,0]
[null,null,null,null,null,null,null,null,null,null,null,null,null,0]
[null,null,null,null,null,null,null,null,null,null,null,null,null,0]
[null,null,null,null,null,null,null,null,null,null,null,null,null,0]
[null,null,null,null,null,null,null,null,null,null,null,null,null,0]
[null,null,null,null,null,null,null,null,null,null,null,null,null,0]
[null,null,null,null,null,null,null,null,null,null,null,null,null,0]
[null,null,null,null,null,null,null,null,null,null,null,null,null,0]
[null,null,null,null,null,null,null,null,null,null,null,null,null,0]
[null,null,null,null,null,null,null,null,null,null,null,null,null,0]
[null,null,null,null,null,null,null,null,null,null,null,null,null,0]
[null,null,null,null,null,null,null,null,null,null,null,null,null,0]
[null,null,null,null,null,null,null,null,null,null,null,null,null,0]
[null,null,null,null,null,null,null,null,null,null,null,null,null,0]
[null,null,null,null,null,null,null,null,null,null,null,null,null,0]
[null,null,null,null,null,null,null,null,null,null,null,null,null,0]
[null,null,null,null,null,null,null,null,null,null,null,null,null,0]
[null,null,null,null,null,null,null,null,null,null,null,null,null,0]
[null,null,null,null,null,null,null,null,null,null,null,null,null,0]
[null,null,null,null,null,null,null,null,null,null,null,null,null,0]
[null,null,null,null,null,null,null,null,null,null,null,null,null,0]
[null,null,null,null,null,null,null,null,null,null,null,null,null,0]
[null,null,null,null,null,null,null,null,null,null,null,null,null,0]
[null,null,null,null,null,null,null,null,null,null,null,null,null,0]
[null,null,null,null,null,null,null,null,null,null,null,null,null,0]
[null,null,null,null,null,null,null,null,null,null,null,null,null,0]
[null,null,null,null,null,null,null,null,null,null,null,null,null,0]
[null,null,null,null,null,null,null,null,null,null,null,null,null,0]
[null,null,null,null,null,null,null,null,null,null,null,null,null,0]
[null,null,null,null,null,null,null,null,null,null,null,null,null,{"$f":"H271-I271","v":0}]
[null,null,null,null,null,null,null,null,null,null,null,null,null,0]
[null,null,null,null,null,null,null,null,null,null,null,null,null,0]
[null,null,null,null,null,null,null,null,null,null,null,null,null,0]
[null,null,null,null,null,null,null,null,null,null,null,null,null,0]
[null,null,null,null,null,null,null,null,null,null,null,null,null,0]
[null,null,null,null,null,null,null,null,null,null,null,null,null,0]
[null,null,null,null,null,null,null,null,null,null,null,null,null,0]
[null,null,null,null,null,null,null,null,null,null,null,null,null,0]
[null,null,null,null,null,null,null,null,null,null,null,null,null,0]
[null,null,null,null,null,null,null,null,null,null,null,null,null,0]
[null,null,null,null,null,null,null,null,null,null,null,null,null,0]
[null,null,null,null,null,null,null,null,null,null,null,null,null,0]
[null,null,null,null,null,null,null,null,null,null,null,null,null,0]
[null,null,null,null,null,null,null,null,null,null,null,null,null,0]
[null,null,null,null,null,null,null,null,null,null,null,null,null,0]
[null,null,null,null,null,null,null,null,null,null,null,null,null,0]
[null,null,null,null,null,null,null,null,null,null,null,null,null,0]
[null,null,null,null,null,null,null,null,null,null,null,null,null,0]
[null,null,null,null,null,null,null,null,null,null,null,null,null,0]
[null,null,null,null,null,null,null,null,null,null,null,null,null,0]
[null,null,null,null,null,null,null,null,null,null,null,null,null,0]
[null,null,null,null,null,null,null,null,null,null,null,null,null,0]
[null,null,null,null,null,null,null,null,null,null,null,null,null,0]
[null,null,null,null,null,null,null,null,null,null,null,null,null,0]
[null,null,null,null,null,null,null,null,null,null,null,null,null,0]
[null,null,null,null,null,null,null,null,null,null,null,null,null,0]
[null,null,null,null,null,null,null,null,null,null,null,null,null,0]
[null,null,null,null,null,null,null,null,null,null,null,null,null,0]
[null,null,null,null,null,null,null,null,null,null,null,null,null,0]
[null,null,null,null,null,null,null,null,null,null,null,null,null,0]
[null,null,null,null,null,null,null,null,null,null,null,null,null,0]
[null,null,null,null,null,null,null,null,null,null,null,null,null,0]
[null,null,null,null,null,null,null,null,null,null,null,null,null,0]
[null,null,null,null,null,null,null,null,null,null,null,null,null,0]
[null,null,null,null,null,null,null,null,null,null,null,null,null,0]
[null,null,null,null,null,null,null,null,null,null,null,null,null,0]
[null,null,null,null,null,null,null,null,null,null,null,null,null,0]
[null,null,null,null,null,null,null,null,null,null,null,null,null,0]
[null,null,null,null,null,null,null,null,null,null,null,null,null,0]
[null,null,null,null,null,null,null,null,null,null,null,null,null,0]
[null,null,null,null,null,null,null,null,null,null,null,null,null,0]
[null,null,null,null,null,null,null,null,null,null,null,null,null,0]
[null,null,null,null,null,null,null,null,null,null,null,null,null,0]
[null,null,null,null,null,null,null,null,null,null,null,null,null,0]
[null,null,null,null,null,null,null,null,null,null,null,null,null,0]
[null,null,null,null,null,null,null,null,null,null,null,null,null,0]
[null,null,null,null,null,null,null,null,null,null,null,null,null,0]
[null,null,null,null,null,null,null,null,null,null,null,null,null,0]
[null,null,null,null,null,null,null,null,null,null,null,null,null,0]
[null,null,null,null,null,null,null,null,null,null,null,null,null,0]
[null,null,null,null,null,null,null,null,null,null,null,null,null,0]
[null,null,null,null,null,null,null,null,null,null,null,null,null,0]
[null,null,null,null,null,null,null,null,null,null,null,null,null,0]
[null,null,null,null,null,null,null,null,null,null,null,null,null,0]
[null,null,null,null,null,null,null,null,null,null,null,null,null,0]
[null,null,null,null,null,null,null,null,null,null,null,null,null,0]
[null,null,null,null,null,null,null,null,null,null,null,null,null,0]
[null,null,null,null,null,null,null,null,null,null,null,null,null,0]
[null,null,null,null,null,null,null,null,null,null,null,null,null,0]
[null,null,null,null,null,null,null,null,null,null,null,null,null,0]
[null,null,null,null,null,null,null,null,null,null,null,null,null,0]
[null,null,null,null,null,null,null,null,null,null,null,null,null,0]
[null,null,null,null,null,null,null,null,null,null,null,null,null,0]
[null,null,null,null,null,null,null,null,null,null,null,null,null,{"$f":"H335-I335","v":0}]
[null,null,null,null,null,null,null,null,null,null,null,null,null,0]
[null,null,null,null,null,null,null,null,null,null,null,null,null,0]
[null,null,null,null,null,null,null,null,null,null,null,null,null,0]
[null,null,null,null,null,null,null,null,null,null,null,null,null,0]
[null,null,null,null,null,null,null,null,null,null,null,null,null,0]
[null,null,null,null,null,null,null,null,null,null,null,null,null,0]
[null,null,null,null,null,null,null,null,null,null,null,null,null,0]
[null,null,null,null,null,null,null,null,null,null,null,null,null,0]
[null,null,null,null,null,null,null,null,null,null,null,null,null,0]
[null,null,null,null,null,null,null,null,null,null,null,null,null,0]
[null,null,null,null,null,null,null,null,null,null,null,null,null,0]
[null,null,null,null,null,null,null,null,null,null,null,null,null,0]
[null,null,null,null,null,null,null,null,null,null,null,null,null,0]
[null,null,null,null,null,null,null,null,null,null,null,null,null,0]
[null,null,null,null,null,null,null,null,null,null,null,null,null,0]
[null,null,null,null,null,null,null,null,null,null,null,null,null,0]
[null,null,null,null,null,null,null,null,null,null,null,null,null,0]
[null,null,null,null,null,null,null,null,null,null,null,null,null,0]
[null,null,null,null,null,null,null,null,null,null,null,null,null,0]
[null,null,null,null,null,null,null,null,null,null,null,null,null,0]
[null,null,null,null,null,null,null,null,null,null,null,null,null,0]
[null,null,null,null,null,null,null,null,null,null,null,null,null,0]
[null,null,null,null,null,null,null,null,null,null,null,null,null,0]
[null,null,null,null,null,null,null,null,null,null,null,null,null,0]
[null,null,null,null,null,null,null,null,null,null,null,null,null,0]
[null,null,null,null,null,null,null,null,null,null,null,null,null,0]
[null,null,null,null,null,null,null,null,null,null,null,null,null,0]
[null,null,null,null,null,null,null,null,null,null,null,null,null,0]
[null,null,null,null,null,null,null,null,null,null,null,null,null,0]
[null,null,null,null,null,null,null,null,null,null,null,null,null,0]
[null,null,null,null,null,null,null,null,null,null,null,null,null,0]
[null,null,null,null,null,null,null,null,null,null,null,null,null,0]
[null,null,null,null,null,null,null,null,null,null,null,null,null,0]
[null,null,null,null,null,null,null,null,null,null,null,null,null,0]
[null,null,null,null,null,null,null,null,null,null,null,null,null,0]
[null,null,null,null,null,null,null,null,null,null,null,null,null,0]
[null,null,null,null,null,null,null,null,null,null,null,null,null,0]
[null,null,null,null,null,null,null,null,null,null,null,null,null,0]
[null,null,null,null,null,null,null,null,null,null,null,null,null,0]
[null,null,null,null,null,null,null,null,null,null,null,null,null,0]
[null,null,null,null,null,null,null,null,null,null,null,null,null,0]
[null,null,null,null,null,null,null,null,null,null,null,null,null,0]
[null,null,null,null,null,null,null,null,null,null,null,null,null,0]
[null,null,null,null,null,null,null,null,null,null,null,null,null,0]
[null,null,null,null,null,null,null,null,null,null,null,null,null,0]
[null,null,null,null,null,null,null,null,null,null,null,null,null,0]
[null,null,null,null,null,null,null,null,null,null,null,null,null,0]
[null,null,null,null,null,null,null,null,null,null,null,null,null,0]
[null,null,null,null,null,null,null,null,null,null,null,null,null,0]
[null,null,null,null,null,null,null,null,null,null,null,null,null,0]
[null,null,null,null,null,null,null,null,null,null,null,null,null,0]
[null,null,null,null,null,null,null,null,null,null,null,null,null,0]
[null,null,null,null,null,null,null,null,null,null,null,null,null,0]
[null,null,null,null,null,null,null,null,null,null,null,null,null,0]
[null,null,null,null,null,null,null,null,null,null,null,null,null,0]
[null,null,null,null,null,null,null,null,null,null,null,null,null,0]
[null,null,null,null,null,null,null,null,null,null,null,null,null,0]
[null,null,null,null,null,null,null,null,null,null,null,null,null,0]
[null,null,null,null,null,null,null,null,null,null,null,null,null,0]
[null,null,null,null,null,null,null,null,null,null,null,null,null,0]
[null,null,null,null,null,null,null,null,null,null,null,null,null,0]
[null,null,null,null,null,null,null,null,null,null,null,null,null,0]
[null,null,null,null,null,null,null,null,null,null,null,null,null,0]
[null,null,null,null,null,null,null,null,null,null,null,null,null,{"$f":"H399-I399","v":0}]
[null,null,null,null,null,null,null,null,null,null,null,null,null,0]
[null,null,null,null,null,null,null,null,null,null,null,null,null,0]
[null,null,null,null,null,null,null,null,null,null,null,null,null,0]
[null,null,null,null,null,null,null,null,null,null,null,null,null,0]
[null,null,null,null,null,null,null,null,null,null,null,null,null,0]
[null,null,null,null,null,null,null,null,null,null,null,null,null,0]
[null,null,null,null,null,null,null,null,null,null,null,null,null,0]
[null,null,null,null,null,null,null,null,null,null,null,null,null,0]
[null,null,null,null,null,null,null,null,null,null,null,null,null,0]
[null,null,null,null,null,null,null,null,null,null,null,null,null,0]
[null,null,null,null,null,null,null,null,null,null,null,null,null,0]
[null,null,null,null,null,null,null,null,null,null,null,null,null,0]
[null,null,null,null,null,null,null,null,null,null,null,null,null,0]
[null,null,null,null,null,null,null,null,null,null,null,null,null,0]
[null,null,null,null,null,null,null,null,null,null,null,null,null,0]
[null,null,null,null,null,null,null,null,null,null,null,null,null,0]
[null,null,null,null,null,null,null,null,null,null,null,null,null,0]
[null,null,null,null,null,null,null,null,null,null,null,null,null,0]
[null,null,null,null,null,null,null,null,null,null,null,null,null,0]
[null,null,null,null,null,null,null,null,null,null,null,null,null,0]
[null,null,null,null,null,null,null,null,null,null,null,null,null,0]
[null,null,null,null,null,null,null,null,null,null,null,null,null,0]
[null,null,null,null,null,null,null,null,null,null,null,null,null,0]
[null,null,null,null,null,null,null,null,null,null,null,null,null,0]
[null,null,null,null,null,null,null,null,null,null,null,null,null,0]
[null,null,null,null,null,null,null,null,null,null,null,null,null,0]
[null,null,null,null,null,null,null,null,null,null,null,null,null,0]
[null,null,null,null,null,null,null,null,null,null,null,null,null,0]
[null,null,null,null,null,null,null,null,null,null,null,null,null,0]
[null,null,null,null,null,null,null,null,null,null,null,null,null,0]
[null,null,null,null,null,null,null,null,null,null,null,null,null,0]
[null,null,null,null,null,null,null,null,null,null,null,null,null,0]
[null,null,null,null,null,null,null,null,null,null,null,null,null,0]
[null,null,null,null,null,null,null,null,null,null,null,null,null,0]
[null,null,null,null,null,null,null,null,null,null,null,null,null,0]
[null,null,null,null,null,null,null,null,null,null,null,null,null,0]
[null,null,null,null,null,null,null,null,null,null,null,null,null,0]
[null,null,null,null,null,null,null,null,null,null,null,null,null,0]
[null,null,null,null,null,null,null,null,null,null,null,null,null,0]
[null,null,null,null,null,null,null,null,null,null,null,null,null,0]
[null,null,null,null,null,null,null,null,null,null,null,null,null,0]
[null,null,null,null,null,null,null,null,null,null,null,null,null,0]
[null,null,null,null,null,null,null,null,null,null,null,null,null,0]
[null,null,null,null,null,null,null,null,null,null,null,null,null,0]
[null,null,null,null,null,null,null,null,null,null,null,null,null,0]
[null,null,null,null,null,null,null,null,null,null,null,null,null,0]
[null,null,null,null,null,null,null,null,null,null,null,null,null,0]
[null,null,null,null,null,null,null,null,null,null,null,null,null,0]
[null,null,null,null,null,null,null,null,null,null,null,null,null,0]
[null,null,null,null,null,null,null,null,null,null,null,null,null,0]
[null,null,null,null,null,null,null,null,null,null,null,null,null,0]
[null,null,null,null,null,null,null,null,null,null,null,null,null,0]
[null,null,null,null,null,null,null,null,null,null,null,null,null,0]
[null,null,null,null,null,null,null,null,null,null,null,null,null,0]
[null,null,null,null,null,null,null,null,null,null,null,null,null,0]
[null,null,null,null,null,null,null,null,null,null,null,null,null,0]
[null,null,null,null,null,null,null,null,null,null,null,null,null,0]
[null,null,null,null,null,null,null,null,null,null,null,null,null,0]
[null,null,null,null,null,null,null,null,null,null,null,null,null,0]
[null,null,null,null,null,null,null,null,null,null,null,null,null,0]
[null,null,null,null,null,null,null,null,null,null,null,null,null,0]
[null,null,null,null,null,null,null,null,null,null,null,null,null,0]
[null,null,null,null,null,null,null,null,null,null,null,null,null,0]
[null,null,null,null,null,null,null,null,null,null,null,null,null,{"$f":"H463-I463","v":0}]
[null,null,null,null,null,null,null,null,null,null,null,null,null,0]
[null,null,null,null,null,null,null,null,null,null,null,null,null,0]
[null,null,null,null,null,null,null,null,null,null,null,null,null,0]
[null,null,null,null,null,null,null,null,null,null,null,null,null,0]
[null,null,null,null,null,null,null,null,null,null,null,null,null,0]
[null,null,null,null,null,null,null,null,null,null,null,null,null,0]
[null,null,null,null,null,null,null,null,null,null,null,null,null,0]
[null,null,null,null,null,null,null,null,null,null,null,null,null,0]
[null,null,null,null,null,null,null,null,null,null,null,null,null,0]
[null,null,null,null,null,null,null,null,null,null,null,null,null,0]
[null,null,null,null,null,null,null,null,null,null,null,null,null,0]
[null,null,null,null,null,null,null,null,null,null,null,null,null,0]
[null,null,null,null,null,null,null,null,null,null,null,null,null,0]
[null,null,null,null,null,null,null,null,null,null,null,null,null,0]
[null,null,null,null,null,null,null,null,null,null,null,null,null,0]
[null,null,null,null,null,null,null,null,null,null,null,null,null,0]
[null,null,null,null,null,null,null,null,null,null,null,null,null,0]
[null,null,null,null,null,null,null,null,null,null,null,null,null,0]
[null,null,null,null,null,null,null,null,null,null,null,null,null,0]
[null,null,null,null,null,null,null,null,null,null,null,null,null,0]
[null,null,null,null,null,null,null,null,null,null,null,null,null,0]
[null,null,null,null,null,null,null,null,null,null,null,null,null,0]
[null,null,null,null,null,null,null,null,null,null,null,null,null,0]
[null,null,null,null,null,null,null,null,null,null,null,null,null,0]
[null,null,null,null,null,null,null,null,null,null,null,null,null,0]
[null,null,null,null,null,null,null,null,null,null,null,null,null,0]
[null,null,null,null,null,null,null,null,null,null,null,null,null,0]
[null,null,null,null,null,null,null,null,null,null,null,null,null,0]
[null,null,null,null,null,null,null,null,null,null,null,null,null,0]
[null,null,null,null,null,null,null,null,null,null,null,null,null,0]
[null,null,null,null,null,null,null,null,null,null,null,null,null,0]
[null,null,null,null,null,null,null,null,null,null,null,null,null,0]
[null,null,null,null,null,null,null,null,null,null,null,null,null,0]
[null,null,null,null,null,null,null,null,null,null,null,null,null,0]
[null,null,null,null,null,null,null,null,null,null,null,null,null,0]
[null,null,null,null,null,null,null,null,null,null,null,null,null,0]
[null,null,null,null,null,null,null,null,null,null,null,null,null,0]
[null,null,null,null,null,null,null,null,null,null,null,null,null,0]
[null,null,null,null,null,null,null,null,null,null,null,null,null,0]
[null,null,null,null,null,null,null,null,null,null,null,null,null,0]
[null,null,null,null,null,null,null,null,null,null,null,null,null,0]
[null,null,null,null,null,null,null,null,null,null,null,null,null,0]
[null,null,null,null,null,null,null,null,null,null,null,null,null,0]
[null,null,null,null,null,null,null,null,null,null,null,null,null,0]
[null,null,null,null,null,null,null,null,null,null,null,null,null,0]
[null,null,null,null,null,null,null,null,null,null,null,null,null,0]
[null,null,null,null,null,null,null,null,null,null,null,null,null,0]
[null,null,null,null,null,null,null,null,null,null,null,null,null,0]
[null,null,null,null,null,null,null,null,null,null,null,null,null,0]
[null,null,null,null,null,null,null,null,null,null,null,null,null,0]
[null,null,null,null,null,null,null,null,null,null,null,null,null,0]
[null,null,null,null,null,null,null,null,null,null,null,null,null,0]
[null,null,null,null,null,null,null,null,null,null,null,null,null,0]
[null,null,null,null,null,null,null,null,null,null,null,null,null,0]
[null,null,null,null,null,null,null,null,null,null,null,null,null,0]
[null,null,null,null,null,null,null,null,null,null,null,null,null,0]
[null,null,null,null,null,null,null,null,null,null,null,null,null,0]
[null,null,null,null,null,null,null,null,null,null,null,null,null,0]
[null,null,null,null,null,null,null,null,null,null,null,null,null,0]
[null,null,null,null,null,null,null,null,null,null,null,null,null,0]
[null,null,null,null,null,null,null,null,null,null,null,null,null,0]
[null,null,null,null,null,null,null,null,null,null,null,null,null,0]
[null,null,null,null,null,null,null,null,null,null,null,null,null,0]
[null,null,null,null,null,null,null,null,null,null,null,null,null,{"$f":"H527-I527","v":0}]
[null,null,null,null,null,null,null,null,null,null,null,null,null,0]
[null,null,null,null,null,null,null,null,null,null,null,null,null,0]
[null,null,null,null,null,null,null,null,null,null,null,null,null,0]
[null,null,null,null,null,null,null,null,null,null,null,null,null,0]
[null,null,null,null,null,null,null,null,null,null,null,null,null,0]
[null,null,null,null,null,null,null,null,null,null,null,null,null,0]
[null,null,null,null,null,null,null,null,null,null,null,null,null,0]
[null,null,null,null,null,null,null,null,null,null,null,null,null,0]
[null,null,null,null,null,null,null,null,null,null,null,null,null,0]
[null,null,null,null,null,null,null,null,null,null,null,null,null,0]
[null,null,null,null,null,null,null,null,null,null,null,null,null,0]
[null,null,null,null,null,null,null,null,null,null,null,null,null,0]
[null,null,null,null,null,null,null,null,null,null,null,null,null,0]
[null,null,null,null,null,null,null,null,null,null,null,null,null,0]
[null,null,null,null,null,null,null,null,null,null,null,null,null,0]
[null,null,null,null,null,null,null,null,null,null,null,null,null,0]
[null,null,null,null,null,null,null,null,null,null,null,null,null,0]
[null,null,null,null,null,null,null,null,null,null,null,null,null,0]
[null,null,null,null,null,null,null,null,null,null,null,null,null,0]
[null,null,null,null,null,null,null,null,null,null,null,null,null,0]
[null,null,null,null,null,null,null,null,null,null,null,null,null,0]
[null,null,null,null,null,null,null,null,null,null,null,null,null,0]
[null,null,null,null,null,null,null,null,null,null,null,null,null,0]
[null,null,null,null,null,null,null,null,null,null,null,null,null,0]
[null,null,null,null,null,null,null,null,null,null,null,null,null,0]
[null,null,null,null,null,null,null,null,null,null,null,null,null,0]
[null,null,null,null,null,null,null,null,null,null,null,null,null,0]
[null,null,null,null,null,null,null,null,null,null,null,null,null,0]
[null,null,null,null,null,null,null,null,null,null,null,null,null,0]
[null,null,null,null,null,null,null,null,null,null,null,null,null,0]
[null,null,null,null,null,null,null,null,null,null,null,null,null,0]
[null,null,null,null,null,null,null,null,null,null,null,null,null,0]
[null,null,null,null,null,null,null,null,null,null,null,null,null,0]
[null,null,null,null,null,null,null,null,null,null,null,null,null,0]
[null,null,null,null,null,null,null,null,null,null,null,null,null,0]
[null,null,null,null,null,null,null,null,null,null,null,null,null,0]
[null,null,null,null,null,null,null,null,null,null,null,null,null,0]
[null,null,null,null,null,null,null,null,null,null,null,null,null,0]
[null,null,null,null,null,null,null,null,null,null,null,null,null,0]
[null,null,null,null,null,null,null,null,null,null,null,null,null,0]
[null,null,null,null,null,null,null,null,null,null,null,null,null,0]
[null,null,null,null,null,null,null,null,null,null,null,null,null,0]
[null,null,null,null,null,null,null,null,null,null,null,null,null,0]
[null,null,null,null,null,null,null,null,null,null,null,null,null,0]
[null,null,null,null,null,null,null,null,null,null,null,null,null,0]
[null,null,null,null,null,null,null,null,null,null,null,null,null,0]
[null,null,null,null,null,null,null,null,null,null,null,null,null,0]
[null,null,null,null,null,null,null,null,null,null,null,null,null,0]
[null,null,null,null,null,null,null,null,null,null,null,null,null,0]
[null,null,null,null,null,null,null,null,null,null,null,null,null,0]
[null,null,null,null,null,null,null,null,null,null,null,null,null,0]
[null,null,null,null,null,null,null,null,null,null,null,null,null,0]
[null,null,null,null,null,null,null,null,null,null,null,null,null,0]
[null,null,null,null,null,null,null,null,null,null,null,null,null,0]
[null,null,null,null,null,null,null,null,null,null,null,null,null,0]
[null,null,null,null,null,null,null,null,null,null,null,null,null,0]
[null,null,null,null,null,null,null,null,null,null,null,null,null,0]
[null,null,null,null,null,null,null,null,null,null,null,null,null,0]
[null,null,null,null,null,null,null,null,null,null,null,null,null,0]
[null,null,null,null,null,null,null,null,null,null,null,null,null,0]
[null,null,null,null,null,null,null,null,null,null,null,null,null,0]
[null,null,null,null,null,null,null,null,null,null,null,null,null,0]
[null,null,null,null,null,null,null,null,null,null,null,null,null,0]
[null,null,null,null,null,null,null,null,null,null,null,null,null,{"$f":"H591-I591","v":0}]
[null,null,null,null,null,null,null,null,null,null,null,null,null,0]
[null,null,null,null,null,null,null,null,null,null,null,null,null,0]
[null,null,null,null,null,null,null,null,null,null,null,null,null,0]
[null,null,null,null,null,null,null,null,null,null,null,null,null,0]
[null,null,null,null,null,null,null,null,null,null,null,null,null,0]
[null,null,null,null,null,null,null,null,null,null,null,null,null,0]
[null,null,null,null,null,null,null,null,null,null,null,null,null,0]
[null,null,null,null,null,null,null,null,null,null,null,null,null,0]
[null,null,null,null,null,null,null,null,null,null,null,null,null,0]
[null,null,null,null,null,null,null,null,null,null,null,null,null,0]
[null,null,null,null,null,null,null,null,null,null,null,null,null,0]
[null,null,null,null,null,null,null,null,null,null,null,null,null,0]
[null,null,null,null,null,null,null,null,null,null,null,null,null,0]
[null,null,null,null,null,null,null,null,null,null,null,null,null,0]
[null,null,null,null,null,null,null,null,null,null,null,null,null,0]
[null,null,null,null,null,null,null,null,null,null,null,null,null,0]
[null,null,null,null,null,null,null,null,null,null,null,null,null,0]
[null,null,null,null,null,null,null,null,null,null,null,null,null,0]
[null,null,null,null,null,null,null,null,null,null,null,null,null,0]
[null,null,null,null,null,null,null,null,null,null,null,null,null,0]
[null,null,null,null,null,null,null,null,null,null,null,null,null,0]
[null,null,null,null,null,null,null,null,null,null,null,null,null,0]
[null,null,null,null,null,null,null,null,null,null,null,null,null,0]
[null,null,null,null,null,null,null,null,null,null,null,null,null,0]
[null,null,null,null,null,null,null,null,null,null,null,null,null,0]
[null,null,null,null,null,null,null,null,null,null,null,null,null,0]
[null,null,null,null,null,null,null,null,null,null,null,null,null,0]
[null,null,null,null,null,null,null,null,null,null,null,null,null,0]
[null,null,null,null,null,null,null,null,null,null,null,null,null,0]
[null,null,null,null,null,null,null,null,null,null,null,null,null,0]
[null,null,null,null,null,null,null,null,null,null,null,null,null,0]
[null,null,null,null,null,null,null,null,null,null,null,null,null,0]
[null,null,null,null,null,null,null,null,null,null,null,null,null,0]
[null,null,null,null,null,null,null,null,null,null,null,null,null,0]
[null,null,null,null,null,null,null,null,null,null,null,null,null,0]
[null,null,null,null,null,null,null,null,null,null,null,null,null,0]
[null,null,null,null,null,null,null,null,null,null,null,null,null,0]
[null,null,null,null,null,null,null,null,null,null,null,null,null,0]
[null,null,null,null,null,null,null,null,null,null,null,null,null,0]
[null,null,null,null,null,null,null,null,null,null,null,null,null,0]
[null,null,null,null,null,null,null,null,null,null,null,null,null,0]
[null,null,null,null,null,null,null,null,null,null,null,null,null,0]
[null,null,null,null,null,null,null,null,null,null,null,null,null,0]
[null,null,null,null,null,null,null,null,null,null,null,null,null,0]
[null,null,null,null,null,null,null,null,null,null,null,null,null,0]
[null,null,null,null,null,null,null,null,null,null,null,null,null,0]
[null,null,null,null,null,null,null,null,null,null,null,null,null,0]
[null,null,null,null,null,null,null,null,null,null,null,null,null,0]
[null,null,null,null,null,null,null,null,null,null,null,null,null,0]
[null,null,null,null,null,null,null,null,null,null,null,null,null,0]
[null,null,null,null,null,null,null,null,null,null,null,null,null,0]
[null,null,null,null,null,null,null,null,null,null,null,null,null,0]
[null,null,null,null,null,null,null,null,null,null,null,null,null,0]
[null,null,null,null,null,null,null,null,null,null,null,null,null,0]
[null,null,null,null,null,null,null,null,null,null,null,null,null,0]
[null,null,null,null,null,null,null,null,null,null,null,null,null,0]
[null,null,null,null,null,null,null,null,null,null,null,null,null,0]
[null,null,null,null,null,null,null,null,null,null,null,null,null,0]
[null,null,null,null,null,null,null,null,null,null,null,null,null,0]
[null,null,null,null,null,null,null,null,null,null,null,null,null,0]
[null,null,null,null,null,null,null,null,null,null,null,null,null,0]
[null,null,null,null,null,null,null,null,null,null,null,null,null,0]
[null,null,null,null,null,null,null,null,null,null,null,null,null,0]
[null,null,null,null,null,null,null,null,null,null,null,null,null,{"$f":"H655-I655","v":0}]
[null,null,null,null,null,null,null,null,null,null,null,null,null,0]
[null,null,null,null,null,null,null,null,null,null,null,null,null,0]
[null,null,null,null,null,null,null,null,null,null,null,null,null,0]
[null,null,null,null,null,null,null,null,null,null,null,null,null,0]
[null,null,null,null,null,null,null,null,null,null,null,null,null,0]
[null,null,null,null,null,null,null,null,null,null,null,null,null,0]
[null,null,null,null,null,null,null,null,null,null,null,null,null,0]
[null,null,null,null,null,null,null,null,null,null,null,null,null,0]
[null,null,null,null,null,null,null,null,null,null,null,null,null,0]
[null,null,null,null,null,null,null,null,null,null,null,null,null,0]
[null,null,null,null,null,null,null,null,null,null,null,null,null,0]
[null,null,null,null,null,null,null,null,null,null,null,null,null,0]
[null,null,null,null,null,null,null,null,null,null,null,null,null,0]
[null,null,null,null,null,null,null,null,null,null,null,null,null,0]
[null,null,null,null,null,null,null,null,null,null,null,null,null,0]
[null,null,null,null,null,null,null,null,null,null,null,null,null,0]
[null,null,null,null,null,null,null,null,null,null,null,null,null,0]
[null,null,null,null,null,null,null,null,null,null,null,null,null,0]
[null,null,null,null,null,null,null,null,null,null,null,null,null,0]
[null,null,null,null,null,null,null,null,null,null,null,null,null,0]
[null,null,null,null,null,null,null,null,null,null,null,null,null,0]
[null,null,null,null,null,null,null,null,null,null,null,null,null,0]
[null,null,null,null,null,null,null,null,null,null,null,null,null,0]
[null,null,null,null,null,null,null,null,null,null,null,null,null,0]
[null,null,null,null,null,null,null,null,null,null,null,null,null,0]
[null,null,null,null,null,null,null,null,null,null,null,null,null,0]
[null,null,null,null,null,null,null,null,null,null,null,null,null,0]
[null,null,null,null,null,null,null,null,null,null,null,null,null,0]
[null,null,null,null,null,null,null,null,null,null,null,null,null,0]
[null,null,null,null,null,null,null,null,null,null,null,null,null,0]
[null,null,null,null,null,null,null,null,null,null,null,null,null,0]
[null,null,null,null,null,null,null,null,null,null,null,null,null,0]
[null,null,null,null,null,null,null,null,null,null,null,null,null,0]
[null,null,null,null,null,null,null,null,null,null,null,null,null,0]
[null,null,null,null,null,null,null,null,null,null,null,null,null,0]
[null,null,null,null,null,null,null,null,null,null,null,null,null,0]
[null,null,null,null,null,null,null,null,null,null,null,null,null,0]
[null,null,null,null,null,null,null,null,null,null,null,null,null,0]
[null,null,null,null,null,null,null,null,null,null,null,null,null,0]
[null,null,null,null,null,null,null,null,null,null,null,null,null,0]
[null,null,null,null,null,null,null,null,null,null,null,null,null,0]
[null,null,null,null,null,null,null,null,null,null,null,null,null,0]
[null,null,null,null,null,null,null,null,null,null,null,null,null,0]
[null,null,null,null,null,null,null,null,null,null,null,null,null,0]
[null,null,null,null,null,null,null,null,null,null,null,null,null,0]
[null,null,null,null,null,null,null,null,null,null,null,null,null,0]
[null,null,null,null,null,null,null,null,null,null,null,null,null,0]
[null,null,null,null,null,null,null,null,null,null,null,null,null,0]
[null,null,null,null,null,null,null,null,null,null,null,null,null,0]
[null,null,null,null,null,null,null,null,null,null,null,null,null,0]
[null,null,null,null,null,null,null,null,null,null,null,null,null,0]
[null,null,null,null,null,null,null,null,null,null,null,null,null,0]
[null,null,null,null,null,null,null,null,null,null,null,null,null,0]
[null,null,null,null,null,null,null,null,null,null,null,null,null,0]
[null,null,null,null,null,null,null,null,null,null,null,null,null,0]
[null,null,null,null,null,null,null,null,null,null,null,null,null,0]
[null,null,null,null,null,null,null,null,null,null,null,null,null,0]
[null,null,null,null,null,null,null,null,null,null,null,null,null,0]
[null,null,null,null,null,null,null,null,null,null,null,null,null,0]
[null,null,null,null,null,null,null,null,null,null,null,null,null,0]
[null,null,null,null,null,null,null,null,null,null,null,null,null,0]
[null,null,null,null,null,null,null,null,null,null,null,null,null,0]
[null,null,null,null,null,null,null,null,null,null,null,null,null,0]
[null,null,null,null,null,null,null,null,null,null,null,null,null,{"$f":"H719-I719","v":0}]
[null,null,null,null,null,null,null,null,null,null,null,null,null,0]
[null,null,null,null,null,null,null,null,null,null,null,null,null,0]
[null,null,null,null,null,null,null,null,null,null,null,null,null,0]
[null,null,null,null,null,null,null,null,null,null,null,null,null,0]
[null,null,null,null,null,null,null,null,null,null,null,null,null,0]
[null,null,null,null,null,null,null,null,null,null,null,null,null,0]
[null,null,null,null,null,null,null,null,null,null,null,null,null,0]
[null,null,null,null,null,null,null,null,null,null,null,null,null,0]
[null,null,null,null,null,null,null,null,null,null,null,null,null,0]
[null,null,null,null,null,null,null,null,null,null,null,null,null,0]
[null,null,null,null,null,null,null,null,null,null,null,null,null,0]
[null,null,null,null,null,null,null,null,null,null,null,null,null,0]
[null,null,null,null,null,null,null,null,null,null,null,null,null,0]
[null,null,null,null,null,null,null,null,null,null,null,null,null,0]
[null,null,null,null,null,null,null,null,null,null,null,null,null,0]
[null,null,null,null,null,null,null,null,null,null,null,null,null,0]
[null,null,null,null,null,null,null,null,null,null,null,null,null,0]
[null,null,null,null,null,null,null,null,null,null,null,null,null,0]
[null,null,null,null,null,null,null,null,null,null,null,null,null,0]
[null,null,null,null,null,null,null,null,null,null,null,null,null,0]
[null,null,null,null,null,null,null,null,null,null,null,null,null,0]
[null,null,null,null,null,null,null,null,null,null,null,null,null,0]
[null,null,null,null,null,null,null,null,null,null,null,null,null,0]
[null,null,null,null,null,null,null,null,null,null,null,null,null,0]
[null,null,null,null,null,null,null,null,null,null,null,null,null,0]
[null,null,null,null,null,null,null,null,null,null,null,null,null,0]
[null,null,null,null,null,null,null,null,null,null,null,null,null,0]
[null,null,null,null,null,null,null,null,null,null,null,null,null,0]
[null,null,null,null,null,null,null,null,null,null,null,null,null,0]
[null,null,null,null,null,null,null,null,null,null,null,null,null,0]
[null,null,null,null,null,null,null,null,null,null,null,null,null,0]
[null,null,null,null,null,null,null,null,null,null,null,null,null,0]
[null,null,null,null,null,null,null,null,null,null,null,null,null,0]
[null,null,null,null,null,null,null,null,null,null,null,null,null,0]
[null,null,null,null,null,null,null,null,null,null,null,null,null,0]
[null,null,null,null,null,null,null,null,null,null,null,null,null,0]
[null,null,null,null,null,null,null,null,null,null,null,null,null,0]
[null,null,null,null,null,null,null,null,null,null,null,null,null,0]
[null,null,null,null,null,null,null,null,null,null,null,null,null,0]
[null,null,null,null,null,null,null,null,null,null,null,null,null,0]
[null,null,null,null,null,null,null,null,null,null,null,null,null,0]
[null,null,null,null,null,null,null,null,null,null,null,null,null,0]
[null,null,null,null,null,null,null,null,null,null,null,null,null,0]
[null,null,null,null,null,null,null,null,null,null,null,null,null,0]
[null,null,null,null,null,null,null,null,null,null,null,null,null,0]
[null,null,null,null,null,null,null,null,null,null,null,null,null,0]
[null,null,null,null,null,null,null,null,null,null,null,null,null,0]
[null,null,null,null,null,null,null,null,null,null,null,null,null,0]
[null,null,null,null,null,null,null,null,null,null,null,null,null,0]
[null,null,null,null,null,null,null,null,null,null,null,null,null,0]
[null,null,null,null,null,null,null,null,null,null,null,null,null,0]
[null,null,null,null,null,null,null,null,null,null,null,null,null,0]
[null,null,null,null,null,null,null,null,null,null,null,null,null,0]
[null,null,null,null,null,null,null,null,null,null,null,null,null,0]
[null,null,null,null,null,null,null,null,null,null,null,null,null,0]
[null,null,null,null,null,null,null,null,null,null,null,null,null,0]
[null,null,null,null,null,null,null,null,null,null,null,null,null,0]
[null,null,null,null,null,null,null,null,null,null,null,null,null,0]
[null,null,null,null,null,null,null,null,null,null,null,null,null,0]
[null,null,null,null,null,null,null,null,null,null,null,null,null,0]
[null,null,null,null,null,null,null,null,null,null,null,null,null,0]
[null,null,null,null,null,null,null,null,null,null,null,null,null,0]
[null,null,null,null,null,null,null,null,null,null,null,null,null,0]
[null,null,null,null,null,null,null,null,null,null,null,null,null,{"$f":"H783-I783","v":0}]
[null,null,null,null,null,null,null,null,null,null,null,null,null,0]
[null,null,null,null,null,null,null,null,null,null,null,null,null,0]
[null,null,null,null,null,null,null,null,null,null,null,null,null,0]
[null,null,null,null,null,null,null,null,null,null,null,null,null,0]
[null,null,null,null,null,null,null,null,null,null,null,null,null,0]
[null,null,null,null,null,null,null,null,null,null,null,null,null,0]
[null,null,null,null,null,null,null,null,null,null,null,null,null,0]
[null,null,null,null,null,null,null,null,null,null,null,null,null,0]
[null,null,null,null,null,null,null,null,null,null,null,null,null,0]
[null,null,null,null,null,null,null,null,null,null,null,null,null,0]
[null,null,null,null,null,null,null,null,null,null,null,null,null,0]
[null,null,null,null,null,null,null,null,null,null,null,null,null,0]
[null,null,null,null,null,null,null,null,null,null,null,null,null,0]
[null,null,null,null,null,null,null,null,null,null,null,null,null,0]
[null,null,null,null,null,null,null,null,null,null,null,null,null,0]
[null,null,null,null,null,null,null,null,null,null,null,null,null,0]
[null,null,null,null,null,null,null,null,null,null,null,null,null,0]
[null,null,null,null,null,null,null,null,null,null,null,null,null,0]
[null,null,null,null,null,null,null,null,null,null,null,null,null,0]
[null,null,null,null,null,null,null,null,null,null,null,null,null,0]
[null,null,null,null,null,null,null,null,null,null,null,null,null,0]
[null,null,null,null,null,null,null,null,null,null,null,null,null,0]
[null,null,null,null,null,null,null,null,null,null,null,null,null,0]
[null,null,null,null,null,null,null,null,null,null,null,null,null,0]
[null,null,null,null,null,null,null,null,null,null,null,null,null,0]
[null,null,null,null,null,null,null,null,null,null,null,null,null,0]
[null,null,null,null,null,null,null,null,null,null,null,null,null,0]
[null,null,null,null,null,null,null,null,null,null,null,null,null,0]
[null,null,null,null,null,null,null,null,null,null,null,null,null,0]
[null,null,null,null,null,null,null,null,null,null,null,null,null,0]
[null,null,null,null,null,null,null,null,null,null,null,null,null,0]
[null,null,null,null,null,null,null,null,null,null,null,null,null,0]
[null,null,null,null,null,null,null,null,null,null,null,null,null,0]
[null,null,null,null,null,null,null,null,null,null,null,null,null,0]
[null,null,null,null,null,null,null,null,null,null,null,null,null,0]
[null,null,null,null,null,null,null,null,null,null,null,null,null,0]
[null,null,null,null,null,null,null,null,null,null,null,null,null,0]
[null,null,null,null,null,null,null,null,null,null,null,null,null,0]
[null,null,null,null,null,null,null,null,null,null,null,null,null,0]
[null,null,null,null,null,null,null,null,null,null,null,null,null,0]
[null,null,null,null,null,null,null,null,null,null,null,null,null,0]
[null,null,null,null,null,null,null,null,null,null,null,null,null,0]
[null,null,null,null,null,null,null,null,null,null,null,null,null,0]
[null,null,null,null,null,null,null,null,null,null,null,null,null,0]
[null,null,null,null,null,null,null,null,null,null,null,null,null,0]
[null,null,null,null,null,null,null,null,null,null,null,null,null,0]
[null,null,null,null,null,null,null,null,null,null,null,null,null,0]
[null,null,null,null,null,null,null,null,null,null,null,null,null,0]
[null,null,null,null,null,null,null,null,null,null,null,null,null,0]
[null,null,null,null,null,null,null,null,null,null,null,null,null,0]
[null,null,null,null,null,null,null,null,null,null,null,null,null,0]
[null,null,null,null,null,null,null,null,null,null,null,null,null,0]
[null,null,null,null,null,null,null,null,null,null,null,null,null,0]
[null,null,null,null,null,null,null,null,null,null,null,null,null,0]
[null,null,null,null,null,null,null,null,null,null,null,null,null,0]
[null,null,null,null,null,null,null,null,null,null,null,null,null,0]
[null,null,null,null,null,null,null,null,null,null,null,null,null,0]
[null,null,null,null,null,null,null,null,null,null,null,null,null,0]
[null,null,null,null,null,null,null,null,null,null,null,null,null,0]
[null,null,null,null,null,null,null,null,null,null,null,null,null,0]
[null,null,null,null,null,null,null,null,null,null,null,null,null,0]
[null,null,null,null,null,null,null,null,null,null,null,null,null,0]
[null,null,null,null,null,null,null,null,null,null,null,null,null,0]
[null,null,null,null,null,null,null,null,null,null,null,null,null,{"$f":"H847-I847","v":0}]
[null,null,null,null,null,null,null,null,null,null,null,null,null,0]
[null,null,null,null,null,null,null,null,null,null,null,null,null,0]
[null,null,null,null,null,null,null,null,null,null,null,null,null,0]
[null,null,null,null,null,null,null,null,null,null,null,null,null,0]
[null,null,null,null,null,null,null,null,null,null,null,null,null,0]
[null,null,null,null,null,null,null,null,null,null,null,null,null,0]
[null,null,null,null,null,null,null,null,null,null,null,null,null,0]
[null,null,null,null,null,null,null,null,null,null,null,null,null,0]
[null,null,null,null,null,null,null,null,null,null,null,null,null,0]
[null,null,null,null,null,null,null,null,null,null,null,null,null,0]
[null,null,null,null,null,null,null,null,null,null,null,null,null,0]
[null,null,null,null,null,null,null,null,null,null,null,null,null,0]
[null,null,null,null,null,null,null,null,null,null,null,null,null,0]
[null,null,null,null,null,null,null,null,null,null,null,null,null,0]
[null,null,null,null,null,null,null,null,null,null,null,null,null,0]
[null,null,null,null,null,null,null,null,null,null,null,null,null,0]
[null,null,null,null,null,null,null,null,null,null,null,null,null,0]
[null,null,null,null,null,null,null,null,null,null,null,null,null,0]
[null,null,null,null,null,null,null,null,null,null,null,null,null,0]
[null,null,null,null,null,null,null,null,null,null,null,null,null,0]
[null,null,null,null,null,null,null,null,null,null,null,null,null,0]
[null,null,null,null,null,null,null,null,null,null,null,null,null,0]
[null,null,null,null,null,null,null,null,null,null,null,null,null,0]
[null,null,null,null,null,null,null,null,null,null,null,null,null,0]
[null,null,null,null,null,null,null,null,null,null,null,null,null,0]
[null,null,null,null,null,null,null,null,null,null,null,null,null,0]
[null,null,null,null,null,null,null,null,null,null,null,null,null,0]
[null,null,null,null,null,null,null,null,null,null,null,null,null,0]
[null,null,null,null,null,null,null,null,null,null,null,null,null,0]
[null,null,null,null,null,null,null,null,null,null,null,null,null,0]
[null,null,null,null,null,null,null,null,null,null,null,null,null,0]
[null,null,null,null,null,null,null,null,null,null,null,null,null,0]
[null,null,null,null,null,null,null,null,null,null,null,null,null,0]
[null,null,null,null,null,null,null,null,null,null,null,null,null,0]
[null,null,null,null,null,null,null,null,null,null,null,null,null,0]
[null,null,null,null,null,null,null,null,null,null,null,null,null,0]
[null,null,null,null,null,null,null,null,null,null,null,null,null,0]
[null,null,null,null,null,null,null,null,null,null,null,null,null,0]
[null,null,null,null,null,null,null,null,null,null,null,null,null,0]
[null,null,null,null,null,null,null,null,null,null,null,null,null,0]
[null,null,null,null,null,null,null,null,null,null,null,null,null,0]
[null,null,null,null,null,null,null,null,null,null,null,null,null,0]
[null,null,null,null,null,null,null,null,null,null,null,null,null,0]
[null,null,null,null,null,null,null,null,null,null,null,null,null,0]
[null,null,null,null,null,null,null,null,null,null,null,null,null,0]
[null,null,null,null,null,null,null,null,null,null,null,null,null,0]
[null,null,null,null,null,null,null,null,null,null,null,null,null,0]
[null,null,null,null,null,null,null,null,null,null,null,null,null,0]
[null,null,null,null,null,null,null,null,null,null,null,null,null,0]
[null,null,null,null,null,null,null,null,null,null,null,null,null,0]
[null,null,null,null,null,null,null,null,null,null,null,null,null,0]
[null,null,null,null,null,null,null,null,null,null,null,null,null,0]
[null,null,null,null,null,null,null,null,null,null,null,null,null,0]
[null,null,null,null,null,null,null,null,null,null,null,null,null,0]
[null,null,null,null,null,null,null,null,null,null,null,null,null,0]
[null,null,null,null,null,null,null,null,null,null,null,null,null,0]
[null,null,null,null,null,null,null,null,null,null,null,null,null,0]
[null,null,null,null,null,null,null,null,null,null,null,null,null,0]
[null,null,null,null,null,null,null,null,null,null,null,null,null,0]
[null,null,null,null,null,null,null,null,null,null,null,null,null,0]
[null,null,null,null,null,null,null,null,null,null,null,null,null,0]
[null,null,null,null,null,null,null,null,null,null,null,null,null,0]
[null,null,null,null,null,null,null,null,null,null,null,null,null,0]
[null,null,null,null,null,null,null,null,null,null,null,null,null,{"$f":"H911-I911","v":0}]
[null,null,null,null,null,null,null,null,null,null,null,null,null,0]
[null,null,null,null,null,null,null,null,null,null,null,null,null,0]
[null,null,null,null,null,null,null,null,null,null,null,null,null,0]
[null,null,null,null,null,null,null,null,null,null,null,null,null,0]
[null,null,null,null,null,null,null,null,null,null,null,null,null,0]
[null,null,null,null,null,null,null,null,null,null,null,null,null,0]
[null,null,null,null,null,null,null,null,null,null,null,null,null,0]
[null,null,null,null,null,null,null,null,null,null,null,null,null,0]
[null,null,null,null,null,null,null,null,null,null,null,null,null,0]
[null,null,null,null,null,null,null,null,null,null,null,null,null,0]
[null,null,null,null,null,null,null,null,null,null,null,null,null,0]
[null,null,null,null,null,null,null,null,null,null,null,null,null,0]
[null,null,null,null,null,null,null,null,null,null,null,null,null,0]
[null,null,null,null,null,null,null,null,null,null,null,null,null,0]
[null,null,null,null,null,null,null,null,null,null,null,null,null,0]
[null,null,null,null,null,null,null,null,null,null,null,null,null,0]
[null,null,null,null,null,null,null,null,null,null,null,null,null,0]
[null,null,null,null,null,null,null,null,null,null,null,null,null,0]
[null,null,null,null,null,null,null,null,null,null,null,null,null,0]
[null,null,null,null,null,null,null,null,null,null,null,null,null,0]
[null,null,null,null,null,null,null,null,null,null,null,null,null,0]
[null,null,null,null,null,null,null,null,null,null,null,null,null,0]
[null,null,null,null,null,null,null,null,null,null,null,null,null,0]
[null,null,null,null,null,null,null,null,null,null,null,null,null,0]
[null,null,null,null,null,null,null,null,null,null,null,null,null,0]
[null,null,null,null,null,null,null,null,null,null,null,null,null,0]
[null,null,null,null,null,null,null,null,null,null,null,null,null,0]
[null,null,null,null,null,null,null,null,null,null,null,null,null,0]
[null,null,null,null,null,null,null,null,null,null,null,null,null,0]
[null,null,null,null,null,null,null,null,null,null,null,null,null,0]
[null,null,null,null,null,null,null,null,null,null,null,null,null,0]
[null,null,null,null,null,null,null,null,null,null,null,null,null,0]
[null,null,null,null,null,null,null,null,null,null,null,null,null,0]
[null,null,null,null,null,null,null,null,null,null,null,null,null,0]
[null,null,null,null,null,null,null,null,null,null,null,null,null,0]
[null,null,null,null,null,null,null,null,null,null,null,null,null,0]
[null,null,null,null,null,null,null,null,null,null,null,null,null,0]
[null,null,null,null,null,null,null,null,null,null,null,null,null,0]
[null,null,null,null,null,null,null,null,null,null,null,null,null,0]
[null,null,null,null,null,null,null,null,null,null,null,null,null,0]
[null,null,null,null,null,null,null,null,null,null,null,null,null,0]
[null,null,null,null,null,null,null,null,null,null,null,null,null,0]
[null,null,null,null,null,null,null,null,null,null,null,null,null,0]
[null,null,null,null,null,null,null,null,null,null,null,null,null,0]
[null,null,null,null,null,null,null,null,null,null,null,null,null,0]
[null,null,null,null,null,null,null,null,null,null,null,null,null,0]
[null,null,null,null,null,null,null,null,null,null,null,null,null,0]
[null,null,null,null,null,null,null,null,null,null,null,null,null,0]
[null,null,null,null,null,null,null,null,null,null,null,null,null,0]
[null,null,null,null,null,null,null,null,null,null,null,null,null,0]
[null,null,null,null,null,null,null,null,null,null,null,null,null,0]
[null,null,null,null,null,null,null,null,null,null,null,null,null,0]
[null,null,null,null,null,null,null,null,null,null,null,null,null,0]
[null,null,null,null,null,null,null,null,null,null,null,null,null,0]
[null,null,null,null,null,null,null,null,null,null,null,null,null,0]
[null,null,null,null,null,null,null,null,null,null,null,null,null,0]
[null,null,null,null,null,null,null,null,null,null,null,null,null,0]
[null,null,null,null,null,null,null,null,null,null,null,null,null,0]
[null,null,null,null,null,null,null,null,null,null,null,null,null,0]
[null,null,null,null,null,null,null,null,null,null,null,null,null,0]
[null,null,null,null,null,null,null,null,null,null,null,null,null,0]
[null,null,null,null,null,null,null,null,null,null,null,null,null,0]
[null,null,null,null,null,null,null,null,null,null,null,null,null,0]
[null,null,null,null,null,null,null,null,null,null,null,null,null,{"$f":"H975-I975","v":0}]
[null,null,null,null,null,null,null,null,null,null,null,null,null,0]
[null,null,null,null,null,null,null,null,null,null,null,null,null,0]
[null,null,null,null,null,null,null,null,null,null,null,null,null,0]
[null,null,null,null,null,null,null,null,null,null,null,null,null,0]
[null,null,null,null,null,null,null,null,null,null,null,null,null,0]
[null,null,null,null,null,null,null,null,null,null,null,null,null,0]
[null,null,null,null,null,null,null,null,null,null,null,null,null,0]
[null,null,null,null,null,null,null,null,null,null,null,null,null,0]
[null,null,null,null,null,null,null,null,null,null,null,null,null,0]
[null,null,null,null,null,null,null,null,null,null,null,null,null,0]
[null,null,null,null,null,null,null,null,null,null,null,null,null,0]
[null,null,null,null,null,null,null,null,null,null,null,null,null,0]
[null,null,null,null,null,null,null,null,null,null,null,null,null,0]
[null,null,null,null,null,null,null,null,null,null,null,null,null,0]
[null,null,null,null,null,null,null,null,null,null,null,null,null,0]
[null,null,null,null,null,null,null,null,null,null,null,null,null,0]
[null,null,null,null,null,null,null,null,null,null,null,null,null,0]
[null,null,null,null,null,null,null,null,null,null,null,null,null,0]
[null,null,null,null,null,null,null,null,null,null,null,null,null,0]
[null,null,null,null,null,null,null,null,null,null,null,null,null,0]
[null,null,null,null,null,null,null,null,null,null,null,null,null,0]
[null,null,null,null,null,null,null,null,null,null,null,null,null,0]
[null,null,null,null,null,null,null,null,null,null,null,null,null,0]
[null,null,null,null,null,null,null,null,null,null,null,null,null,0]
[null,null,null,null,null,null,null,null,null,null,null,null,null,0]

{"sheet":"Dash","index":5,"n_rows":13,"n_cols":4,"rows_kept":13,"cut":false,"hidden":false,"merged":[[10,1,10,2],[10,3,10,20],[12,3,12,4]]}
[]
[]
[]
[]
[]
[]
[]
[]
[]
[]
[null,"Empresa:",null,{"$f":"Menu!G26","v":"Empresa ABCDE"}]
[]
[null,"Selecione o Mês:",null,"Todos"]

{"sheet":"Instruções","index":6,"n_rows":0,"n_cols":0,"rows_kept":0,"cut":false,"hidden":false,"merged":[]}

{"sheet":"Config","index":7,"n_rows":50,"n_cols":35,"rows_kept":50,"cut":false,"hidden":false,"merged":[]}
["Janeiro",null,null,"Janeiro","Fevereiro","Março","Abril","Maio","Junho","Julho","Agosto","Setembro","Outubro","Novembro","Dezembro","Todos","Selecionado:",{"$f":"Dash!$D$13","v":"Todos"},null,null,null,null,null,null,null,null,null,null,null,null,null,"Qualidade Produto",null,null,"E-mail"]
["Fevereiro",null,null,{"$f":"COUNTIFS(Cad_Neg!$B$14:$B$1000,Config!D$1,Cad_Neg!$J$14:$J$1000,Config!$C2)","v":0},{"$f":"COUNTIFS(Cad_Neg!$B$14:$B$1000,Config!E$1,Cad_Neg!$J$14:$J$1000,Config!$C2)","v":0},{"$f":"COUNTIFS(Cad_Neg!$B$14:$B$1000,Config!F$1,Cad_Neg!$J$14:$J$1000,Config!$C2)","v":0},{"$f":"COUNTIFS(Cad_Neg!$B$14:$B$1000,Config!G$1,Cad_Neg!$J$14:$J$1000,Config!$C2)","v":0},{"$f":"COUNTIFS(Cad_Neg!$B$14:$B$1000,Config!H$1,Cad_Neg!$J$14:$J$1000,Config!$C2)","v":0},{"$f":"COUNTIFS(Cad_Neg!$B$14:$B$1000,Config!I$1,Cad_Neg!$J$14:$J$1000,Config!$C2)","v":0},{"$f":"COUNTIFS(Cad_Neg!$B$14:$B$1000,Config!J$1,Cad_Neg!$J$14:$J$1000,Config!$C2)","v":0},{"$f":"COUNTIFS(Cad_Neg!$B$14:$B$1000,Config!K$1,Cad_Neg!$J$14:$J$1000,Config!$C2)","v":0},{"$f":"COUNTIFS(Cad_Neg!$B$14:$B$1000,Config!L$1,Cad_Neg!$J$14:$J$1000,Config!$C2)","v":0},{"$f":"COUNTIFS(Cad_Neg!$B$14:$B$1000,Config!M$1,Cad_Neg!$J$14:$J$1000,Config!$C2)","v":0},{"$f":"COUNTIFS(Cad_Neg!$B$14:$B$1000,Config!N$1,Cad_Neg!$J$14:$J$1000,Config!$C2)","v":0},{"$f":"COUNTIFS(Cad_Neg!$B$14:$B$1000,Config!O$1,Cad_Neg!$J$14:$J$1000,Config!$C2)","v":0},{"$f":"SUM(D2:O2)","v":0},null,{"$f":"HLOOKUP($R$1,$D$1:$P$17,S2,0)","v":0},2,null,null,null,null,null,null,null,null,null,null,null,null,"Sem interesse",null,null,"Google"]
["Março",null,"Preço Baixo",{"$f":"COUNTIFS(Cad_Neg!$B$14:$B$1000,Config!D$1,Cad_Neg!$K$14:$K$1000,Config!$C3)","v":0},{"$f":"COUNTIFS(Cad_Neg!$B$14:$B$1000,Config!E$1,Cad_Neg!$K$14:$K$1000,Config!$C3)","v":0},{"$f":"COUNTIFS(Cad_Neg!$B$14:$B$1000,Config!F$1,Cad_Neg!$K$14:$K$1000,Config!$C3)","v":0},{"$f":"COUNTIFS(Cad_Neg!$B$14:$B$1000,Config!G$1,Cad_Neg!$K$14:$K$1000,Config!$C3)","v":0},{"$f":"COUNTIFS(Cad_Neg!$B$14:$B$1000,Config!H$1,Cad_Neg!$K$14:$K$1000,Config!$C3)","v":0},{"$f":"COUNTIFS(Cad_Neg!$B$14:$B$1000,Config!I$1,Cad_Neg!$K$14:$K$1000,Config!$C3)","v":0},{"$f":"COUNTIFS(Cad_Neg!$B$14:$B$1000,Config!J$1,Cad_Neg!$K$14:$K$1000,Config!$C3)","v":0},{"$f":"COUNTIFS(Cad_Neg!$B$14:$B$1000,Config!K$1,Cad_Neg!$K$14:$K$1000,Config!$C3)","v":0},{"$f":"COUNTIFS(Cad_Neg!$B$14:$B$1000,Config!L$1,Cad_Neg!$K$14:$K$1000,Config!$C3)","v":0},{"$f":"COUNTIFS(Cad_Neg!$B$14:$B$1000,Config!M$1,Cad_Neg!$K$14:$K$1000,Config!$C3)","v":0},{"$f":"COUNTIFS(Cad_Neg!$B$14:$B$1000,Config!N$1,Cad_Neg!$K$14:$K$1000,Config!$C3)","v":0},{"$f":"COUNTIFS(Cad_Neg!$B$14:$B$1000,Config!O$1,Cad_Neg!$K$14:$K$1000,Config!$C3)","v":0},{"$f":"SUM(D3:O3)","v":0},null,{"$f":"HLOOKUP($R$1,$D$1:$P$17,S3,0)","v":0},3,null,"Preço Baixo",{"$f":"P3","v":0},null,null,null,null,null,null,null,null,null,"Preço Alto",null,null,"Redes Sociais"]
["Abril",null,"Qualidade Superior",{"$f":"COUNTIFS(Cad_Neg!$B$14:$B$1000,Config!D$1,Cad_Neg!$K$14:$K$1000,Config!$C4)","v":1},{"$f":"COUNTIFS(Cad_Neg!$B$14:$B$1000,Config!E$1,Cad_Neg!$K$14:$K$1000,Config!$C4)","v":0},{"$f":"COUNTIFS(Cad_Neg!$B$14:$B$1000,Config!F$1,Cad_Neg!$K$14:$K$1000,Config!$C4)","v":0},{"$f":"COUNTIFS(Cad_Neg!$B$14:$B$1000,Config!G$1,Cad_Neg!$K$14:$K$1000,Config!$C4)","v":0},{"$f":"COUNTIFS(Cad_Neg!$B$14:$B$1000,Config!H$1,Cad_Neg!$K$14:$K$1000,Config!$C4)","v":0},{"$f":"COUNTIFS(Cad_Neg!$B$14:$B$1000,Config!I$1,Cad_Neg!$K$14:$K$1000,Config!$C4)","v":0},{"$f":"COUNTIFS(Cad_Neg!$B$14:$B$1000,Config!J$1,Cad_Neg!$K$14:$K$1000,Config!$C4)","v":0},{"$f":"COUNTIFS(Cad_Neg!$B$14:$B$1000,Config!K$1,Cad_Neg!$K$14:$K$1000,Config!$C4)","v":0},{"$f":"COUNTIFS(Cad_Neg!$B$14:$B$1000,Config!L$1,Cad_Neg!$K$14:$K$1000,Config!$C4)","v":0},{"$f":"COUNTIFS(Cad_Neg!$B$14:$B$1000,Config!M$1,Cad_Neg!$K$14:$K$1000,Config!$C4)","v":0},{"$f":"COUNTIFS(Cad_Neg!$B$14:$B$1000,Config!N$1,Cad_Neg!$K$14:$K$1000,Config!$C4)","v":0},{"$f":"COUNTIFS(Cad_Neg!$B$14:$B$1000,Config!O$1,Cad_Neg!$K$14:$K$1000,Config!$C4)","v":0},{"$f":"SUM(D4:O4)","v":1},null,{"$f":"HLOOKUP($R$1,$D$1:$P$17,S4,0)","v":1},4,null,"Qualidade Superior",{"$f":"P4","v":1},null,null,null,null,null,null,null,null,null,"Prazo",null,null,"Market Place"]
["Maio",null,"Forma de Pagamento",{"$f":"COUNTIFS(Cad_Neg!$B$14:$B$1000,Config!D$1,Cad_Neg!$K$14:$K$1000,Config!$C5)","v":0},{"$f":"COUNTIFS(Cad_Neg!$B$14:$B$1000,Config!E$1,Cad_Neg!$K$14:$K$1000,Config!$C5)","v":1},{"$f":"COUNTIFS(Cad_Neg!$B$14:$B$1000,Config!F$1,Cad_Neg!$K$14:$K$1000,Config!$C5)","v":0},{"$f":"COUNTIFS(Cad_Neg!$B$14:$B$1000,Config!G$1,Cad_Neg!$K$14:$K$1000,Config!$C5)","v":0},{"$f":"COUNTIFS(Cad_Neg!$B$14:$B$1000,Config!H$1,Cad_Neg!$K$14:$K$1000,Config!$C5)","v":0},{"$f":"COUNTIFS(Cad_Neg!$B$14:$B$1000,Config!I$1,Cad_Neg!$K$14:$K$1000,Config!$C5)","v":0},{"$f":"COUNTIFS(Cad_Neg!$B$14:$B$1000,Config!J$1,Cad_Neg!$K$14:$K$1000,Config!$C5)","v":0},{"$f":"COUNTIFS(Cad_Neg!$B$14:$B$1000,Config!K$1,Cad_Neg!$K$14:$K$1000,Config!$C5)","v":0},{"$f":"COUNTIFS(Cad_Neg!$B$14:$B$1000,Config!L$1,Cad_Neg!$K$14:$K$1000,Config!$C5)","v":0},{"$f":"COUNTIFS(Cad_Neg!$B$14:$B$1000,Config!M$1,Cad_Neg!$K$14:$K$1000,Config!$C5)","v":0},{"$f":"COUNTIFS(Cad_Neg!$B$14:$B$1000,Config!N$1,Cad_Neg!$K$14:$K$1000,Config!$C5)","v":0},{"$f":"COUNTIFS(Cad_Neg!$B$14:$B$1000,Config!O$1,Cad_Neg!$K$14:$K$1000,Config!$C5)","v":0},1,null,1,5,null,"Forma de Pagamento",1,null,null,null,null,null,null,null,null,null,"Insatisfação",null,null,"Indicação"]
["Junho",null,"Prazo de Entrega",{"$f":"COUNTIFS(Cad_Neg!$B$14:$B$1000,Config!D$1,Cad_Neg!$K$14:$K$1000,Config!$C6)","v":0},{"$f":"COUNTIFS(Cad_Neg!$B$14:$B$1000,Config!E$1,Cad_Neg!$K$14:$K$1000,Config!$C6)","v":0},{"$f":"COUNTIFS(Cad_Neg!$B$14:$B$1000,Config!F$1,Cad_Neg!$K$14:$K$1000,Config!$C6)","v":0},{"$f":"COUNTIFS(Cad_Neg!$B$14:$B$1000,Config!G$1,Cad_Neg!$K$14:$K$1000,Config!$C6)","v":0},{"$f":"COUNTIFS(Cad_Neg!$B$14:$B$1000,Config!H$1,Cad_Neg!$K$14:$K$1000,Config!$C6)","v":0},{"$f":"COUNTIFS(Cad_Neg!$B$14:$B$1000,Config!I$1,Cad_Neg!$K$14:$K$1000,Config!$C6)","v":0},{"$f":"COUNTIFS(Cad_Neg!$B$14:$B$1000,Config!J$1,Cad_Neg!$K$14:$K$1000,Config!$C6)","v":0},{"$f":"COUNTIFS(Cad_Neg!$B$14:$B$1000,Config!K$1,Cad_Neg!$K$14:$K$1000,Config!$C6)","v":0},{"$f":"COUNTIFS(Cad_Neg!$B$14:$B$1000,Config!L$1,Cad_Neg!$K$14:$K$1000,Config!$C6)","v":0},{"$f":"COUNTIFS(Cad_Neg!$B$14:$B$1000,Config!M$1,Cad_Neg!$K$14:$K$1000,Config!$C6)","v":0},{"$f":"COUNTIFS(Cad_Neg!$B$14:$B$1000,Config!N$1,Cad_Neg!$K$14:$K$1000,Config!$C6)","v":0},{"$f":"COUNTIFS(Cad_Neg!$B$14:$B$1000,Config!O$1,Cad_Neg!$K$14:$K$1000,Config!$C6)","v":0},0,null,0,6,null,"Prazo de Entrega",0]
["Julho",null,null,{"$f":"COUNTIFS(Cad_Neg!$B$14:$B$1000,Config!D$1,Cad_Neg!$J$14:$J$1000,Config!$C6)","v":0},{"$f":"COUNTIFS(Cad_Neg!$B$14:$B$1000,Config!E$1,Cad_Neg!$J$14:$J$1000,Config!$C6)","v":0},{"$f":"COUNTIFS(Cad_Neg!$B$14:$B$1000,Config!F$1,Cad_Neg!$J$14:$J$1000,Config!$C6)","v":0},{"$f":"COUNTIFS(Cad_Neg!$B$14:$B$1000,Config!G$1,Cad_Neg!$J$14:$J$1000,Config!$C6)","v":0},{"$f":"COUNTIFS(Cad_Neg!$B$14:$B$1000,Config!H$1,Cad_Neg!$J$14:$J$1000,Config!$C6)","v":0},{"$f":"COUNTIFS(Cad_Neg!$B$14:$B$1000,Config!I$1,Cad_Neg!$J$14:$J$1000,Config!$C6)","v":0},{"$f":"COUNTIFS(Cad_Neg!$B$14:$B$1000,Config!J$1,Cad_Neg!$J$14:$J$1000,Config!$C6)","v":0},{"$f":"COUNTIFS(Cad_Neg!$B$14:$B$1000,Config!K$1,Cad_Neg!$J$14:$J$1000,Config!$C6)","v":0},{"$f":"COUNTIFS(Cad_Neg!$B$14:$B$1000,Config!L$1,Cad_Neg!$J$14:$J$1000,Config!$C6)","v":0},{"$f":"COUNTIFS(Cad_Neg!$B$14:$B$1000,Config!M$1,Cad_Neg!$J$14:$J$1000,Config!$C6)","v":0},{"$f":"COUNTIFS(Cad_Neg!$B$14:$B$1000,Config!N$1,Cad_Neg!$J$14:$J$1000,Config!$C6)","v":0},{"$f":"COUNTIFS(Cad_Neg!$B$14:$B$1000,Config!O$1,Cad_Neg!$J$14:$J$1000,Config!$C6)","v":0},0,null,0,7]
["Agosto"]
["Setembro",null,"Concretizada",{"$f":"COUNTIFS(Cad_Neg!$B$14:$B$1000,Config!D$1,Cad_Neg!$J$14:$J$1000,Config!$C9)","v":1},{"$f":"COUNTIFS(Cad_Neg!$B$14:$B$1000,Config!E$1,Cad_Neg!$J$14:$J$1000,Config!$C9)","v":1},{"$f":"COUNTIFS(Cad_Neg!$B$14:$B$1000,Config!F$1,Cad_Neg!$J$14:$J$1000,Config!$C9)","v":0},{"$f":"COUNTIFS(Cad_Neg!$B$14:$B$1000,Config!G$1,Cad_Neg!$J$14:$J$1000,Config!$C9)","v":0},{"$f":"COUNTIFS(Cad_Neg!$B$14:$B$1000,Config!H$1,Cad_Neg!$J$14:$J$1000,Config!$C9)","v":0},{"$f":"COUNTIFS(Cad_Neg!$B$14:$B$1000,Config!I$1,Cad_Neg!$J$14:$J$1000,Config!$C9)","v":0},{"$f":"COUNTIFS(Cad_Neg!$B$14:$B$1000,Config!J$1,Cad_Neg!$J$14:$J$1000,Config!$C9)","v":0},{"$f":"COUNTIFS(Cad_Neg!$B$14:$B$1000,Config!K$1,Cad_Neg!$J$14:$J$1000,Config!$C9)","v":0},{"$f":"COUNTIFS(Cad_Neg!$B$14:$B$1000,Config!L$1,Cad_Neg!$J$14:$J$1000,Config!$C9)","v":0},{"$f":"COUNTIFS(Cad_Neg!$B$14:$B$1000,Config!M$1,Cad_Neg!$J$14:$J$1000,Config!$C9)","v":0},{"$f":"COUNTIFS(Cad_Neg!$B$14:$B$1000,Config!N$1,Cad_Neg!$J$14:$J$1000,Config!$C9)","v":0},{"$f":"COUNTIFS(Cad_Neg!$B$14:$B$1000,Config!O$1,Cad_Neg!$J$14:$J$1000,Config!$C9)","v":0},2,null,2,9]
["Outubro",null,"Em Negociação",{"$f":"COUNTIFS(Cad_Neg!$B$14:$B$1000,Config!D$1,Cad_Neg!$J$14:$J$1000,Config!$C10)","v":1},{"$f":"COUNTIFS(Cad_Neg!$B$14:$B$1000,Config!E$1,Cad_Neg!$J$14:$J$1000,Config!$C10)","v":0},{"$f":"COUNTIFS(Cad_Neg!$B$14:$B$1000,Config!F$1,Cad_Neg!$J$14:$J$1000,Config!$C10)","v":0},{"$f":"COUNTIFS(Cad_Neg!$B$14:$B$1000,Config!G$1,Cad_Neg!$J$14:$J$1000,Config!$C10)","v":0},{"$f":"COUNTIFS(Cad_Neg!$B$14:$B$1000,Config!H$1,Cad_Neg!$J$14:$J$1000,Config!$C10)","v":0},{"$f":"COUNTIFS(Cad_Neg!$B$14:$B$1000,Config!I$1,Cad_Neg!$J$14:$J$1000,Config!$C10)","v":0},{"$f":"COUNTIFS(Cad_Neg!$B$14:$B$1000,Config!J$1,Cad_Neg!$J$14:$J$1000,Config!$C10)","v":0},{"$f":"COUNTIFS(Cad_Neg!$B$14:$B$1000,Config!K$1,Cad_Neg!$J$14:$J$1000,Config!$C10)","v":0},{"$f":"COUNTIFS(Cad_Neg!$B$14:$B$1000,Config!L$1,Cad_Neg!$J$14:$J$1000,Config!$C10)","v":0},{"$f":"COUNTIFS(Cad_Neg!$B$14:$B$1000,Config!M$1,Cad_Neg!$J$14:$J$1000,Config!$C10)","v":0},{"$f":"COUNTIFS(Cad_Neg!$B$14:$B$1000,Config!N$1,Cad_Neg!$J$14:$J$1000,Config!$C10)","v":0},{"$f":"COUNTIFS(Cad_Neg!$B$14:$B$1000,Config!O$1,Cad_Neg!$J$14:$J$1000,Config!$C10)","v":0},1,null,1,10]
["Novembro",null,"Declinada",{"$f":"COUNTIFS(Cad_Neg!$B$14:$B$1000,Config!D$1,Cad_Neg!$J$14:$J$1000,Config!$C11)","v":1},{"$f":"COUNTIFS(Cad_Neg!$B$14:$B$1000,Config!E$1,Cad_Neg!$J$14:$J$1000,Config!$C11)","v":1},{"$f":"COUNTIFS(Cad_Neg!$B$14:$B$1000,Config!F$1,Cad_Neg!$J$14:$J$1000,Config!$C11)","v":0},{"$f":"COUNTIFS(Cad_Neg!$B$14:$B$1000,Config!G$1,Cad_Neg!$J$14:$J$1000,Config!$C11)","v":0},{"$f":"COUNTIFS(Cad_Neg!$B$14:$B$1000,Config!H$1,Cad_Neg!$J$14:$J$1000,Config!$C11)","v":0},{"$f":"COUNTIFS(Cad_Neg!$B$14:$B$1000,Config!I$1,Cad_Neg!$J$14:$J$1000,Config!$C11)","v":0},{"$f":"COUNTIFS(Cad_Neg!$B$14:$B$1000,Config!J$1,Cad_Neg!$J$14:$J$1000,Config!$C11)","v":0},{"$f":"COUNTIFS(Cad_Neg!$B$14:$B$1000,Config!K$1,Cad_Neg!$J$14:$J$1000,Config!$C11)","v":0},{"$f":"COUNTIFS(Cad_Neg!$B$14:$B$1000,Config!L$1,Cad_Neg!$J$14:$J$1000,Config!$C11)","v":0},{"$f":"COUNTIFS(Cad_Neg!$B$14:$B$1000,Config!M$1,Cad_Neg!$J$14:$J$1000,Config!$C11)","v":0},{"$f":"COUNTIFS(Cad_Neg!$B$14:$B$1000,Config!N$1,Cad_Neg!$J$14:$J$1000,Config!$C11)","v":0},{"$f":"COUNTIFS(Cad_Neg!$B$14:$B$1000,Config!O$1,Cad_Neg!$J$14:$J$1000,Config!$C11)","v":0},2,null,2,11]
["Dezembro",null,"Total",{"$f":"SUM(D9:D11)","v":3},{"$f":"SUM(E9:E11)","v":2},0,0,0,0,0,0,0,0,0,0,5,null,5,12]
[null,null,"% Sucesso",{"$f":"IFERROR(D9/D12,\"\")","v":0.33333333333333331},{"$f":"IFERROR(E9/E12,\"\")","v":0.5},"","","","","","","","","","",0.4,null,0.4,13]
[]
[null,null,"Concretizada",{"$f":"SUMIFS(Cad_Neg!$N$14:$N$1000,Cad_Neg!$B$14:$B$1000,Config!D$1,Cad_Neg!$J$14:$J$1000,Config!$C15)","v":350},{"$f":"SUMIFS(Cad_Neg!$N$14:$N$1000,Cad_Neg!$B$14:$B$1000,Config!E$1,Cad_Neg!$J$14:$J$1000,Config!$C15)","v":870},{"$f":"SUMIFS(Cad_Neg!$N$14:$N$1000,Cad_Neg!$B$14:$B$1000,Config!F$1,Cad_Neg!$J$14:$J$1000,Config!$C15)","v":0},{"$f":"SUMIFS(Cad_Neg!$N$14:$N$1000,Cad_Neg!$B$14:$B$1000,Config!G$1,Cad_Neg!$J$14:$J$1000,Config!$C15)","v":0},{"$f":"SUMIFS(Cad_Neg!$N$14:$N$1000,Cad_Neg!$B$14:$B$1000,Config!H$1,Cad_Neg!$J$14:$J$1000,Config!$C15)","v":0},{"$f":"SUMIFS(Cad_Neg!$N$14:$N$1000,Cad_Neg!$B$14:$B$1000,Config!I$1,Cad_Neg!$J$14:$J$1000,Config!$C15)","v":0},{"$f":"SUMIFS(Cad_Neg!$N$14:$N$1000,Cad_Neg!$B$14:$B$1000,Config!J$1,Cad_Neg!$J$14:$J$1000,Config!$C15)","v":0},{"$f":"SUMIFS(Cad_Neg!$N$14:$N$1000,Cad_Neg!$B$14:$B$1000,Config!K$1,Cad_Neg!$J$14:$J$1000,Config!$C15)","v":0},{"$f":"SUMIFS(Cad_Neg!$N$14:$N$1000,Cad_Neg!$B$14:$B$1000,Config!L$1,Cad_Neg!$J$14:$J$1000,Config!$C15)","v":0},{"$f":"SUMIFS(Cad_Neg!$N$14:$N$1000,Cad_Neg!$B$14:$B$1000,Config!M$1,Cad_Neg!$J$14:$J$1000,Config!$C15)","v":0},{"$f":"SUMIFS(Cad_Neg!$N$14:$N$1000,Cad_Neg!$B$14:$B$1000,Config!N$1,Cad_Neg!$J$14:$J$1000,Config!$C15)","v":0},{"$f":"SUMIFS(Cad_Neg!$N$14:$N$1000,Cad_Neg!$B$14:$B$1000,Config!O$1,Cad_Neg!$J$14:$J$1000,Config!$C15)","v":0},{"$f":"SUM(D15:O15)","v":1220},null,1220,15]
[null,null,"Em Negociação",{"$f":"SUMIFS(Cad_Neg!$N$14:$N$1000,Cad_Neg!$B$14:$B$1000,Config!D$1,Cad_Neg!$J$14:$J$1000,Config!$C16)","v":3150},{"$f":"SUMIFS(Cad_Neg!$N$14:$N$1000,Cad_Neg!$B$14:$B$1000,Config!E$1,Cad_Neg!$J$14:$J$1000,Config!$C16)","v":0},{"$f":"SUMIFS(Cad_Neg!$N$14:$N$1000,Cad_Neg!$B$14:$B$1000,Config!F$1,Cad_Neg!$J$14:$J$1000,Config!$C16)","v":0},{"$f":"SUMIFS(Cad_Neg!$N$14:$N$1000,Cad_Neg!$B$14:$B$1000,Config!G$1,Cad_Neg!$J$14:$J$1000,Config!$C16)","v":0},{"$f":"SUMIFS(Cad_Neg!$N$14:$N$1000,Cad_Neg!$B$14:$B$1000,Config!H$1,Cad_Neg!$J$14:$J$1000,Config!$C16)","v":0},{"$f":"SUMIFS(Cad_Neg!$N$14:$N$1000,Cad_Neg!$B$14:$B$1000,Config!I$1,Cad_Neg!$J$14:$J$1000,Config!$C16)","v":0},{"$f":"SUMIFS(Cad_Neg!$N$14:$N$1000,Cad_Neg!$B$14:$B$1000,Config!J$1,Cad_Neg!$J$14:$J$1000,Config!$C16)","v":0},{"$f":"SUMIFS(Cad_Neg!$N$14:$N$1000,Cad_Neg!$B$14:$B$1000,Config!K$1,Cad_Neg!$J$14:$J$1000,Config!$C16)","v":0},{"$f":"SUMIFS(Cad_Neg!$N$14:$N$1000,Cad_Neg!$B$14:$B$1000,Config!L$1,Cad_Neg!$J$14:$J$1000,Config!$C16)","v":0},{"$f":"SUMIFS(Cad_Neg!$N$14:$N$1000,Cad_Neg!$B$14:$B$1000,Config!M$1,Cad_Neg!$J$14:$J$1000,Config!$C16)","v":0},{"$f":"SUMIFS(Cad_Neg!$N$14:$N$1000,Cad_Neg!$B$14:$B$1000,Config!N$1,Cad_Neg!$J$14:$J$1000,Config!$C16)","v":0},{"$f":"SUMIFS(Cad_Neg!$N$14:$N$1000,Cad_Neg!$B$14:$B$1000,Config!O$1,Cad_Neg!$J$14:$J$1000,Config!$C16)","v":0},3150,null,3150,16]
[null,null,"Declinada",{"$f":"SUMIFS(Cad_Neg!$N$14:$N$1000,Cad_Neg!$B$14:$B$1000,Config!D$1,Cad_Neg!$J$14:$J$1000,Config!$C17)","v":350},{"$f":"SUMIFS(Cad_Neg!$N$14:$N$1000,Cad_Neg!$B$14:$B$1000,Config!E$1,Cad_Neg!$J$14:$J$1000,Config!$C17)","v":1925},{"$f":"SUMIFS(Cad_Neg!$N$14:$N$1000,Cad_Neg!$B$14:$B$1000,Config!F$1,Cad_Neg!$J$14:$J$1000,Config!$C17)","v":0},{"$f":"SUMIFS(Cad_Neg!$N$14:$N$1000,Cad_Neg!$B$14:$B$1000,Config!G$1,Cad_Neg!$J$14:$J$1000,Config!$C17)","v":0},{"$f":"SUMIFS(Cad_Neg!$N$14:$N$1000,Cad_Neg!$B$14:$B$1000,Config!H$1,Cad_Neg!$J$14:$J$1000,Config!$C17)","v":0},{"$f":"SUMIFS(Cad_Neg!$N$14:$N$1000,Cad_Neg!$B$14:$B$1000,Config!I$1,Cad_Neg!$J$14:$J$1000,Config!$C17)","v":0},{"$f":"SUMIFS(Cad_Neg!$N$14:$N$1000,Cad_Neg!$B$14:$B$1000,Config!J$1,Cad_Neg!$J$14:$J$1000,Config!$C17)","v":0},{"$f":"SUMIFS(Cad_Neg!$N$14:$N$1000,Cad_Neg!$B$14:$B$1000,Config!K$1,Cad_Neg!$J$14:$J$1000,Config!$C17)","v":0},{"$f":"SUMIFS(Cad_Neg!$N$14:$N$1000,Cad_Neg!$B$14:$B$1000,Config!L$1,Cad_Neg!$J$14:$J$1000,Config!$C17)","v":0},{"$f":"SUMIFS(Cad_Neg!$N$14:$N$1000,Cad_Neg!$B$14:$B$1000,Config!M$1,Cad_Neg!$J$14:$J$1000,Config!$C17)","v":0},{"$f":"SUMIFS(Cad_Neg!$N$14:$N$1000,Cad_Neg!$B$14:$B$1000,Config!N$1,Cad_Neg!$J$14:$J$1000,Config!$C17)","v":0},{"$f":"SUMIFS(Cad_Neg!$N$14:$N$1000,Cad_Neg!$B$14:$B$1000,Config!O$1,Cad_Neg!$J$14:$J$1000,Config!$C17)","v":0},2275,null,2275,17]
[null,null,null,null,null,null,null,null,null,null,null,null,null,null,null,null,null,null,null,null,"Meta"]
[null,null,{"$f":"IF(Cad_Vendedores!C14<>\"\",Cad_Vendedores!C14,\"\")","v":"Vendedor 1"},{"$f":"IF($C19=\"\",NA(),SUMIFS(Cad_Neg!$N$14:$N$1000,Cad_Neg!$B$14:$B$1000,Config!D$1,Cad_Neg!$J$14:$J$1000,Config!$C$15,Cad_Neg!$C$14:$C$1000,Config!$C19))","v":350},{"$f":"IF($C19=\"\",NA(),SUMIFS(Cad_Neg!$N$14:$N$1000,Cad_Neg!$B$14:$B$1000,Config!E$1,Cad_Neg!$J$14:$J$1000,Config!$C$15,Cad_Neg!$C$14:$C$1000,Config!$C19))","v":0},{"$f":"IF($C19=\"\",NA(),SUMIFS(Cad_Neg!$N$14:$N$1000,Cad_Neg!$B$14:$B$1000,Config!F$1,Cad_Neg!$J$14:$J$1000,Config!$C$15,Cad_Neg!$C$14:$C$1000,Config!$C19))","v":0},{"$f":"IF($C19=\"\",NA(),SUMIFS(Cad_Neg!$N$14:$N$1000,Cad_Neg!$B$14:$B$1000,Config!G$1,Cad_Neg!$J$14:$J$1000,Config!$C$15,Cad_Neg!$C$14:$C$1000,Config!$C19))","v":0},{"$f":"IF($C19=\"\",NA(),SUMIFS(Cad_Neg!$N$14:$N$1000,Cad_Neg!$B$14:$B$1000,Config!H$1,Cad_Neg!$J$14:$J$1000,Config!$C$15,Cad_Neg!$C$14:$C$1000,Config!$C19))","v":0},{"$f":"IF($C19=\"\",NA(),SUMIFS(Cad_Neg!$N$14:$N$1000,Cad_Neg!$B$14:$B$1000,Config!I$1,Cad_Neg!$J$14:$J$1000,Config!$C$15,Cad_Neg!$C$14:$C$1000,Config!$C19))","v":0},{"$f":"IF($C19=\"\",NA(),SUMIFS(Cad_Neg!$N$14:$N$1000,Cad_Neg!$B$14:$B$1000,Config!J$1,Cad_Neg!$J$14:$J$1000,Config!$C$15,Cad_Neg!$C$14:$C$1000,Config!$C19))","v":0},{"$f":"IF($C19=\"\",NA(),SUMIFS(Cad_Neg!$N$14:$N$1000,Cad_Neg!$B$14:$B$1000,Config!K$1,Cad_Neg!$J$14:$J$1000,Config!$C$15,Cad_Neg!$C$14:$C$1000,Config!$C19))","v":0},{"$f":"IF($C19=\"\",NA(),SUMIFS(Cad_Neg!$N$14:$N$1000,Cad_Neg!$B$14:$B$1000,Config!L$1,Cad_Neg!$J$14:$J$1000,Config!$C$15,Cad_Neg!$C$14:$C$1000,Config!$C19))","v":0},{"$f":"IF($C19=\"\",NA(),SUMIFS(Cad_Neg!$N$14:$N$1000,Cad_Neg!$B$14:$B$1000,Config!M$1,Cad_Neg!$J$14:$J$1000,Config!$C$15,Cad_Neg!$C$14:$C$1000,Config!$C19))","v":0},{"$f":"IF($C19=\"\",NA(),SUMIFS(Cad_Neg!$N$14:$N$1000,Cad_Neg!$B$14:$B$1000,Config!N$1,Cad_Neg!$J$14:$J$1000,Config!$C$15,Cad_Neg!$C$14:$C$1000,Config!$C19))","v":0},{"$f":"IF($C19=\"\",NA(),SUMIFS(Cad_Neg!$N$14:$N$1000,Cad_Neg!$B$14:$B$1000,Config!O$1,Cad_Neg!$J$14:$J$1000,Config!$C$15,Cad_Neg!$C$14:$C$1000,Config!$C19))","v":0},{"$f":"SUM(D19:O19)","v":350},null,{"$f":"HLOOKUP($R$1,$D$1:$P$38,S19,0)","v":350},19,null,{"$f":"IF($C19=\"\",NA(),IF($R$1=\"Todos\",Cad_Vendedores!G14*12,Cad_Vendedores!G14))","v":24000}]
[null,null,{"$f":"IF(Cad_Vendedores!C15<>\"\",Cad_Vendedores!C15,\"\")","v":"Vendedor 2"},{"$f":"IF($C20=\"\",NA(),SUMIFS(Cad_Neg!$N$14:$N$1000,Cad_Neg!$B$14:$B$1000,Config!D$1,Cad_Neg!$J$14:$J$1000,Config!$C$15,Cad_Neg!$C$14:$C$1000,Config!$C20))","v":0},{"$f":"IF($C20=\"\",NA(),SUMIFS(Cad_Neg!$N$14:$N$1000,Cad_Neg!$B$14:$B$1000,Config!E$1,Cad_Neg!$J$14:$J$1000,Config!$C$15,Cad_Neg!$C$14:$C$1000,Config!$C20))","v":0},{"$f":"IF($C20=\"\",NA(),SUMIFS(Cad_Neg!$N$14:$N$1000,Cad_Neg!$B$14:$B$1000,Config!F$1,Cad_Neg!$J$14:$J$1000,Config!$C$15,Cad_Neg!$C$14:$C$1000,Config!$C20))","v":0},{"$f":"IF($C20=\"\",NA(),SUMIFS(Cad_Neg!$N$14:$N$1000,Cad_Neg!$B$14:$B$1000,Config!G$1,Cad_Neg!$J$14:$J$1000,Config!$C$15,Cad_Neg!$C$14:$C$1000,Config!$C20))","v":0},{"$f":"IF($C20=\"\",NA(),SUMIFS(Cad_Neg!$N$14:$N$1000,Cad_Neg!$B$14:$B$1000,Config!H$1,Cad_Neg!$J$14:$J$1000,Config!$C$15,Cad_Neg!$C$14:$C$1000,Config!$C20))","v":0},{"$f":"IF($C20=\"\",NA(),SUMIFS(Cad_Neg!$N$14:$N$1000,Cad_Neg!$B$14:$B$1000,Config!I$1,Cad_Neg!$J$14:$J$1000,Config!$C$15,Cad_Neg!$C$14:$C$1000,Config!$C20))","v":0},{"$f":"IF($C20=\"\",NA(),SUMIFS(Cad_Neg!$N$14:$N$1000,Cad_Neg!$B$14:$B$1000,Config!J$1,Cad_Neg!$J$14:$J$1000,Config!$C$15,Cad_Neg!$C$14:$C$1000,Config!$C20))","v":0},{"$f":"IF($C20=\"\",NA(),SUMIFS(Cad_Neg!$N$14:$N$1000,Cad_Neg!$B$14:$B$1000,Config!K$1,Cad_Neg!$J$14:$J$1000,Config!$C$15,Cad_Neg!$C$14:$C$1000,Config!$C20))","v":0},{"$f":"IF($C20=\"\",NA(),SUMIFS(Cad_Neg!$N$14:$N$1000,Cad_Neg!$B$14:$B$1000,Config!L$1,Cad_Neg!$J$14:$J$1000,Config!$C$15,Cad_Neg!$C$14:$C$1000,Config!$C20))","v":0},{"$f":"IF($C20=\"\",NA(),SUMIFS(Cad_Neg!$N$14:$N$1000,Cad_Neg!$B$14:$B$1000,Config!M$1,Cad_Neg!$J$14:$J$1000,Config!$C$15,Cad_Neg!$C$14:$C$1000,Config!$C20))","v":0},{"$f":"IF($C20=\"\",NA(),SUMIFS(Cad_Neg!$N$14:$N$1000,Cad_Neg!$B$14:$B$1000,Config!N$1,Cad_Neg!$J$14:$J$1000,Config!$C$15,Cad_Neg!$C$14:$C$1000,Config!$C20))","v":0},{"$f":"IF($C20=\"\",NA(),SUMIFS(Cad_Neg!$N$14:$N$1000,Cad_Neg!$B$14:$B$1000,Config!O$1,Cad_Neg!$J$14:$J$1000,Config!$C$15,Cad_Neg!$C$14:$C$1000,Config!$C20))","v":0},{"$f":"SUM(D20:O20)","v":0},null,{"$f":"HLOOKUP($R$1,$D$1:$P$38,S20,0)","v":0},20,null,{"$f":"IF($C20=\"\",NA(),IF($R$1=\"Todos\",Cad_Vendedores!G15*12,Cad_Vendedores!G15))","v":24000}]
[null,null,{"$f":"IF(Cad_Vendedores!C16<>\"\",Cad_Vendedores!C16,\"\")","v":"Vendedor 3"},{"$f":"IF($C21=\"\",NA(),SUMIFS(Cad_Neg!$N$14:$N$1000,Cad_Neg!$B$14:$B$1000,Config!D$1,Cad_Neg!$J$14:$J$1000,Config!$C$15,Cad_Neg!$C$14:$C$1000,Config!$C21))","v":0},{"$f":"IF($C21=\"\",NA(),SUMIFS(Cad_Neg!$N$14:$N$1000,Cad_Neg!$B$14:$B$1000,Config!E$1,Cad_Neg!$J$14:$J$1000,Config!$C$15,Cad_Neg!$C$14:$C$1000,Config!$C21))","v":870},{"$f":"IF($C21=\"\",NA(),SUMIFS(Cad_Neg!$N$14:$N$1000,Cad_Neg!$B$14:$B$1000,Config!F$1,Cad_Neg!$J$14:$J$1000,Config!$C$15,Cad_Neg!$C$14:$C$1000,Config!$C21))","v":0},{"$f":"IF($C21=\"\",NA(),SUMIFS(Cad_Neg!$N$14:$N$1000,Cad_Neg!$B$14:$B$1000,Config!G$1,Cad_Neg!$J$14:$J$1000,Config!$C$15,Cad_Neg!$C$14:$C$1000,Config!$C21))","v":0},{"$f":"IF($C21=\"\",NA(),SUMIFS(Cad_Neg!$N$14:$N$1000,Cad_Neg!$B$14:$B$1000,Config!H$1,Cad_Neg!$J$14:$J$1000,Config!$C$15,Cad_Neg!$C$14:$C$1000,Config!$C21))","v":0},{"$f":"IF($C21=\"\",NA(),SUMIFS(Cad_Neg!$N$14:$N$1000,Cad_Neg!$B$14:$B$1000,Config!I$1,Cad_Neg!$J$14:$J$1000,Config!$C$15,Cad_Neg!$C$14:$C$1000,Config!$C21))","v":0},{"$f":"IF($C21=\"\",NA(),SUMIFS(Cad_Neg!$N$14:$N$1000,Cad_Neg!$B$14:$B$1000,Config!J$1,Cad_Neg!$J$14:$J$1000,Config!$C$15,Cad_Neg!$C$14:$C$1000,Config!$C21))","v":0},{"$f":"IF($C21=\"\",NA(),SUMIFS(Cad_Neg!$N$14:$N$1000,Cad_Neg!$B$14:$B$1000,Config!K$1,Cad_Neg!$J$14:$J$1000,Config!$C$15,Cad_Neg!$C$14:$C$1000,Config!$C21))","v":0},{"$f":"IF($C21=\"\",NA(),SUMIFS(Cad_Neg!$N$14:$N$1000,Cad_Neg!$B$14:$B$1000,Config!L$1,Cad_Neg!$J$14:$J$1000,Config!$C$15,Cad_Neg!$C$14:$C$1000,Config!$C21))","v":0},{"$f":"IF($C21=\"\",NA(),SUMIFS(Cad_Neg!$N$14:$N$1000,Cad_Neg!$B$14:$B$1000,Config!M$1,Cad_Neg!$J$14:$J$1000,Config!$C$15,Cad_Neg!$C$14:$C$1000,Config!$C21))","v":0},{"$f":"IF($C21=\"\",NA(),SUMIFS(Cad_Neg!$N$14:$N$1000,Cad_Neg!$B$14:$B$1000,Config!N$1,Cad_Neg!$J$14:$J$1000,Config!$C$15,Cad_Neg!$C$14:$C$1000,Config!$C21))","v":0},{"$f":"IF($C21=\"\",NA(),SUMIFS(Cad_Neg!$N$14:$N$1000,Cad_Neg!$B$14:$B$1000,Config!O$1,Cad_Neg!$J$14:$J$1000,Config!$C$15,Cad_Neg!$C$14:$C$1000,Config!$C21))","v":0},870,null,870,21,null,{"$f":"IF($C21=\"\",NA(),IF($R$1=\"Todos\",Cad_Vendedores!G16*12,Cad_Vendedores!G16))","v":24000}]
[null,null,{"$f":"IF(Cad_Vendedores!C17<>\"\",Cad_Vendedores!C17,\"\")","v":"Vendedor 4"},{"$f":"IF($C22=\"\",NA(),SUMIFS(Cad_Neg!$N$14:$N$1000,Cad_Neg!$B$14:$B$1000,Config!D$1,Cad_Neg!$J$14:$J$1000,Config!$C$15,Cad_Neg!$C$14:$C$1000,Config!$C22))","v":0},{"$f":"IF($C22=\"\",NA(),SUMIFS(Cad_Neg!$N$14:$N$1000,Cad_Neg!$B$14:$B$1000,Config!E$1,Cad_Neg!$J$14:$J$1000,Config!$C$15,Cad_Neg!$C$14:$C$1000,Config!$C22))","v":0},{"$f":"IF($C22=\"\",NA(),SUMIFS(Cad_Neg!$N$14:$N$1000,Cad_Neg!$B$14:$B$1000,Config!F$1,Cad_Neg!$J$14:$J$1000,Config!$C$15,Cad_Neg!$C$14:$C$1000,Config!$C22))","v":0},{"$f":"IF($C22=\"\",NA(),SUMIFS(Cad_Neg!$N$14:$N$1000,Cad_Neg!$B$14:$B$1000,Config!G$1,Cad_Neg!$J$14:$J$1000,Config!$C$15,Cad_Neg!$C$14:$C$1000,Config!$C22))","v":0},{"$f":"IF($C22=\"\",NA(),SUMIFS(Cad_Neg!$N$14:$N$1000,Cad_Neg!$B$14:$B$1000,Config!H$1,Cad_Neg!$J$14:$J$1000,Config!$C$15,Cad_Neg!$C$14:$C$1000,Config!$C22))","v":0},{"$f":"IF($C22=\"\",NA(),SUMIFS(Cad_Neg!$N$14:$N$1000,Cad_Neg!$B$14:$B$1000,Config!I$1,Cad_Neg!$J$14:$J$1000,Config!$C$15,Cad_Neg!$C$14:$C$1000,Config!$C22))","v":0},{"$f":"IF($C22=\"\",NA(),SUMIFS(Cad_Neg!$N$14:$N$1000,Cad_Neg!$B$14:$B$1000,Config!J$1,Cad_Neg!$J$14:$J$1000,Config!$C$15,Cad_Neg!$C$14:$C$1000,Config!$C22))","v":0},{"$f":"IF($C22=\"\",NA(),SUMIFS(Cad_Neg!$N$14:$N$1000,Cad_Neg!$B$14:$B$1000,Config!K$1,Cad_Neg!$J$14:$J$1000,Config!$C$15,Cad_Neg!$C$14:$C$1000,Config!$C22))","v":0},{"$f":"IF($C22=\"\",NA(),SUMIFS(Cad_Neg!$N$14:$N$1000,Cad_Neg!$B$14:$B$1000,Config!L$1,Cad_Neg!$J$14:$J$1000,Config!$C$15,Cad_Neg!$C$14:$C$1000,Config!$C22))","v":0},{"$f":"IF($C22=\"\",NA(),SUMIFS(Cad_Neg!$N$14:$N$1000,Cad_Neg!$B$14:$B$1000,Config!M$1,Cad_Neg!$J$14:$J$1000,Config!$C$15,Cad_Neg!$C$14:$C$1000,Config!$C22))","v":0},{"$f":"IF($C22=\"\",NA(),SUMIFS(Cad_Neg!$N$14:$N$1000,Cad_Neg!$B$14:$B$1000,Config!N$1,Cad_Neg!$J$14:$J$1000,Config!$C$15,Cad_Neg!$C$14:$C$1000,Config!$C22))","v":0},{"$f":"IF($C22=\"\",NA(),SUMIFS(Cad_Neg!$N$14:$N$1000,Cad_Neg!$B$14:$B$1000,Config!O$1,Cad_Neg!$J$14:$J$1000,Config!$C$15,Cad_Neg!$C$14:$C$1000,Config!$C22))","v":0},0,null,0,22,null,{"$f":"IF($C22=\"\",NA(),IF($R$1=\"Todos\",Cad_Vendedores!G17*12,Cad_Vendedores!G17))","v":24000}]
[null,null,{"$f":"IF(Cad_Vendedores!C18<>\"\",Cad_Vendedores!C18,\"\")","v":"Vendedor 5"},{"$f":"IF($C23=\"\",NA(),SUMIFS(Cad_Neg!$N$14:$N$1000,Cad_Neg!$B$14:$B$1000,Config!D$1,Cad_Neg!$J$14:$J$1000,Config!$C$15,Cad_Neg!$C$14:$C$1000,Config!$C23))","v":0},{"$f":"IF($C23=\"\",NA(),SUMIFS(Cad_Neg!$N$14:$N$1000,Cad_Neg!$B$14:$B$1000,Config!E$1,Cad_Neg!$J$14:$J$1000,Config!$C$15,Cad_Neg!$C$14:$C$1000,Config!$C23))","v":0},{"$f":"IF($C23=\"\",NA(),SUMIFS(Cad_Neg!$N$14:$N$1000,Cad_Neg!$B$14:$B$1000,Config!F$1,Cad_Neg!$J$14:$J$1000,Config!$C$15,Cad_Neg!$C$14:$C$1000,Config!$C23))","v":0},{"$f":"IF($C23=\"\",NA(),SUMIFS(Cad_Neg!$N$14:$N$1000,Cad_Neg!$B$14:$B$1000,Config!G$1,Cad_Neg!$J$14:$J$1000,Config!$C$15,Cad_Neg!$C$14:$C$1000,Config!$C23))","v":0},{"$f":"IF($C23=\"\",NA(),SUMIFS(Cad_Neg!$N$14:$N$1000,Cad_Neg!$B$14:$B$1000,Config!H$1,Cad_Neg!$J$14:$J$1000,Config!$C$15,Cad_Neg!$C$14:$C$1000,Config!$C23))","v":0},{"$f":"IF($C23=\"\",NA(),SUMIFS(Cad_Neg!$N$14:$N$1000,Cad_Neg!$B$14:$B$1000,Config!I$1,Cad_Neg!$J$14:$J$1000,Config!$C$15,Cad_Neg!$C$14:$C$1000,Config!$C23))","v":0},{"$f":"IF($C23=\"\",NA(),SUMIFS(Cad_Neg!$N$14:$N$1000,Cad_Neg!$B$14:$B$1000,Config!J$1,Cad_Neg!$J$14:$J$1000,Config!$C$15,Cad_Neg!$C$14:$C$1000,Config!$C23))","v":0},{"$f":"IF($C23=\"\",NA(),SUMIFS(Cad_Neg!$N$14:$N$1000,Cad_Neg!$B$14:$B$1000,Config!K$1,Cad_Neg!$J$14:$J$1000,Config!$C$15,Cad_Neg!$C$14:$C$1000,Config!$C23))","v":0},{"$f":"IF($C23=\"\",NA(),SUMIFS(Cad_Neg!$N$14:$N$1000,Cad_Neg!$B$14:$B$1000,Config!L$1,Cad_Neg!$J$14:$J$1000,Config!$C$15,Cad_Neg!$C$14:$C$1000,Config!$C23))","v":0},{"$f":"IF($C23=\"\",NA(),SUMIFS(Cad_Neg!$N$14:$N$1000,Cad_Neg!$B$14:$B$1000,Config!M$1,Cad_Neg!$J$14:$J$1000,Config!$C$15,Cad_Neg!$C$14:$C$1000,Config!$C23))","v":0},{"$f":"IF($C23=\"\",NA(),SUMIFS(Cad_Neg!$N$14:$N$1000,Cad_Neg!$B$14:$B$1000,Config!N$1,Cad_Neg!$J$14:$J$1000,Config!$C$15,Cad_Neg!$C$14:$C$1000,Config!$C23))","v":0},{"$f":"IF($C23=\"\",NA(),SUMIFS(Cad_Neg!$N$14:$N$1000,Cad_Neg!$B$14:$B$1000,Config!O$1,Cad_Neg!$J$14:$J$1000,Config!$C$15,Cad_Neg!$C$14:$C$1000,Config!$C23))","v":0},0,null,0,23,null,{"$f":"IF($C23=\"\",NA(),IF($R$1=\"Todos\",Cad_Vendedores!G18*12,Cad_Vendedores!G18))","v":24000}]
[null,null,{"$f":"IF(Cad_Vendedores!C19<>\"\",Cad_Vendedores!C19,\"\")","v":"Vendedor 6"},{"$f":"IF($C24=\"\",NA(),SUMIFS(Cad_Neg!$N$14:$N$1000,Cad_Neg!$B$14:$B$1000,Config!D$1,Cad_Neg!$J$14:$J$1000,Config!$C$15,Cad_Neg!$C$14:$C$1000,Config!$C24))","v":0},{"$f":"IF($C24=\"\",NA(),SUMIFS(Cad_Neg!$N$14:$N$1000,Cad_Neg!$B$14:$B$1000,Config!E$1,Cad_Neg!$J$14:$J$1000,Config!$C$15,Cad_Neg!$C$14:$C$1000,Config!$C24))","v":0},{"$f":"IF($C24=\"\",NA(),SUMIFS(Cad_Neg!$N$14:$N$1000,Cad_Neg!$B$14:$B$1000,Config!F$1,Cad_Neg!$J$14:$J$1000,Config!$C$15,Cad_Neg!$C$14:$C$1000,Config!$C24))","v":0},{"$f":"IF($C24=\"\",NA(),SUMIFS(Cad_Neg!$N$14:$N$1000,Cad_Neg!$B$14:$B$1000,Config!G$1,Cad_Neg!$J$14:$J$1000,Config!$C$15,Cad_Neg!$C$14:$C$1000,Config!$C24))","v":0},{"$f":"IF($C24=\"\",NA(),SUMIFS(Cad_Neg!$N$14:$N$1000,Cad_Neg!$B$14:$B$1000,Config!H$1,Cad_Neg!$J$14:$J$1000,Config!$C$15,Cad_Neg!$C$14:$C$1000,Config!$C24))","v":0},{"$f":"IF($C24=\"\",NA(),SUMIFS(Cad_Neg!$N$14:$N$1000,Cad_Neg!$B$14:$B$1000,Config!I$1,Cad_Neg!$J$14:$J$1000,Config!$C$15,Cad_Neg!$C$14:$C$1000,Config!$C24))","v":0},{"$f":"IF($C24=\"\",NA(),SUMIFS(Cad_Neg!$N$14:$N$1000,Cad_Neg!$B$14:$B$1000,Config!J$1,Cad_Neg!$J$14:$J$1000,Config!$C$15,Cad_Neg!$C$14:$C$1000,Config!$C24))","v":0},{"$f":"IF($C24=\"\",NA(),SUMIFS(Cad_Neg!$N$14:$N$1000,Cad_Neg!$B$14:$B$1000,Config!K$1,Cad_Neg!$J$14:$J$1000,Config!$C$15,Cad_Neg!$C$14:$C$1000,Config!$C24))","v":0},{"$f":"IF($C24=\"\",NA(),SUMIFS(Cad_Neg!$N$14:$N$1000,Cad_Neg!$B$14:$B$1000,Config!L$1,Cad_Neg!$J$14:$J$1000,Config!$C$15,Cad_Neg!$C$14:$C$1000,Config!$C24))","v":0},{"$f":"IF($C24=\"\",NA(),SUMIFS(Cad_Neg!$N$14:$N$1000,Cad_Neg!$B$14:$B$1000,Config!M$1,Cad_Neg!$J$14:$J$1000,Config!$C$15,Cad_Neg!$C$14:$C$1000,Config!$C24))","v":0},{"$f":"IF($C24=\"\",NA(),SUMIFS(Cad_Neg!$N$14:$N$1000,Cad_Neg!$B$14:$B$1000,Config!N$1,Cad_Neg!$J$14:$J$1000,Config!$C$15,Cad_Neg!$C$14:$C$1000,Config!$C24))","v":0},{"$f":"IF($C24=\"\",NA(),SUMIFS(Cad_Neg!$N$14:$N$1000,Cad_Neg!$B$14:$B$1000,Config!O$1,Cad_Neg!$J$14:$J$1000,Config!$C$15,Cad_Neg!$C$14:$C$1000,Config!$C24))","v":0},0,null,0,24,null,{"$f":"IF($C24=\"\",NA(),IF($R$1=\"Todos\",Cad_Vendedores!G19*12,Cad_Vendedores!G19))","v":24000}]
[null,null,{"$f":"IF(Cad_Vendedores!C20<>\"\",Cad_Vendedores!C20,\"\")","v":"Vendedor 7"},{"$f":"IF($C25=\"\",NA(),SUMIFS(Cad_Neg!$N$14:$N$1000,Cad_Neg!$B$14:$B$1000,Config!D$1,Cad_Neg!$J$14:$J$1000,Config!$C$15,Cad_Neg!$C$14:$C$1000,Config!$C25))","v":0},{"$f":"IF($C25=\"\",NA(),SUMIFS(Cad_Neg!$N$14:$N$1000,Cad_Neg!$B$14:$B$1000,Config!E$1,Cad_Neg!$J$14:$J$1000,Config!$C$15,Cad_Neg!$C$14:$C$1000,Config!$C25))","v":0},{"$f":"IF($C25=\"\",NA(),SUMIFS(Cad_Neg!$N$14:$N$1000,Cad_Neg!$B$14:$B$1000,Config!F$1,Cad_Neg!$J$14:$J$1000,Config!$C$15,Cad_Neg!$C$14:$C$1000,Config!$C25))","v":0},{"$f":"IF($C25=\"\",NA(),SUMIFS(Cad_Neg!$N$14:$N$1000,Cad_Neg!$B$14:$B$1000,Config!G$1,Cad_Neg!$J$14:$J$1000,Config!$C$15,Cad_Neg!$C$14:$C$1000,Config!$C25))","v":0},{"$f":"IF($C25=\"\",NA(),SUMIFS(Cad_Neg!$N$14:$N$1000,Cad_Neg!$B$14:$B$1000,Config!H$1,Cad_Neg!$J$14:$J$1000,Config!$C$15,Cad_Neg!$C$14:$C$1000,Config!$C25))","v":0},{"$f":"IF($C25=\"\",NA(),SUMIFS(Cad_Neg!$N$14:$N$1000,Cad_Neg!$B$14:$B$1000,Config!I$1,Cad_Neg!$J$14:$J$1000,Config!$C$15,Cad_Neg!$C$14:$C$1000,Config!$C25))","v":0},{"$f":"IF($C25=\"\",NA(),SUMIFS(Cad_Neg!$N$14:$N$1000,Cad_Neg!$B$14:$B$1000,Config!J$1,Cad_Neg!$J$14:$J$1000,Config!$C$15,Cad_Neg!$C$14:$C$1000,Config!$C25))","v":0},{"$f":"IF($C25=\"\",NA(),SUMIFS(Cad_Neg!$N$14:$N$1000,Cad_Neg!$B$14:$B$1000,Config!K$1,Cad_Neg!$J$14:$J$1000,Config!$C$15,Cad_Neg!$C$14:$C$1000,Config!$C25))","v":0},{"$f":"IF($C25=\"\",NA(),SUMIFS(Cad_Neg!$N$14:$N$1000,Cad_Neg!$B$14:$B$1000,Config!L$1,Cad_Neg!$J$14:$J$1000,Config!$C$15,Cad_Neg!$C$14:$C$1000,Config!$C25))","v":0},{"$f":"IF($C25=\"\",NA(),SUMIFS(Cad_Neg!$N$14:$N$1000,Cad_Neg!$B$14:$B$1000,Config!M$1,Cad_Neg!$J$14:$J$1000,Config!$C$15,Cad_Neg!$C$14:$C$1000,Config!$C25))","v":0},{"$f":"IF($C25=\"\",NA(),SUMIFS(Cad_Neg!$N$14:$N$1000,Cad_Neg!$B$14:$B$1000,Config!N$1,Cad_Neg!$J$14:$J$1000,Config!$C$15,Cad_Neg!$C$14:$C$1000,Config!$C25))","v":0},{"$f":"IF($C25=\"\",NA(),SUMIFS(Cad_Neg!$N$14:$N$1000,Cad_Neg!$B$14:$B$1000,Config!O$1,Cad_Neg!$J$14:$J$1000,Config!$C$15,Cad_Neg!$C$14:$C$1000,Config!$C25))","v":0},0,null,0,25,null,{"$f":"IF($C25=\"\",NA(),IF($R$1=\"Todos\",Cad_Vendedores!G20*12,Cad_Vendedores!G20))","v":24000}]
[null,null,{"$f":"IF(Cad_Vendedores!C21<>\"\",Cad_Vendedores!C21,\"\")","v":"Vendedor 8"},{"$f":"IF($C26=\"\",NA(),SUMIFS(Cad_Neg!$N$14:$N$1000,Cad_Neg!$B$14:$B$1000,Config!D$1,Cad_Neg!$J$14:$J$1000,Config!$C$15,Cad_Neg!$C$14:$C$1000,Config!$C26))","v":0},{"$f":"IF($C26=\"\",NA(),SUMIFS(Cad_Neg!$N$14:$N$1000,Cad_Neg!$B$14:$B$1000,Config!E$1,Cad_Neg!$J$14:$J$1000,Config!$C$15,Cad_Neg!$C$14:$C$1000,Config!$C26))","v":0},{"$f":"IF($C26=\"\",NA(),SUMIFS(Cad_Neg!$N$14:$N$1000,Cad_Neg!$B$14:$B$1000,Config!F$1,Cad_Neg!$J$14:$J$1000,Config!$C$15,Cad_Neg!$C$14:$C$1000,Config!$C26))","v":0},{"$f":"IF($C26=\"\",NA(),SUMIFS(Cad_Neg!$N$14:$N$1000,Cad_Neg!$B$14:$B$1000,Config!G$1,Cad_Neg!$J$14:$J$1000,Config!$C$15,Cad_Neg!$C$14:$C$1000,Config!$C26))","v":0},{"$f":"IF($C26=\"\",NA(),SUMIFS(Cad_Neg!$N$14:$N$1000,Cad_Neg!$B$14:$B$1000,Config!H$1,Cad_Neg!$J$14:$J$1000,Config!$C$15,Cad_Neg!$C$14:$C$1000,Config!$C26))","v":0},{"$f":"IF($C26=\"\",NA(),SUMIFS(Cad_Neg!$N$14:$N$1000,Cad_Neg!$B$14:$B$1000,Config!I$1,Cad_Neg!$J$14:$J$1000,Config!$C$15,Cad_Neg!$C$14:$C$1000,Config!$C26))","v":0},{"$f":"IF($C26=\"\",NA(),SUMIFS(Cad_Neg!$N$14:$N$1000,Cad_Neg!$B$14:$B$1000,Config!J$1,Cad_Neg!$J$14:$J$1000,Config!$C$15,Cad_Neg!$C$14:$C$1000,Config!$C26))","v":0},{"$f":"IF($C26=\"\",NA(),SUMIFS(Cad_Neg!$N$14:$N$1000,Cad_Neg!$B$14:$B$1000,Config!K$1,Cad_Neg!$J$14:$J$1000,Config!$C$15,Cad_Neg!$C$14:$C$1000,Config!$C26))","v":0},{"$f":"IF($C26=\"\",NA(),SUMIFS(Cad_Neg!$N$14:$N$1000,Cad_Neg!$B$14:$B$1000,Config!L$1,Cad_Neg!$J$14:$J$1000,Config!$C$15,Cad_Neg!$C$14:$C$1000,Config!$C26))","v":0},{"$f":"IF($C26=\"\",NA(),SUMIFS(Cad_Neg!$N$14:$N$1000,Cad_Neg!$B$14:$B$1000,Config!M$1,Cad_Neg!$J$14:$J$1000,Config!$C$15,Cad_Neg!$C$14:$C$1000,Config!$C26))","v":0},{"$f":"IF($C26=\"\",NA(),SUMIFS(Cad_Neg!$N$14:$N$1000,Cad_Neg!$B$14:$B$1000,Config!N$1,Cad_Neg!$J$14:$J$1000,Config!$C$15,Cad_Neg!$C$14:$C$1000,Config!$C26))","v":0},{"$f":"IF($C26=\"\",NA(),SUMIFS(Cad_Neg!$N$14:$N$1000,Cad_Neg!$B$14:$B$1000,Config!O$1,Cad_Neg!$J$14:$J$1000,Config!$C$15,Cad_Neg!$C$14:$C$1000,Config!$C26))","v":0},0,null,0,26,null,{"$f":"IF($C26=\"\",NA(),IF($R$1=\"Todos\",Cad_Vendedores!G21*12,Cad_Vendedores!G21))","v":24000}]
[null,null,{"$f":"IF(Cad_Vendedores!C22<>\"\",Cad_Vendedores!C22,\"\")","v":"Vendedor 9"},{"$f":"IF($C27=\"\",NA(),SUMIFS(Cad_Neg!$N$14:$N$1000,Cad_Neg!$B$14:$B$1000,Config!D$1,Cad_Neg!$J$14:$J$1000,Config!$C$15,Cad_Neg!$C$14:$C$1000,Config!$C27))","v":0},{"$f":"IF($C27=\"\",NA(),SUMIFS(Cad_Neg!$N$14:$N$1000,Cad_Neg!$B$14:$B$1000,Config!E$1,Cad_Neg!$J$14:$J$1000,Config!$C$15,Cad_Neg!$C$14:$C$1000,Config!$C27))","v":0},{"$f":"IF($C27=\"\",NA(),SUMIFS(Cad_Neg!$N$14:$N$1000,Cad_Neg!$B$14:$B$1000,Config!F$1,Cad_Neg!$J$14:$J$1000,Config!$C$15,Cad_Neg!$C$14:$C$1000,Config!$C27))","v":0},{"$f":"IF($C27=\"\",NA(),SUMIFS(Cad_Neg!$N$14:$N$1000,Cad_Neg!$B$14:$B$1000,Config!G$1,Cad_Neg!$J$14:$J$1000,Config!$C$15,Cad_Neg!$C$14:$C$1000,Config!$C27))","v":0},{"$f":"IF($C27=\"\",NA(),SUMIFS(Cad_Neg!$N$14:$N$1000,Cad_Neg!$B$14:$B$1000,Config!H$1,Cad_Neg!$J$14:$J$1000,Config!$C$15,Cad_Neg!$C$14:$C$1000,Config!$C27))","v":0},{"$f":"IF($C27=\"\",NA(),SUMIFS(Cad_Neg!$N$14:$N$1000,Cad_Neg!$B$14:$B$1000,Config!I$1,Cad_Neg!$J$14:$J$1000,Config!$C$15,Cad_Neg!$C$14:$C$1000,Config!$C27))","v":0},{"$f":"IF($C27=\"\",NA(),SUMIFS(Cad_Neg!$N$14:$N$1000,Cad_Neg!$B$14:$B$1000,Config!J$1,Cad_Neg!$J$14:$J$1000,Config!$C$15,Cad_Neg!$C$14:$C$1000,Config!$C27))","v":0},{"$f":"IF($C27=\"\",NA(),SUMIFS(Cad_Neg!$N$14:$N$1000,Cad_Neg!$B$14:$B$1000,Config!K$1,Cad_Neg!$J$14:$J$1000,Config!$C$15,Cad_Neg!$C$14:$C$1000,Config!$C27))","v":0},{"$f":"IF($C27=\"\",NA(),SUMIFS(Cad_Neg!$N$14:$N$1000,Cad_Neg!$B$14:$B$1000,Config!L$1,Cad_Neg!$J$14:$J$1000,Config!$C$15,Cad_Neg!$C$14:$C$1000,Config!$C27))","v":0},{"$f":"IF($C27=\"\",NA(),SUMIFS(Cad_Neg!$N$14:$N$1000,Cad_Neg!$B$14:$B$1000,Config!M$1,Cad_Neg!$J$14:$J$1000,Config!$C$15,Cad_Neg!$C$14:$C$1000,Config!$C27))","v":0},{"$f":"IF($C27=\"\",NA(),SUMIFS(Cad_Neg!$N$14:$N$1000,Cad_Neg!$B$14:$B$1000,Config!N$1,Cad_Neg!$J$14:$J$1000,Config!$C$15,Cad_Neg!$C$14:$C$1000,Config!$C27))","v":0},{"$f":"IF($C27=\"\",NA(),SUMIFS(Cad_Neg!$N$14:$N$1000,Cad_Neg!$B$14:$B$1000,Config!O$1,Cad_Neg!$J$14:$J$1000,Config!$C$15,Cad_Neg!$C$14:$C$1000,Config!$C27))","v":0},0,null,0,27,null,{"$f":"IF($C27=\"\",NA(),IF($R$1=\"Todos\",Cad_Vendedores!G22*12,Cad_Vendedores!G22))","v":24000}]
[null,null,{"$f":"IF(Cad_Vendedores!C23<>\"\",Cad_Vendedores!C23,\"\")","v":"Vendedor 10"},{"$f":"IF($C28=\"\",NA(),SUMIFS(Cad_Neg!$N$14:$N$1000,Cad_Neg!$B$14:$B$1000,Config!D$1,Cad_Neg!$J$14:$J$1000,Config!$C$15,Cad_Neg!$C$14:$C$1000,Config!$C28))","v":0},{"$f":"IF($C28=\"\",NA(),SUMIFS(Cad_Neg!$N$14:$N$1000,Cad_Neg!$B$14:$B$1000,Config!E$1,Cad_Neg!$J$14:$J$1000,Config!$C$15,Cad_Neg!$C$14:$C$1000,Config!$C28))","v":0},{"$f":"IF($C28=\"\",NA(),SUMIFS(Cad_Neg!$N$14:$N$1000,Cad_Neg!$B$14:$B$1000,Config!F$1,Cad_Neg!$J$14:$J$1000,Config!$C$15,Cad_Neg!$C$14:$C$1000,Config!$C28))","v":0},{"$f":"IF($C28=\"\",NA(),SUMIFS(Cad_Neg!$N$14:$N$1000,Cad_Neg!$B$14:$B$1000,Config!G$1,Cad_Neg!$J$14:$J$1000,Config!$C$15,Cad_Neg!$C$14:$C$1000,Config!$C28))","v":0},{"$f":"IF($C28=\"\",NA(),SUMIFS(Cad_Neg!$N$14:$N$1000,Cad_Neg!$B$14:$B$1000,Config!H$1,Cad_Neg!$J$14:$J$1000,Config!$C$15,Cad_Neg!$C$14:$C$1000,Config!$C28))","v":0},{"$f":"IF($C28=\"\",NA(),SUMIFS(Cad_Neg!$N$14:$N$1000,Cad_Neg!$B$14:$B$1000,Config!I$1,Cad_Neg!$J$14:$J$1000,Config!$C$15,Cad_Neg!$C$14:$C$1000,Config!$C28))","v":0},{"$f":"IF($C28=\"\",NA(),SUMIFS(Cad_Neg!$N$14:$N$1000,Cad_Neg!$B$14:$B$1000,Config!J$1,Cad_Neg!$J$14:$J$1000,Config!$C$15,Cad_Neg!$C$14:$C$1000,Config!$C28))","v":0},{"$f":"IF($C28=\"\",NA(),SUMIFS(Cad_Neg!$N$14:$N$1000,Cad_Neg!$B$14:$B$1000,Config!K$1,Cad_Neg!$J$14:$J$1000,Config!$C$15,Cad_Neg!$C$14:$C$1000,Config!$C28))","v":0},{"$f":"IF($C28=\"\",NA(),SUMIFS(Cad_Neg!$N$14:$N$1000,Cad_Neg!$B$14:$B$1000,Config!L$1,Cad_Neg!$J$14:$J$1000,Config!$C$15,Cad_Neg!$C$14:$C$1000,Config!$C28))","v":0},{"$f":"IF($C28=\"\",NA(),SUMIFS(Cad_Neg!$N$14:$N$1000,Cad_Neg!$B$14:$B$1000,Config!M$1,Cad_Neg!$J$14:$J$1000,Config!$C$15,Cad_Neg!$C$14:$C$1000,Config!$C28))","v":0},{"$f":"IF($C28=\"\",NA(),SUMIFS(Cad_Neg!$N$14:$N$1000,Cad_Neg!$B$14:$B$1000,Config!N$1,Cad_Neg!$J$14:$J$1000,Config!$C$15,Cad_Neg!$C$14:$C$1000,Config!$C28))","v":0},{"$f":"IF($C28=\"\",NA(),SUMIFS(Cad_Neg!$N$14:$N$1000,Cad_Neg!$B$14:$B$1000,Config!O$1,Cad_Neg!$J$14:$J$1000,Config!$C$15,Cad_Neg!$C$14:$C$1000,Config!$C28))","v":0},0,null,0,28,null,{"$f":"IF($C28=\"\",NA(),IF($R$1=\"Todos\",Cad_Vendedores!G23*12,Cad_Vendedores!G23))","v":24000}]
[null,null,{"$f":"IF(Cad_Vendedores!C24<>\"\",Cad_Vendedores!C24,\"\")","v":""},{"$f":"IF($C29=\"\",NA(),SUMIFS(Cad_Neg!$N$14:$N$1000,Cad_Neg!$B$14:$B$1000,Config!D$1,Cad_Neg!$J$14:$J$1000,Config!$C$15,Cad_Neg!$C$14:$C$1000,Config!$C29))","v":{"$error":"#N/A"}},{"$f":"IF($C29=\"\",NA(),SUMIFS(Cad_Neg!$N$14:$N$1000,Cad_Neg!$B$14:$B$1000,Config!E$1,Cad_Neg!$J$14:$J$1000,Config!$C$15,Cad_Neg!$C$14:$C$1000,Config!$C29))","v":{"$error":"#N/A"}},{"$f":"IF($C29=\"\",NA(),SUMIFS(Cad_Neg!$N$14:$N$1000,Cad_Neg!$B$14:$B$1000,Config!F$1,Cad_Neg!$J$14:$J$1000,Config!$C$15,Cad_Neg!$C$14:$C$1000,Config!$C29))","v":{"$error":"#N/A"}},{"$f":"IF($C29=\"\",NA(),SUMIFS(Cad_Neg!$N$14:$N$1000,Cad_Neg!$B$14:$B$1000,Config!G$1,Cad_Neg!$J$14:$J$1000,Config!$C$15,Cad_Neg!$C$14:$C$1000,Config!$C29))","v":{"$error":"#N/A"}},{"$f":"IF($C29=\"\",NA(),SUMIFS(Cad_Neg!$N$14:$N$1000,Cad_Neg!$B$14:$B$1000,Config!H$1,Cad_Neg!$J$14:$J$1000,Config!$C$15,Cad_Neg!$C$14:$C$1000,Config!$C29))","v":{"$error":"#N/A"}},{"$f":"IF($C29=\"\",NA(),SUMIFS(Cad_Neg!$N$14:$N$1000,Cad_Neg!$B$14:$B$1000,Config!I$1,Cad_Neg!$J$14:$J$1000,Config!$C$15,Cad_Neg!$C$14:$C$1000,Config!$C29))","v":{"$error":"#N/A"}},{"$f":"IF($C29=\"\",NA(),SUMIFS(Cad_Neg!$N$14:$N$1000,Cad_Neg!$B$14:$B$1000,Config!J$1,Cad_Neg!$J$14:$J$1000,Config!$C$15,Cad_Neg!$C$14:$C$1000,Config!$C29))","v":{"$error":"#N/A"}},{"$f":"IF($C29=\"\",NA(),SUMIFS(Cad_Neg!$N$14:$N$1000,Cad_Neg!$B$14:$B$1000,Config!K$1,Cad_Neg!$J$14:$J$1000,Config!$C$15,Cad_Neg!$C$14:$C$1000,Config!$C29))","v":{"$error":"#N/A"}},{"$f":"IF($C29=\"\",NA(),SUMIFS(Cad_Neg!$N$14:$N$1000,Cad_Neg!$B$14:$B$1000,Config!L$1,Cad_Neg!$J$14:$J$1000,Config!$C$15,Cad_Neg!$C$14:$C$1000,Config!$C29))","v":{"$error":"#N/A"}},{"$f":"IF($C29=\"\",NA(),SUMIFS(Cad_Neg!$N$14:$N$1000,Cad_Neg!$B$14:$B$1000,Config!M$1,Cad_Neg!$J$14:$J$1000,Config!$C$15,Cad_Neg!$C$14:$C$1000,Config!$C29))","v":{"$error":"#N/A"}},{"$f":"IF($C29=\"\",NA(),SUMIFS(Cad_Neg!$N$14:$N$1000,Cad_Neg!$B$14:$B$1000,Config!N$1,Cad_Neg!$J$14:$J$1000,Config!$C$15,Cad_Neg!$C$14:$C$1000,Config!$C29))","v":{"$error":"#N/A"}},{"$f":"IF($C29=\"\",NA(),SUMIFS(Cad_Neg!$N$14:$N$1000,Cad_Neg!$B$14:$B$1000,Config!O$1,Cad_Neg!$J$14:$J$1000,Config!$C$15,Cad_Neg!$C$14:$C$1000,Config!$C29))","v":{"$error":"#N/A"}},{"$error":"#N/A"},null,{"$error":"#N/A"},29,null,{"$f":"IF($C29=\"\",NA(),IF($R$1=\"Todos\",Cad_Vendedores!G24*12,Cad_Vendedores!G24))","v":{"$error":"#N/A"}}]
[null,null,{"$f":"IF(Cad_Vendedores!C25<>\"\",Cad_Vendedores!C25,\"\")","v":""},{"$f":"IF($C30=\"\",NA(),SUMIFS(Cad_Neg!$N$14:$N$1000,Cad_Neg!$B$14:$B$1000,Config!D$1,Cad_Neg!$J$14:$J$1000,Config!$C$15,Cad_Neg!$C$14:$C$1000,Config!$C30))","v":{"$error":"#N/A"}},{"$f":"IF($C30=\"\",NA(),SUMIFS(Cad_Neg!$N$14:$N$1000,Cad_Neg!$B$14:$B$1000,Config!E$1,Cad_Neg!$J$14:$J$1000,Config!$C$15,Cad_Neg!$C$14:$C$1000,Config!$C30))","v":{"$error":"#N/A"}},{"$f":"IF($C30=\"\",NA(),SUMIFS(Cad_Neg!$N$14:$N$1000,Cad_Neg!$B$14:$B$1000,Config!F$1,Cad_Neg!$J$14:$J$1000,Config!$C$15,Cad_Neg!$C$14:$C$1000,Config!$C30))","v":{"$error":"#N/A"}},{"$f":"IF($C30=\"\",NA(),SUMIFS(Cad_Neg!$N$14:$N$1000,Cad_Neg!$B$14:$B$1000,Config!G$1,Cad_Neg!$J$14:$J$1000,Config!$C$15,Cad_Neg!$C$14:$C$1000,Config!$C30))","v":{"$error":"#N/A"}},{"$f":"IF($C30=\"\",NA(),SUMIFS(Cad_Neg!$N$14:$N$1000,Cad_Neg!$B$14:$B$1000,Config!H$1,Cad_Neg!$J$14:$J$1000,Config!$C$15,Cad_Neg!$C$14:$C$1000,Config!$C30))","v":{"$error":"#N/A"}},{"$f":"IF($C30=\"\",NA(),SUMIFS(Cad_Neg!$N$14:$N$1000,Cad_Neg!$B$14:$B$1000,Config!I$1,Cad_Neg!$J$14:$J$1000,Config!$C$15,Cad_Neg!$C$14:$C$1000,Config!$C30))","v":{"$error":"#N/A"}},{"$f":"IF($C30=\"\",NA(),SUMIFS(Cad_Neg!$N$14:$N$1000,Cad_Neg!$B$14:$B$1000,Config!J$1,Cad_Neg!$J$14:$J$1000,Config!$C$15,Cad_Neg!$C$14:$C$1000,Config!$C30))","v":{"$error":"#N/A"}},{"$f":"IF($C30=\"\",NA(),SUMIFS(Cad_Neg!$N$14:$N$1000,Cad_Neg!$B$14:$B$1000,Config!K$1,Cad_Neg!$J$14:$J$1000,Config!$C$15,Cad_Neg!$C$14:$C$1000,Config!$C30))","v":{"$error":"#N/A"}},{"$f":"IF($C30=\"\",NA(),SUMIFS(Cad_Neg!$N$14:$N$1000,Cad_Neg!$B$14:$B$1000,Config!L$1,Cad_Neg!$J$14:$J$1000,Config!$C$15,Cad_Neg!$C$14:$C$1000,Config!$C30))","v":{"$error":"#N/A"}},{"$f":"IF($C30=\"\",NA(),SUMIFS(Cad_Neg!$N$14:$N$1000,Cad_Neg!$B$14:$B$1000,Config!M$1,Cad_Neg!$J$14:$J$1000,Config!$C$15,Cad_Neg!$C$14:$C$1000,Config!$C30))","v":{"$error":"#N/A"}},{"$f":"IF($C30=\"\",NA(),SUMIFS(Cad_Neg!$N$14:$N$1000,Cad_Neg!$B$14:$B$1000,Config!N$1,Cad_Neg!$J$14:$J$1000,Config!$C$15,Cad_Neg!$C$14:$C$1000,Config!$C30))","v":{"$error":"#N/A"}},{"$f":"IF($C30=\"\",NA(),SUMIFS(Cad_Neg!$N$14:$N$1000,Cad_Neg!$B$14:$B$1000,Config!O$1,Cad_Neg!$J$14:$J$1000,Config!$C$15,Cad_Neg!$C$14:$C$1000,Config!$C30))","v":{"$error":"#N/A"}},{"$error":"#N/A"},null,{"$error":"#N/A"},30,null,{"$f":"IF($C30=\"\",NA(),IF($R$1=\"Todos\",Cad_Vendedores!G25*12,Cad_Vendedores!G25))","v":{"$error":"#N/A"}}]
[null,null,{"$f":"IF(Cad_Vendedores!C26<>\"\",Cad_Vendedores!C26,\"\")","v":""},{"$f":"IF($C31=\"\",NA(),SUMIFS(Cad_Neg!$N$14:$N$1000,Cad_Neg!$B$14:$B$1000,Config!D$1,Cad_Neg!$J$14:$J$1000,Config!$C$15,Cad_Neg!$C$14:$C$1000,Config!$C31))","v":{"$error":"#N/A"}},{"$f":"IF($C31=\"\",NA(),SUMIFS(Cad_Neg!$N$14:$N$1000,Cad_Neg!$B$14:$B$1000,Config!E$1,Cad_Neg!$J$14:$J$1000,Config!$C$15,Cad_Neg!$C$14:$C$1000,Config!$C31))","v":{"$error":"#N/A"}},{"$f":"IF($C31=\"\",NA(),SUMIFS(Cad_Neg!$N$14:$N$1000,Cad_Neg!$B$14:$B$1000,Config!F$1,Cad_Neg!$J$14:$J$1000,Config!$C$15,Cad_Neg!$C$14:$C$1000,Config!$C31))","v":{"$error":"#N/A"}},{"$f":"IF($C31=\"\",NA(),SUMIFS(Cad_Neg!$N$14:$N$1000,Cad_Neg!$B$14:$B$1000,Config!G$1,Cad_Neg!$J$14:$J$1000,Config!$C$15,Cad_Neg!$C$14:$C$1000,Config!$C31))","v":{"$error":"#N/A"}},{"$f":"IF($C31=\"\",NA(),SUMIFS(Cad_Neg!$N$14:$N$1000,Cad_Neg!$B$14:$B$1000,Config!H$1,Cad_Neg!$J$14:$J$1000,Config!$C$15,Cad_Neg!$C$14:$C$1000,Config!$C31))","v":{"$error":"#N/A"}},{"$f":"IF($C31=\"\",NA(),SUMIFS(Cad_Neg!$N$14:$N$1000,Cad_Neg!$B$14:$B$1000,Config!I$1,Cad_Neg!$J$14:$J$1000,Config!$C$15,Cad_Neg!$C$14:$C$1000,Config!$C31))","v":{"$error":"#N/A"}},{"$f":"IF($C31=\"\",NA(),SUMIFS(Cad_Neg!$N$14:$N$1000,Cad_Neg!$B$14:$B$1000,Config!J$1,Cad_Neg!$J$14:$J$1000,Config!$C$15,Cad_Neg!$C$14:$C$1000,Config!$C31))","v":{"$error":"#N/A"}},{"$f":"IF($C31=\"\",NA(),SUMIFS(Cad_Neg!$N$14:$N$1000,Cad_Neg!$B$14:$B$1000,Config!K$1,Cad_Neg!$J$14:$J$1000,Config!$C$15,Cad_Neg!$C$14:$C$1000,Config!$C31))","v":{"$error":"#N/A"}},{"$f":"IF($C31=\"\",NA(),SUMIFS(Cad_Neg!$N$14:$N$1000,Cad_Neg!$B$14:$B$1000,Config!L$1,Cad_Neg!$J$14:$J$1000,Config!$C$15,Cad_Neg!$C$14:$C$1000,Config!$C31))","v":{"$error":"#N/A"}},{"$f":"IF($C31=\"\",NA(),SUMIFS(Cad_Neg!$N$14:$N$1000,Cad_Neg!$B$14:$B$1000,Config!M$1,Cad_Neg!$J$14:$J$1000,Config!$C$15,Cad_Neg!$C$14:$C$1000,Config!$C31))","v":{"$error":"#N/A"}},{"$f":"IF($C31=\"\",NA(),SUMIFS(Cad_Neg!$N$14:$N$1000,Cad_Neg!$B$14:$B$1000,Config!N$1,Cad_Neg!$J$14:$J$1000,Config!$C$15,Cad_Neg!$C$14:$C$1000,Config!$C31))","v":{"$error":"#N/A"}},{"$f":"IF($C31=\"\",NA(),SUMIFS(Cad_Neg!$N$14:$N$1000,Cad_Neg!$B$14:$B$1000,Config!O$1,Cad_Neg!$J$14:$J$1000,Config!$C$15,Cad_Neg!$C$14:$C$1000,Config!$C31))","v":{"$error":"#N/A"}},{"$error":"#N/A"},null,{"$error":"#N/A"},31,null,{"$f":"IF($C31=\"\",NA(),IF($R$1=\"Todos\",Cad_Vendedores!G26*12,Cad_Vendedores!G26))","v":{"$error":"#N/A"}}]
[null,null,{"$f":"IF(Cad_Vendedores!C27<>\"\",Cad_Vendedores!C27,\"\")","v":""},{"$f":"IF($C32=\"\",NA(),SUMIFS(Cad_Neg!$N$14:$N$1000,Cad_Neg!$B$14:$B$1000,Config!D$1,Cad_Neg!$J$14:$J$1000,Config!$C$15,Cad_Neg!$C$14:$C$1000,Config!$C32))","v":{"$error":"#N/A"}},{"$f":"IF($C32=\"\",NA(),SUMIFS(Cad_Neg!$N$14:$N$1000,Cad_Neg!$B$14:$B$1000,Config!E$1,Cad_Neg!$J$14:$J$1000,Config!$C$15,Cad_Neg!$C$14:$C$1000,Config!$C32))","v":{"$error":"#N/A"}},{"$f":"IF($C32=\"\",NA(),SUMIFS(Cad_Neg!$N$14:$N$1000,Cad_Neg!$B$14:$B$1000,Config!F$1,Cad_Neg!$J$14:$J$1000,Config!$C$15,Cad_Neg!$C$14:$C$1000,Config!$C32))","v":{"$error":"#N/A"}},{"$f":"IF($C32=\"\",NA(),SUMIFS(Cad_Neg!$N$14:$N$1000,Cad_Neg!$B$14:$B$1000,Config!G$1,Cad_Neg!$J$14:$J$1000,Config!$C$15,Cad_Neg!$C$14:$C$1000,Config!$C32))","v":{"$error":"#N/A"}},{"$f":"IF($C32=\"\",NA(),SUMIFS(Cad_Neg!$N$14:$N$1000,Cad_Neg!$B$14:$B$1000,Config!H$1,Cad_Neg!$J$14:$J$1000,Config!$C$15,Cad_Neg!$C$14:$C$1000,Config!$C32))","v":{"$error":"#N/A"}},{"$f":"IF($C32=\"\",NA(),SUMIFS(Cad_Neg!$N$14:$N$1000,Cad_Neg!$B$14:$B$1000,Config!I$1,Cad_Neg!$J$14:$J$1000,Config!$C$15,Cad_Neg!$C$14:$C$1000,Config!$C32))","v":{"$error":"#N/A"}},{"$f":"IF($C32=\"\",NA(),SUMIFS(Cad_Neg!$N$14:$N$1000,Cad_Neg!$B$14:$B$1000,Config!J$1,Cad_Neg!$J$14:$J$1000,Config!$C$15,Cad_Neg!$C$14:$C$1000,Config!$C32))","v":{"$error":"#N/A"}},{"$f":"IF($C32=\"\",NA(),SUMIFS(Cad_Neg!$N$14:$N$1000,Cad_Neg!$B$14:$B$1000,Config!K$1,Cad_Neg!$J$14:$J$1000,Config!$C$15,Cad_Neg!$C$14:$C$1000,Config!$C32))","v":{"$error":"#N/A"}},{"$f":"IF($C32=\"\",NA(),SUMIFS(Cad_Neg!$N$14:$N$1000,Cad_Neg!$B$14:$B$1000,Config!L$1,Cad_Neg!$J$14:$J$1000,Config!$C$15,Cad_Neg!$C$14:$C$1000,Config!$C32))","v":{"$error":"#N/A"}},{"$f":"IF($C32=\"\",NA(),SUMIFS(Cad_Neg!$N$14:$N$1000,Cad_Neg!$B$14:$B$1000,Config!M$1,Cad_Neg!$J$14:$J$1000,Config!$C$15,Cad_Neg!$C$14:$C$1000,Config!$C32))","v":{"$error":"#N/A"}},{"$f":"IF($C32=\"\",NA(),SUMIFS(Cad_Neg!$N$14:$N$1000,Cad_Neg!$B$14:$B$1000,Config!N$1,Cad_Neg!$J$14:$J$1000,Config!$C$15,Cad_Neg!$C$14:$C$1000,Config!$C32))","v":{"$error":"#N/A"}},{"$f":"IF($C32=\"\",NA(),SUMIFS(Cad_Neg!$N$14:$N$1000,Cad_Neg!$B$14:$B$1000,Config!O$1,Cad_Neg!$J$14:$J$1000,Config!$C$15,Cad_Neg!$C$14:$C$1000,Config!$C32))","v":{"$error":"#N/A"}},{"$error":"#N/A"},null,{"$error":"#N/A"},32,null,{"$f":"IF($C32=\"\",NA(),IF($R$1=\"Todos\",Cad_Vendedores!G27*12,Cad_Vendedores!G27))","v":{"$error":"#N/A"}}]
[null,null,{"$f":"IF(Cad_Vendedores!C28<>\"\",Cad_Vendedores!C28,\"\")","v":""},{"$f":"IF($C33=\"\",NA(),SUMIFS(Cad_Neg!$N$14:$N$1000,Cad_Neg!$B$14:$B$1000,Config!D$1,Cad_Neg!$J$14:$J$1000,Config!$C$15,Cad_Neg!$C$14:$C$1000,Config!$C33))","v":{"$error":"#N/A"}},{"$f":"IF($C33=\"\",NA(),SUMIFS(Cad_Neg!$N$14:$N$1000,Cad_Neg!$B$14:$B$1000,Config!E$1,Cad_Neg!$J$14:$J$1000,Config!$C$15,Cad_Neg!$C$14:$C$1000,Config!$C33))","v":{"$error":"#N/A"}},{"$f":"IF($C33=\"\",NA(),SUMIFS(Cad_Neg!$N$14:$N$1000,Cad_Neg!$B$14:$B$1000,Config!F$1,Cad_Neg!$J$14:$J$1000,Config!$C$15,Cad_Neg!$C$14:$C$1000,Config!$C33))","v":{"$error":"#N/A"}},{"$f":"IF($C33=\"\",NA(),SUMIFS(Cad_Neg!$N$14:$N$1000,Cad_Neg!$B$14:$B$1000,Config!G$1,Cad_Neg!$J$14:$J$1000,Config!$C$15,Cad_Neg!$C$14:$C$1000,Config!$C33))","v":{"$error":"#N/A"}},{"$f":"IF($C33=\"\",NA(),SUMIFS(Cad_Neg!$N$14:$N$1000,Cad_Neg!$B$14:$B$1000,Config!H$1,Cad_Neg!$J$14:$J$1000,Config!$C$15,Cad_Neg!$C$14:$C$1000,Config!$C33))","v":{"$error":"#N/A"}},{"$f":"IF($C33=\"\",NA(),SUMIFS(Cad_Neg!$N$14:$N$1000,Cad_Neg!$B$14:$B$1000,Config!I$1,Cad_Neg!$J$14:$J$1000,Config!$C$15,Cad_Neg!$C$14:$C$1000,Config!$C33))","v":{"$error":"#N/A"}},{"$f":"IF($C33=\"\",NA(),SUMIFS(Cad_Neg!$N$14:$N$1000,Cad_Neg!$B$14:$B$1000,Config!J$1,Cad_Neg!$J$14:$J$1000,Config!$C$15,Cad_Neg!$C$14:$C$1000,Config!$C33))","v":{"$error":"#N/A"}},{"$f":"IF($C33=\"\",NA(),SUMIFS(Cad_Neg!$N$14:$N$1000,Cad_Neg!$B$14:$B$1000,Config!K$1,Cad_Neg!$J$14:$J$1000,Config!$C$15,Cad_Neg!$C$14:$C$1000,Config!$C33))","v":{"$error":"#N/A"}},{"$f":"IF($C33=\"\",NA(),SUMIFS(Cad_Neg!$N$14:$N$1000,Cad_Neg!$B$14:$B$1000,Config!L$1,Cad_Neg!$J$14:$J$1000,Config!$C$15,Cad_Neg!$C$14:$C$1000,Config!$C33))","v":{"$error":"#N/A"}},{"$f":"IF($C33=\"\",NA(),SUMIFS(Cad_Neg!$N$14:$N$1000,Cad_Neg!$B$14:$B$1000,Config!M$1,Cad_Neg!$J$14:$J$1000,Config!$C$15,Cad_Neg!$C$14:$C$1000,Config!$C33))","v":{"$error":"#N/A"}},{"$f":"IF($C33=\"\",NA(),SUMIFS(Cad_Neg!$N$14:$N$1000,Cad_Neg!$B$14:$B$1000,Config!N$1,Cad_Neg!$J$14:$J$1000,Config!$C$15,Cad_Neg!$C$14:$C$1000,Config!$C33))","v":{"$error":"#N/A"}},{"$f":"IF($C33=\"\",NA(),SUMIFS(Cad_Neg!$N$14:$N$1000,Cad_Neg!$B$14:$B$1000,Config!O$1,Cad_Neg!$J$14:$J$1000,Config!$C$15,Cad_Neg!$C$14:$C$1000,Config!$C33))","v":{"$error":"#N/A"}},{"$error":"#N/A"},null,{"$error":"#N/A"},33,null,{"$f":"IF($C33=\"\",NA(),IF($R$1=\"Todos\",Cad_Vendedores!G28*12,Cad_Vendedores!G28))","v":{"$error":"#N/A"}}]
[null,null,{"$f":"IF(Cad_Vendedores!C29<>\"\",Cad_Vendedores!C29,\"\")","v":""},{"$f":"IF($C34=\"\",NA(),SUMIFS(Cad_Neg!$N$14:$N$1000,Cad_Neg!$B$14:$B$1000,Config!D$1,Cad_Neg!$J$14:$J$1000,Config!$C$15,Cad_Neg!$C$14:$C$1000,Config!$C34))","v":{"$error":"#N/A"}},{"$f":"IF($C34=\"\",NA(),SUMIFS(Cad_Neg!$N$14:$N$1000,Cad_Neg!$B$14:$B$1000,Config!E$1,Cad_Neg!$J$14:$J$1000,Config!$C$15,Cad_Neg!$C$14:$C$1000,Config!$C34))","v":{"$error":"#N/A"}},{"$f":"IF($C34=\"\",NA(),SUMIFS(Cad_Neg!$N$14:$N$1000,Cad_Neg!$B$14:$B$1000,Config!F$1,Cad_Neg!$J$14:$J$1000,Config!$C$15,Cad_Neg!$C$14:$C$1000,Config!$C34))","v":{"$error":"#N/A"}},{"$f":"IF($C34=\"\",NA(),SUMIFS(Cad_Neg!$N$14:$N$1000,Cad_Neg!$B$14:$B$1000,Config!G$1,Cad_Neg!$J$14:$J$1000,Config!$C$15,Cad_Neg!$C$14:$C$1000,Config!$C34))","v":{"$error":"#N/A"}},{"$f":"IF($C34=\"\",NA(),SUMIFS(Cad_Neg!$N$14:$N$1000,Cad_Neg!$B$14:$B$1000,Config!H$1,Cad_Neg!$J$14:$J$1000,Config!$C$15,Cad_Neg!$C$14:$C$1000,Config!$C34))","v":{"$error":"#N/A"}},{"$f":"IF($C34=\"\",NA(),SUMIFS(Cad_Neg!$N$14:$N$1000,Cad_Neg!$B$14:$B$1000,Config!I$1,Cad_Neg!$J$14:$J$1000,Config!$C$15,Cad_Neg!$C$14:$C$1000,Config!$C34))","v":{"$error":"#N/A"}},{"$f":"IF($C34=\"\",NA(),SUMIFS(Cad_Neg!$N$14:$N$1000,Cad_Neg!$B$14:$B$1000,Config!J$1,Cad_Neg!$J$14:$J$1000,Config!$C$15,Cad_Neg!$C$14:$C$1000,Config!$C34))","v":{"$error":"#N/A"}},{"$f":"IF($C34=\"\",NA(),SUMIFS(Cad_Neg!$N$14:$N$1000,Cad_Neg!$B$14:$B$1000,Config!K$1,Cad_Neg!$J$14:$J$1000,Config!$C$15,Cad_Neg!$C$14:$C$1000,Config!$C34))","v":{"$error":"#N/A"}},{"$f":"IF($C34=\"\",NA(),SUMIFS(Cad_Neg!$N$14:$N$1000,Cad_Neg!$B$14:$B$1000,Config!L$1,Cad_Neg!$J$14:$J$1000,Config!$C$15,Cad_Neg!$C$14:$C$1000,Config!$C34))","v":{"$error":"#N/A"}},{"$f":"IF($C34=\"\",NA(),SUMIFS(Cad_Neg!$N$14:$N$1000,Cad_Neg!$B$14:$B$1000,Config!M$1,Cad_Neg!$J$14:$J$1000,Config!$C$15,Cad_Neg!$C$14:$C$1000,Config!$C34))","v":{"$error":"#N/A"}},{"$f":"IF($C34=\"\",NA(),SUMIFS(Cad_Neg!$N$14:$N$1000,Cad_Neg!$B$14:$B$1000,Config!N$1,Cad_Neg!$J$14:$J$1000,Config!$C$15,Cad_Neg!$C$14:$C$1000,Config!$C34))","v":{"$error":"#N/A"}},{"$f":"IF($C34=\"\",NA(),SUMIFS(Cad_Neg!$N$14:$N$1000,Cad_Neg!$B$14:$B$1000,Config!O$1,Cad_Neg!$J$14:$J$1000,Config!$C$15,Cad_Neg!$C$14:$C$1000,Config!$C34))","v":{"$error":"#N/A"}},{"$error":"#N/A"},null,{"$error":"#N/A"},34,null,{"$f":"IF($C34=\"\",NA(),IF($R$1=\"Todos\",Cad_Vendedores!G29*12,Cad_Vendedores!G29))","v":{"$error":"#N/A"}}]
[null,null,{"$f":"IF(Cad_Vendedores!C30<>\"\",Cad_Vendedores!C30,\"\")","v":""},{"$f":"IF($C35=\"\",NA(),SUMIFS(Cad_Neg!$N$14:$N$1000,Cad_Neg!$B$14:$B$1000,Config!D$1,Cad_Neg!$J$14:$J$1000,Config!$C$15,Cad_Neg!$C$14:$C$1000,Config!$C35))","v":{"$error":"#N/A"}},{"$f":"IF($C35=\"\",NA(),SUMIFS(Cad_Neg!$N$14:$N$1000,Cad_Neg!$B$14:$B$1000,Config!E$1,Cad_Neg!$J$14:$J$1000,Config!$C$15,Cad_Neg!$C$14:$C$1000,Config!$C35))","v":{"$error":"#N/A"}},{"$f":"IF($C35=\"\",NA(),SUMIFS(Cad_Neg!$N$14:$N$1000,Cad_Neg!$B$14:$B$1000,Config!F$1,Cad_Neg!$J$14:$J$1000,Config!$C$15,Cad_Neg!$C$14:$C$1000,Config!$C35))","v":{"$error":"#N/A"}},{"$f":"IF($C35=\"\",NA(),SUMIFS(Cad_Neg!$N$14:$N$1000,Cad_Neg!$B$14:$B$1000,Config!G$1,Cad_Neg!$J$14:$J$1000,Config!$C$15,Cad_Neg!$C$14:$C$1000,Config!$C35))","v":{"$error":"#N/A"}},{"$f":"IF($C35=\"\",NA(),SUMIFS(Cad_Neg!$N$14:$N$1000,Cad_Neg!$B$14:$B$1000,Config!H$1,Cad_Neg!$J$14:$J$1000,Config!$C$15,Cad_Neg!$C$14:$C$1000,Config!$C35))","v":{"$error":"#N/A"}},{"$f":"IF($C35=\"\",NA(),SUMIFS(Cad_Neg!$N$14:$N$1000,Cad_Neg!$B$14:$B$1000,Config!I$1,Cad_Neg!$J$14:$J$1000,Config!$C$15,Cad_Neg!$C$14:$C$1000,Config!$C35))","v":{"$error":"#N/A"}},{"$f":"IF($C35=\"\",NA(),SUMIFS(Cad_Neg!$N$14:$N$1000,Cad_Neg!$B$14:$B$1000,Config!J$1,Cad_Neg!$J$14:$J$1000,Config!$C$15,Cad_Neg!$C$14:$C$1000,Config!$C35))","v":{"$error":"#N/A"}},{"$f":"IF($C35=\"\",NA(),SUMIFS(Cad_Neg!$N$14:$N$1000,Cad_Neg!$B$14:$B$1000,Config!K$1,Cad_Neg!$J$14:$J$1000,Config!$C$15,Cad_Neg!$C$14:$C$1000,Config!$C35))","v":{"$error":"#N/A"}},{"$f":"IF($C35=\"\",NA(),SUMIFS(Cad_Neg!$N$14:$N$1000,Cad_Neg!$B$14:$B$1000,Config!L$1,Cad_Neg!$J$14:$J$1000,Config!$C$15,Cad_Neg!$C$14:$C$1000,Config!$C35))","v":{"$error":"#N/A"}},{"$f":"IF($C35=\"\",NA(),SUMIFS(Cad_Neg!$N$14:$N$1000,Cad_Neg!$B$14:$B$1000,Config!M$1,Cad_Neg!$J$14:$J$1000,Config!$C$15,Cad_Neg!$C$14:$C$1000,Config!$C35))","v":{"$error":"#N/A"}},{"$f":"IF($C35=\"\",NA(),SUMIFS(Cad_Neg!$N$14:$N$1000,Cad_Neg!$B$14:$B$1000,Config!N$1,Cad_Neg!$J$14:$J$1000,Config!$C$15,Cad_Neg!$C$14:$C$1000,Config!$C35))","v":{"$error":"#N/A"}},{"$f":"IF($C35=\"\",NA(),SUMIFS(Cad_Neg!$N$14:$N$1000,Cad_Neg!$B$14:$B$1000,Config!O$1,Cad_Neg!$J$14:$J$1000,Config!$C$15,Cad_Neg!$C$14:$C$1000,Config!$C35))","v":{"$error":"#N/A"}},{"$error":"#N/A"},null,{"$error":"#N/A"},35,null,{"$f":"IF($C35=\"\",NA(),IF($R$1=\"Todos\",Cad_Vendedores!G30*12,Cad_Vendedores!G30))","v":{"$error":"#N/A"}}]
[null,null,{"$f":"IF(Cad_Vendedores!C31<>\"\",Cad_Vendedores!C31,\"\")","v":""},{"$f":"IF($C36=\"\",NA(),SUMIFS(Cad_Neg!$N$14:$N$1000,Cad_Neg!$B$14:$B$1000,Config!D$1,Cad_Neg!$J$14:$J$1000,Config!$C$15,Cad_Neg!$C$14:$C$1000,Config!$C36))","v":{"$error":"#N/A"}},{"$f":"IF($C36=\"\",NA(),SUMIFS(Cad_Neg!$N$14:$N$1000,Cad_Neg!$B$14:$B$1000,Config!E$1,Cad_Neg!$J$14:$J$1000,Config!$C$15,Cad_Neg!$C$14:$C$1000,Config!$C36))","v":{"$error":"#N/A"}},{"$f":"IF($C36=\"\",NA(),SUMIFS(Cad_Neg!$N$14:$N$1000,Cad_Neg!$B$14:$B$1000,Config!F$1,Cad_Neg!$J$14:$J$1000,Config!$C$15,Cad_Neg!$C$14:$C$1000,Config!$C36))","v":{"$error":"#N/A"}},{"$f":"IF($C36=\"\",NA(),SUMIFS(Cad_Neg!$N$14:$N$1000,Cad_Neg!$B$14:$B$1000,Config!G$1,Cad_Neg!$J$14:$J$1000,Config!$C$15,Cad_Neg!$C$14:$C$1000,Config!$C36))","v":{"$error":"#N/A"}},{"$f":"IF($C36=\"\",NA(),SUMIFS(Cad_Neg!$N$14:$N$1000,Cad_Neg!$B$14:$B$1000,Config!H$1,Cad_Neg!$J$14:$J$1000,Config!$C$15,Cad_Neg!$C$14:$C$1000,Config!$C36))","v":{"$error":"#N/A"}},{"$f":"IF($C36=\"\",NA(),SUMIFS(Cad_Neg!$N$14:$N$1000,Cad_Neg!$B$14:$B$1000,Config!I$1,Cad_Neg!$J$14:$J$1000,Config!$C$15,Cad_Neg!$C$14:$C$1000,Config!$C36))","v":{"$error":"#N/A"}},{"$f":"IF($C36=\"\",NA(),SUMIFS(Cad_Neg!$N$14:$N$1000,Cad_Neg!$B$14:$B$1000,Config!J$1,Cad_Neg!$J$14:$J$1000,Config!$C$15,Cad_Neg!$C$14:$C$1000,Config!$C36))","v":{"$error":"#N/A"}},{"$f":"IF($C36=\"\",NA(),SUMIFS(Cad_Neg!$N$14:$N$1000,Cad_Neg!$B$14:$B$1000,Config!K$1,Cad_Neg!$J$14:$J$1000,Config!$C$15,Cad_Neg!$C$14:$C$1000,Config!$C36))","v":{"$error":"#N/A"}},{"$f":"IF($C36=\"\",NA(),SUMIFS(Cad_Neg!$N$14:$N$1000,Cad_Neg!$B$14:$B$1000,Config!L$1,Cad_Neg!$J$14:$J$1000,Config!$C$15,Cad_Neg!$C$14:$C$1000,Config!$C36))","v":{"$error":"#N/A"}},{"$f":"IF($C36=\"\",NA(),SUMIFS(Cad_Neg!$N$14:$N$1000,Cad_Neg!$B$14:$B$1000,Config!M$1,Cad_Neg!$J$14:$J$1000,Config!$C$15,Cad_Neg!$C$14:$C$1000,Config!$C36))","v":{"$error":"#N/A"}},{"$f":"IF($C36=\"\",NA(),SUMIFS(Cad_Neg!$N$14:$N$1000,Cad_Neg!$B$14:$B$1000,Config!N$1,Cad_Neg!$J$14:$J$1000,Config!$C$15,Cad_Neg!$C$14:$C$1000,Config!$C36))","v":{"$error":"#N/A"}},{"$f":"IF($C36=\"\",NA(),SUMIFS(Cad_Neg!$N$14:$N$1000,Cad_Neg!$B$14:$B$1000,Config!O$1,Cad_Neg!$J$14:$J$1000,Config!$C$15,Cad_Neg!$C$14:$C$1000,Config!$C36))","v":{"$error":"#N/A"}},{"$error":"#N/A"},null,{"$error":"#N/A"},36,null,{"$f":"IF($C36=\"\",NA(),IF($R$1=\"Todos\",Cad_Vendedores!G31*12,Cad_Vendedores!G31))","v":{"$error":"#N/A"}}]
[null,null,{"$f":"IF(Cad_Vendedores!C32<>\"\",Cad_Vendedores!C32,\"\")","v":""},{"$f":"IF($C37=\"\",NA(),SUMIFS(Cad_Neg!$N$14:$N$1000,Cad_Neg!$B$14:$B$1000,Config!D$1,Cad_Neg!$J$14:$J$1000,Config!$C$15,Cad_Neg!$C$14:$C$1000,Config!$C37))","v":{"$error":"#N/A"}},{"$f":"IF($C37=\"\",NA(),SUMIFS(Cad_Neg!$N$14:$N$1000,Cad_Neg!$B$14:$B$1000,Config!E$1,Cad_Neg!$J$14:$J$1000,Config!$C$15,Cad_Neg!$C$14:$C$1000,Config!$C37))","v":{"$error":"#N/A"}},{"$f":"IF($C37=\"\",NA(),SUMIFS(Cad_Neg!$N$14:$N$1000,Cad_Neg!$B$14:$B$1000,Config!F$1,Cad_Neg!$J$14:$J$1000,Config!$C$15,Cad_Neg!$C$14:$C$1000,Config!$C37))","v":{"$error":"#N/A"}},{"$f":"IF($C37=\"\",NA(),SUMIFS(Cad_Neg!$N$14:$N$1000,Cad_Neg!$B$14:$B$1000,Config!G$1,Cad_Neg!$J$14:$J$1000,Config!$C$15,Cad_Neg!$C$14:$C$1000,Config!$C37))","v":{"$error":"#N/A"}},{"$f":"IF($C37=\"\",NA(),SUMIFS(Cad_Neg!$N$14:$N$1000,Cad_Neg!$B$14:$B$1000,Config!H$1,Cad_Neg!$J$14:$J$1000,Config!$C$15,Cad_Neg!$C$14:$C$1000,Config!$C37))","v":{"$error":"#N/A"}},{"$f":"IF($C37=\"\",NA(),SUMIFS(Cad_Neg!$N$14:$N$1000,Cad_Neg!$B$14:$B$1000,Config!I$1,Cad_Neg!$J$14:$J$1000,Config!$C$15,Cad_Neg!$C$14:$C$1000,Config!$C37))","v":{"$error":"#N/A"}},{"$f":"IF($C37=\"\",NA(),SUMIFS(Cad_Neg!$N$14:$N$1000,Cad_Neg!$B$14:$B$1000,Config!J$1,Cad_Neg!$J$14:$J$1000,Config!$C$15,Cad_Neg!$C$14:$C$1000,Config!$C37))","v":{"$error":"#N/A"}},{"$f":"IF($C37=\"\",NA(),SUMIFS(Cad_Neg!$N$14:$N$1000,Cad_Neg!$B$14:$B$1000,Config!K$1,Cad_Neg!$J$14:$J$1000,Config!$C$15,Cad_Neg!$C$14:$C$1000,Config!$C37))","v":{"$error":"#N/A"}},{"$f":"IF($C37=\"\",NA(),SUMIFS(Cad_Neg!$N$14:$N$1000,Cad_Neg!$B$14:$B$1000,Config!L$1,Cad_Neg!$J$14:$J$1000,Config!$C$15,Cad_Neg!$C$14:$C$1000,Config!$C37))","v":{"$error":"#N/A"}},{"$f":"IF($C37=\"\",NA(),SUMIFS(Cad_Neg!$N$14:$N$1000,Cad_Neg!$B$14:$B$1000,Config!M$1,Cad_Neg!$J$14:$J$1000,Config!$C$15,Cad_Neg!$C$14:$C$1000,Config!$C37))","v":{"$error":"#N/A"}},{"$f":"IF($C37=\"\",NA(),SUMIFS(Cad_Neg!$N$14:$N$1000,Cad_Neg!$B$14:$B$1000,Config!N$1,Cad_Neg!$J$14:$J$1000,Config!$C$15,Cad_Neg!$C$14:$C$1000,Config!$C37))","v":{"$error":"#N/A"}},{"$f":"IF($C37=\"\",NA(),SUMIFS(Cad_Neg!$N$14:$N$1000,Cad_Neg!$B$14:$B$1000,Config!O$1,Cad_Neg!$J$14:$J$1000,Config!$C$15,Cad_Neg!$C$14:$C$1000,Config!$C37))","v":{"$error":"#N/A"}},{"$error":"#N/A"},null,{"$error":"#N/A"},37,null,{"$f":"IF($C37=\"\",NA(),IF($R$1=\"Todos\",Cad_Vendedores!G32*12,Cad_Vendedores!G32))","v":{"$error":"#N/A"}}]
[null,null,{"$f":"IF(Cad_Vendedores!C33<>\"\",Cad_Vendedores!C33,\"\")","v":""},{"$f":"IF($C38=\"\",NA(),SUMIFS(Cad_Neg!$N$14:$N$1000,Cad_Neg!$B$14:$B$1000,Config!D$1,Cad_Neg!$J$14:$J$1000,Config!$C$15,Cad_Neg!$C$14:$C$1000,Config!$C38))","v":{"$error":"#N/A"}},{"$f":"IF($C38=\"\",NA(),SUMIFS(Cad_Neg!$N$14:$N$1000,Cad_Neg!$B$14:$B$1000,Config!E$1,Cad_Neg!$J$14:$J$1000,Config!$C$15,Cad_Neg!$C$14:$C$1000,Config!$C38))","v":{"$error":"#N/A"}},{"$f":"IF($C38=\"\",NA(),SUMIFS(Cad_Neg!$N$14:$N$1000,Cad_Neg!$B$14:$B$1000,Config!F$1,Cad_Neg!$J$14:$J$1000,Config!$C$15,Cad_Neg!$C$14:$C$1000,Config!$C38))","v":{"$error":"#N/A"}},{"$f":"IF($C38=\"\",NA(),SUMIFS(Cad_Neg!$N$14:$N$1000,Cad_Neg!$B$14:$B$1000,Config!G$1,Cad_Neg!$J$14:$J$1000,Config!$C$15,Cad_Neg!$C$14:$C$1000,Config!$C38))","v":{"$error":"#N/A"}},{"$f":"IF($C38=\"\",NA(),SUMIFS(Cad_Neg!$N$14:$N$1000,Cad_Neg!$B$14:$B$1000,Config!H$1,Cad_Neg!$J$14:$J$1000,Config!$C$15,Cad_Neg!$C$14:$C$1000,Config!$C38))","v":{"$error":"#N/A"}},{"$f":"IF($C38=\"\",NA(),SUMIFS(Cad_Neg!$N$14:$N$1000,Cad_Neg!$B$14:$B$1000,Config!I$1,Cad_Neg!$J$14:$J$1000,Config!$C$15,Cad_Neg!$C$14:$C$1000,Config!$C38))","v":{"$error":"#N/A"}},{"$f":"IF($C38=\"\",NA(),SUMIFS(Cad_Neg!$N$14:$N$1000,Cad_Neg!$B$14:$B$1000,Config!J$1,Cad_Neg!$J$14:$J$1000,Config!$C$15,Cad_Neg!$C$14:$C$1000,Config!$C38))","v":{"$error":"#N/A"}},{"$f":"IF($C38=\"\",NA(),SUMIFS(Cad_Neg!$N$14:$N$1000,Cad_Neg!$B$14:$B$1000,Config!K$1,Cad_Neg!$J$14:$J$1000,Config!$C$15,Cad_Neg!$C$14:$C$1000,Config!$C38))","v":{"$error":"#N/A"}},{"$f":"IF($C38=\"\",NA(),SUMIFS(Cad_Neg!$N$14:$N$1000,Cad_Neg!$B$14:$B$1000,Config!L$1,Cad_Neg!$J$14:$J$1000,Config!$C$15,Cad_Neg!$C$14:$C$1000,Config!$C38))","v":{"$error":"#N/A"}},{"$f":"IF($C38=\"\",NA(),SUMIFS(Cad_Neg!$N$14:$N$1000,Cad_Neg!$B$14:$B$1000,Config!M$1,Cad_Neg!$J$14:$J$1000,Config!$C$15,Cad_Neg!$C$14:$C$1000,Config!$C38))","v":{"$error":"#N/A"}},{"$f":"IF($C38=\"\",NA(),SUMIFS(Cad_Neg!$N$14:$N$1000,Cad_Neg!$B$14:$B$1000,Config!N$1,Cad_Neg!$J$14:$J$1000,Config!$C$15,Cad_Neg!$C$14:$C$1000,Config!$C38))","v":{"$error":"#N/A"}},{"$f":"IF($C38=\"\",NA(),SUMIFS(Cad_Neg!$N$14:$N$1000,Cad_Neg!$B$14:$B$1000,Config!O$1,Cad_Neg!$J$14:$J$1000,Config!$C$15,Cad_Neg!$C$14:$C$1000,Config!$C38))","v":{"$error":"#N/A"}},{"$error":"#N/A"},null,{"$error":"#N/A"},38,null,{"$f":"IF($C38=\"\",NA(),IF($R$1=\"Todos\",Cad_Vendedores!G33*12,Cad_Vendedores!G33))","v":{"$error":"#N/A"}}]
[]
[null,null,"Qualidade Produto",{"$f":"COUNTIFS(Cad_Neg!$B$14:$B$1000,Config!D$1,Cad_Neg!$L$14:$L$1000,Config!$C40)","v":0},{"$f":"COUNTIFS(Cad_Neg!$B$14:$B$1000,Config!E$1,Cad_Neg!$L$14:$L$1000,Config!$C40)","v":0},{"$f":"COUNTIFS(Cad_Neg!$B$14:$B$1000,Config!F$1,Cad_Neg!$L$14:$L$1000,Config!$C40)","v":0},{"$f":"COUNTIFS(Cad_Neg!$B$14:$B$1000,Config!G$1,Cad_Neg!$L$14:$L$1000,Config!$C40)","v":0},{"$f":"COUNTIFS(Cad_Neg!$B$14:$B$1000,Config!H$1,Cad_Neg!$L$14:$L$1000,Config!$C40)","v":0},{"$f":"COUNTIFS(Cad_Neg!$B$14:$B$1000,Config!I$1,Cad_Neg!$L$14:$L$1000,Config!$C40)","v":0},{"$f":"COUNTIFS(Cad_Neg!$B$14:$B$1000,Config!J$1,Cad_Neg!$L$14:$L$1000,Config!$C40)","v":0},{"$f":"COUNTIFS(Cad_Neg!$B$14:$B$1000,Config!K$1,Cad_Neg!$L$14:$L$1000,Config!$C40)","v":0},{"$f":"COUNTIFS(Cad_Neg!$B$14:$B$1000,Config!L$1,Cad_Neg!$L$14:$L$1000,Config!$C40)","v":0},{"$f":"COUNTIFS(Cad_Neg!$B$14:$B$1000,Config!M$1,Cad_Neg!$L$14:$L$1000,Config!$C40)","v":0},{"$f":"COUNTIFS(Cad_Neg!$B$14:$B$1000,Config!N$1,Cad_Neg!$L$14:$L$1000,Config!$C40)","v":0},{"$f":"COUNTIFS(Cad_Neg!$B$14:$B$1000,Config!O$1,Cad_Neg!$L$14:$L$1000,Config!$C40)","v":0},{"$f":"SUM(D40:O40)","v":0},null,null,null,null,null,"Qualidade Produto",{"$f":"P40","v":0}]
[null,null,"Sem interesse",{"$f":"COUNTIFS(Cad_Neg!$B$14:$B$1000,Config!D$1,Cad_Neg!$L$14:$L$1000,Config!$C41)","v":1},{"$f":"COUNTIFS(Cad_Neg!$B$14:$B$1000,Config!E$1,Cad_Neg!$L$14:$L$1000,Config!$C41)","v":0},{"$f":"COUNTIFS(Cad_Neg!$B$14:$B$1000,Config!F$1,Cad_Neg!$L$14:$L$1000,Config!$C41)","v":0},{"$f":"COUNTIFS(Cad_Neg!$B$14:$B$1000,Config!G$1,Cad_Neg!$L$14:$L$1000,Config!$C41)","v":0},{"$f":"COUNTIFS(Cad_Neg!$B$14:$B$1000,Config!H$1,Cad_Neg!$L$14:$L$1000,Config!$C41)","v":0},{"$f":"COUNTIFS(Cad_Neg!$B$14:$B$1000,Config!I$1,Cad_Neg!$L$14:$L$1000,Config!$C41)","v":0},{"$f":"COUNTIFS(Cad_Neg!$B$14:$B$1000,Config!J$1,Cad_Neg!$L$14:$L$1000,Config!$C41)","v":0},{"$f":"COUNTIFS(Cad_Neg!$B$14:$B$1000,Config!K$1,Cad_Neg!$L$14:$L$1000,Config!$C41)","v":0},{"$f":"COUNTIFS(Cad_Neg!$B$14:$B$1000,Config!L$1,Cad_Neg!$L$14:$L$1000,Config!$C41)","v":0},{"$f":"COUNTIFS(Cad_Neg!$B$14:$B$1000,Config!M$1,Cad_Neg!$L$14:$L$1000,Config!$C41)","v":0},{"$f":"COUNTIFS(Cad_Neg!$B$14:$B$1000,Config!N$1,Cad_Neg!$L$14:$L$1000,Config!$C41)","v":0},{"$f":"COUNTIFS(Cad_Neg!$B$14:$B$1000,Config!O$1,Cad_Neg!$L$14:$L$1000,Config!$C41)","v":0},{"$f":"SUM(D41:O41)","v":1},null,null,null,null,null,"Sem interesse",{"$f":"P41","v":1}]
[null,null,"Preço Alto",{"$f":"COUNTIFS(Cad_Neg!$B$14:$B$1000,Config!D$1,Cad_Neg!$L$14:$L$1000,Config!$C42)","v":0},{"$f":"COUNTIFS(Cad_Neg!$B$14:$B$1000,Config!E$1,Cad_Neg!$L$14:$L$1000,Config!$C42)","v":1},{"$f":"COUNTIFS(Cad_Neg!$B$14:$B$1000,Config!F$1,Cad_Neg!$L$14:$L$1000,Config!$C42)","v":0},{"$f":"COUNTIFS(Cad_Neg!$B$14:$B$1000,Config!G$1,Cad_Neg!$L$14:$L$1000,Config!$C42)","v":0},{"$f":"COUNTIFS(Cad_Neg!$B$14:$B$1000,Config!H$1,Cad_Neg!$L$14:$L$1000,Config!$C42)","v":0},{"$f":"COUNTIFS(Cad_Neg!$B$14:$B$1000,Config!I$1,Cad_Neg!$L$14:$L$1000,Config!$C42)","v":0},{"$f":"COUNTIFS(Cad_Neg!$B$14:$B$1000,Config!J$1,Cad_Neg!$L$14:$L$1000,Config!$C42)","v":0},{"$f":"COUNTIFS(Cad_Neg!$B$14:$B$1000,Config!K$1,Cad_Neg!$L$14:$L$1000,Config!$C42)","v":0},{"$f":"COUNTIFS(Cad_Neg!$B$14:$B$1000,Config!L$1,Cad_Neg!$L$14:$L$1000,Config!$C42)","v":0},{"$f":"COUNTIFS(Cad_Neg!$B$14:$B$1000,Config!M$1,Cad_Neg!$L$14:$L$1000,Config!$C42)","v":0},{"$f":"COUNTIFS(Cad_Neg!$B$14:$B$1000,Config!N$1,Cad_Neg!$L$14:$L$1000,Config!$C42)","v":0},{"$f":"COUNTIFS(Cad_Neg!$B$14:$B$1000,Config!O$1,Cad_Neg!$L$14:$L$1000,Config!$C42)","v":0},{"$f":"SUM(D42:O42)","v":1},null,null,null,null,null,"Preço Alto",1]
[null,null,"Prazo",{"$f":"COUNTIFS(Cad_Neg!$B$14:$B$1000,Config!D$1,Cad_Neg!$L$14:$L$1000,Config!$C43)","v":0},{"$f":"COUNTIFS(Cad_Neg!$B$14:$B$1000,Config!E$1,Cad_Neg!$L$14:$L$1000,Config!$C43)","v":0},{"$f":"COUNTIFS(Cad_Neg!$B$14:$B$1000,Config!F$1,Cad_Neg!$L$14:$L$1000,Config!$C43)","v":0},{"$f":"COUNTIFS(Cad_Neg!$B$14:$B$1000,Config!G$1,Cad_Neg!$L$14:$L$1000,Config!$C43)","v":0},{"$f":"COUNTIFS(Cad_Neg!$B$14:$B$1000,Config!H$1,Cad_Neg!$L$14:$L$1000,Config!$C43)","v":0},{"$f":"COUNTIFS(Cad_Neg!$B$14:$B$1000,Config!I$1,Cad_Neg!$L$14:$L$1000,Config!$C43)","v":0},{"$f":"COUNTIFS(Cad_Neg!$B$14:$B$1000,Config!J$1,Cad_Neg!$L$14:$L$1000,Config!$C43)","v":0},{"$f":"COUNTIFS(Cad_Neg!$B$14:$B$1000,Config!K$1,Cad_Neg!$L$14:$L$1000,Config!$C43)","v":0},{"$f":"COUNTIFS(Cad_Neg!$B$14:$B$1000,Config!L$1,Cad_Neg!$L$14:$L$1000,Config!$C43)","v":0},{"$f":"COUNTIFS(Cad_Neg!$B$14:$B$1000,Config!M$1,Cad_Neg!$L$14:$L$1000,Config!$C43)","v":0},{"$f":"COUNTIFS(Cad_Neg!$B$14:$B$1000,Config!N$1,Cad_Neg!$L$14:$L$1000,Config!$C43)","v":0},{"$f":"COUNTIFS(Cad_Neg!$B$14:$B$1000,Config!O$1,Cad_Neg!$L$14:$L$1000,Config!$C43)","v":0},0,null,null,null,null,null,"Prazo",0]
[null,null,"Insatisfação",{"$f":"COUNTIFS(Cad_Neg!$B$14:$B$1000,Config!D$1,Cad_Neg!$L$14:$L$1000,Config!$C44)","v":0},{"$f":"COUNTIFS(Cad_Neg!$B$14:$B$1000,Config!E$1,Cad_Neg!$L$14:$L$1000,Config!$C44)","v":0},{"$f":"COUNTIFS(Cad_Neg!$B$14:$B$1000,Config!F$1,Cad_Neg!$L$14:$L$1000,Config!$C44)","v":0},{"$f":"COUNTIFS(Cad_Neg!$B$14:$B$1000,Config!G$1,Cad_Neg!$L$14:$L$1000,Config!$C44)","v":0},{"$f":"COUNTIFS(Cad_Neg!$B$14:$B$1000,Config!H$1,Cad_Neg!$L$14:$L$1000,Config!$C44)","v":0},{"$f":"COUNTIFS(Cad_Neg!$B$14:$B$1000,Config!I$1,Cad_Neg!$L$14:$L$1000,Config!$C44)","v":0},{"$f":"COUNTIFS(Cad_Neg!$B$14:$B$1000,Config!J$1,Cad_Neg!$L$14:$L$1000,Config!$C44)","v":0},{"$f":"COUNTIFS(Cad_Neg!$B$14:$B$1000,Config!K$1,Cad_Neg!$L$14:$L$1000,Config!$C44)","v":0},{"$f":"COUNTIFS(Cad_Neg!$B$14:$B$1000,Config!L$1,Cad_Neg!$L$14:$L$1000,Config!$C44)","v":0},{"$f":"COUNTIFS(Cad_Neg!$B$14:$B$1000,Config!M$1,Cad_Neg!$L$14:$L$1000,Config!$C44)","v":0},{"$f":"COUNTIFS(Cad_Neg!$B$14:$B$1000,Config!N$1,Cad_Neg!$L$14:$L$1000,Config!$C44)","v":0},{"$f":"COUNTIFS(Cad_Neg!$B$14:$B$1000,Config!O$1,Cad_Neg!$L$14:$L$1000,Config!$C44)","v":0},0,null,null,null,null,null,"Insatisfação",0]
[]
[null,null,"E-mail",{"$f":"COUNTIFS(Cad_Neg!$B$14:$B$1000,Config!D$1,Cad_Neg!$M$14:$M$1000,Config!$C46)","v":0},{"$f":"COUNTIFS(Cad_Neg!$B$14:$B$1000,Config!E$1,Cad_Neg!$M$14:$M$1000,Config!$C46)","v":0},{"$f":"COUNTIFS(Cad_Neg!$B$14:$B$1000,Config!F$1,Cad_Neg!$M$14:$M$1000,Config!$C46)","v":0},{"$f":"COUNTIFS(Cad_Neg!$B$14:$B$1000,Config!G$1,Cad_Neg!$M$14:$M$1000,Config!$C46)","v":0},{"$f":"COUNTIFS(Cad_Neg!$B$14:$B$1000,Config!H$1,Cad_Neg!$M$14:$M$1000,Config!$C46)","v":0},{"$f":"COUNTIFS(Cad_Neg!$B$14:$B$1000,Config!I$1,Cad_Neg!$M$14:$M$1000,Config!$C46)","v":0},{"$f":"COUNTIFS(Cad_Neg!$B$14:$B$1000,Config!J$1,Cad_Neg!$M$14:$M$1000,Config!$C46)","v":0},{"$f":"COUNTIFS(Cad_Neg!$B$14:$B$1000,Config!K$1,Cad_Neg!$M$14:$M$1000,Config!$C46)","v":0},{"$f":"COUNTIFS(Cad_Neg!$B$14:$B$1000,Config!L$1,Cad_Neg!$M$14:$M$1000,Config!$C46)","v":0},{"$f":"COUNTIFS(Cad_Neg!$B$14:$B$1000,Config!M$1,Cad_Neg!$M$14:$M$1000,Config!$C46)","v":0},{"$f":"COUNTIFS(Cad_Neg!$B$14:$B$1000,Config!N$1,Cad_Neg!$M$14:$M$1000,Config!$C46)","v":0},{"$f":"COUNTIFS(Cad_Neg!$B$14:$B$1000,Config!O$1,Cad_Neg!$M$14:$M$1000,Config!$C46)","v":0},{"$f":"SUM(D46:O46)","v":0},null,null,null,null,null,"E-mail",{"$f":"P46","v":0}]
[null,null,"Google",{"$f":"COUNTIFS(Cad_Neg!$B$14:$B$1000,Config!D$1,Cad_Neg!$M$14:$M$1000,Config!$C47)","v":0},{"$f":"COUNTIFS(Cad_Neg!$B$14:$B$1000,Config!E$1,Cad_Neg!$M$14:$M$1000,Config!$C47)","v":0},{"$f":"COUNTIFS(Cad_Neg!$B$14:$B$1000,Config!F$1,Cad_Neg!$M$14:$M$1000,Config!$C47)","v":0},{"$f":"COUNTIFS(Cad_Neg!$B$14:$B$1000,Config!G$1,Cad_Neg!$M$14:$M$1000,Config!$C47)","v":0},{"$f":"COUNTIFS(Cad_Neg!$B$14:$B$1000,Config!H$1,Cad_Neg!$M$14:$M$1000,Config!$C47)","v":0},{"$f":"COUNTIFS(Cad_Neg!$B$14:$B$1000,Config!I$1,Cad_Neg!$M$14:$M$1000,Config!$C47)","v":0},{"$f":"COUNTIFS(Cad_Neg!$B$14:$B$1000,Config!J$1,Cad_Neg!$M$14:$M$1000,Config!$C47)","v":0},{"$f":"COUNTIFS(Cad_Neg!$B$14:$B$1000,Config!K$1,Cad_Neg!$M$14:$M$1000,Config!$C47)","v":0},{"$f":"COUNTIFS(Cad_Neg!$B$14:$B$1000,Config!L$1,Cad_Neg!$M$14:$M$1000,Config!$C47)","v":0},{"$f":"COUNTIFS(Cad_Neg!$B$14:$B$1000,Config!M$1,Cad_Neg!$M$14:$M$1000,Config!$C47)","v":0},{"$f":"COUNTIFS(Cad_Neg!$B$14:$B$1000,Config!N$1,Cad_Neg!$M$14:$M$1000,Config!$C47)","v":0},{"$f":"COUNTIFS(Cad_Neg!$B$14:$B$1000,Config!O$1,Cad_Neg!$M$14:$M$1000,Config!$C47)","v":0},{"$f":"SUM(D47:O47)","v":0},null,null,null,null,null,"Google",{"$f":"P47","v":0}]
[null,null,"Redes Sociais",{"$f":"COUNTIFS(Cad_Neg!$B$14:$B$1000,Config!D$1,Cad_Neg!$M$14:$M$1000,Config!$C48)","v":1},{"$f":"COUNTIFS(Cad_Neg!$B$14:$B$1000,Config!E$1,Cad_Neg!$M$14:$M$1000,Config!$C48)","v":1},{"$f":"COUNTIFS(Cad_Neg!$B$14:$B$1000,Config!F$1,Cad_Neg!$M$14:$M$1000,Config!$C48)","v":0},{"$f":"COUNTIFS(Cad_Neg!$B$14:$B$1000,Config!G$1,Cad_Neg!$M$14:$M$1000,Config!$C48)","v":0},{"$f":"COUNTIFS(Cad_Neg!$B$14:$B$1000,Config!H$1,Cad_Neg!$M$14:$M$1000,Config!$C48)","v":0},{"$f":"COUNTIFS(Cad_Neg!$B$14:$B$1000,Config!I$1,Cad_Neg!$M$14:$M$1000,Config!$C48)","v":0},{"$f":"COUNTIFS(Cad_Neg!$B$14:$B$1000,Config!J$1,Cad_Neg!$M$14:$M$1000,Config!$C48)","v":0},{"$f":"COUNTIFS(Cad_Neg!$B$14:$B$1000,Config!K$1,Cad_Neg!$M$14:$M$1000,Config!$C48)","v":0},{"$f":"COUNTIFS(Cad_Neg!$B$14:$B$1000,Config!L$1,Cad_Neg!$M$14:$M$1000,Config!$C48)","v":0},{"$f":"COUNTIFS(Cad_Neg!$B$14:$B$1000,Config!M$1,Cad_Neg!$M$14:$M$1000,Config!$C48)","v":0},{"$f":"COUNTIFS(Cad_Neg!$B$14:$B$1000,Config!N$1,Cad_Neg!$M$14:$M$1000,Config!$C48)","v":0},{"$f":"COUNTIFS(Cad_Neg!$B$14:$B$1000,Config!O$1,Cad_Neg!$M$14:$M$1000,Config!$C48)","v":0},{"$f":"SUM(D48:O48)","v":2},null,null,null,null,null,"Redes Sociais",2]
[null,null,"Market Place",{"$f":"COUNTIFS(Cad_Neg!$B$14:$B$1000,Config!D$1,Cad_Neg!$M$14:$M$1000,Config!$C49)","v":1},{"$f":"COUNTIFS(Cad_Neg!$B$14:$B$1000,Config!E$1,Cad_Neg!$M$14:$M$1000,Config!$C49)","v":0},{"$f":"COUNTIFS(Cad_Neg!$B$14:$B$1000,Config!F$1,Cad_Neg!$M$14:$M$1000,Config!$C49)","v":0},{"$f":"COUNTIFS(Cad_Neg!$B$14:$B$1000,Config!G$1,Cad_Neg!$M$14:$M$1000,Config!$C49)","v":0},{"$f":"COUNTIFS(Cad_Neg!$B$14:$B$1000,Config!H$1,Cad_Neg!$M$14:$M$1000,Config!$C49)","v":0},{"$f":"COUNTIFS(Cad_Neg!$B$14:$B$1000,Config!I$1,Cad_Neg!$M$14:$M$1000,Config!$C49)","v":0},{"$f":"COUNTIFS(Cad_Neg!$B$14:$B$1000,Config!J$1,Cad_Neg!$M$14:$M$1000,Config!$C49)","v":0},{"$f":"COUNTIFS(Cad_Neg!$B$14:$B$1000,Config!K$1,Cad_Neg!$M$14:$M$1000,Config!$C49)","v":0},{"$f":"COUNTIFS(Cad_Neg!$B$14:$B$1000,Config!L$1,Cad_Neg!$M$14:$M$1000,Config!$C49)","v":0},{"$f":"COUNTIFS(Cad_Neg!$B$14:$B$1000,Config!M$1,Cad_Neg!$M$14:$M$1000,Config!$C49)","v":0},{"$f":"COUNTIFS(Cad_Neg!$B$14:$B$1000,Config!N$1,Cad_Neg!$M$14:$M$1000,Config!$C49)","v":0},{"$f":"COUNTIFS(Cad_Neg!$B$14:$B$1000,Config!O$1,Cad_Neg!$M$14:$M$1000,Config!$C49)","v":0},1,null,null,null,null,null,"Market Place",1]
[null,null,"Indicação",{"$f":"COUNTIFS(Cad_Neg!$B$14:$B$1000,Config!D$1,Cad_Neg!$M$14:$M$1000,Config!$C50)","v":0},{"$f":"COUNTIFS(Cad_Neg!$B$14:$B$1000,Config!E$1,Cad_Neg!$M$14:$M$1000,Config!$C50)","v":1},{"$f":"COUNTIFS(Cad_Neg!$B$14:$B$1000,Config!F$1,Cad_Neg!$M$14:$M$1000,Config!$C50)","v":0},{"$f":"COUNTIFS(Cad_Neg!$B$14:$B$1000,Config!G$1,Cad_Neg!$M$14:$M$1000,Config!$C50)","v":0},{"$f":"COUNTIFS(Cad_Neg!$B$14:$B$1000,Config!H$1,Cad_Neg!$M$14:$M$1000,Config!$C50)","v":0},{"$f":"COUNTIFS(Cad_Neg!$B$14:$B$1000,Config!I$1,Cad_Neg!$M$14:$M$1000,Config!$C50)","v":0},{"$f":"COUNTIFS(Cad_Neg!$B$14:$B$1000,Config!J$1,Cad_Neg!$M$14:$M$1000,Config!$C50)","v":0},{"$f":"COUNTIFS(Cad_Neg!$B$14:$B$1000,Config!K$1,Cad_Neg!$M$14:$M$1000,Config!$C50)","v":0},{"$f":"COUNTIFS(Cad_Neg!$B$14:$B$1000,Config!L$1,Cad_Neg!$M$14:$M$1000,Config!$C50)","v":0},{"$f":"COUNTIFS(Cad_Neg!$B$14:$B$1000,Config!M$1,Cad_Neg!$M$14:$M$1000,Config!$C50)","v":0},{"$f":"COUNTIFS(Cad_Neg!$B$14:$B$1000,Config!N$1,Cad_Neg!$M$14:$M$1000,Config!$C50)","v":0},{"$f":"COUNTIFS(Cad_Neg!$B$14:$B$1000,Config!O$1,Cad_Neg!$M$14:$M$1000,Config!$C50)","v":0},1,null,null,null,null,null,"Indicação",1]